Body Name,Body,Date,Department,Beneficiary,Summary of Purpose (SeRCOP),Amount,Merchant Code,Transaction Number
Sandwell Metropolitan Borough Council,http://www.sandwell.gov.uk/info/200202/performance_and_spending/3233/government_procurement_cards,04-Apr-19,Housing & Communities,THE FINANCIAL TIMES,Neighbourhoods,18.72,Materials & Consumables,1920Apr_PC00001
Sandwell Metropolitan Borough Council,http://www.sandwell.gov.uk/info/200202/performance_and_spending/3233/government_procurement_cards,04-Apr-19,Housing & Communities,SAINSBURYS SACAT 0541,Neighbourhoods,22.47,Materials & Consumables,1920Apr_PC00002
Sandwell Metropolitan Borough Council,http://www.sandwell.gov.uk/info/200202/performance_and_spending/3233/government_procurement_cards,04-Apr-19,Childrens Services,THE RANGE,Childrens Services,1.5,Equipment & Furniture,1920Apr_PC00003
Sandwell Metropolitan Borough Council,http://www.sandwell.gov.uk/info/200202/performance_and_spending/3233/government_procurement_cards,04-Apr-19,Housing & Communities,WWW.STRIKINGDISPLAYS.C,Neighbourhoods,3.32,Equipment & Furniture,1920Apr_PC00004
Sandwell Metropolitan Borough Council,http://www.sandwell.gov.uk/info/200202/performance_and_spending/3233/government_procurement_cards,04-Apr-19,Childrens Services,Amazon.co.uk MZ3D93A14,Childrens Services,33.29,Equipment & Furniture,1920Apr_PC00005
Sandwell Metropolitan Borough Council,http://www.sandwell.gov.uk/info/200202/performance_and_spending/3233/government_procurement_cards,04-Apr-19,Childrens Services,WWW.IRONMONGERYDIRECT.,Childrens Services,15.82,R& M - Building Maint&Imp.,1920Apr_PC00006
Sandwell Metropolitan Borough Council,http://www.sandwell.gov.uk/info/200202/performance_and_spending/3233/government_procurement_cards,04-Apr-19,Childrens Services,SCREWFIX DIRECT,Childrens Services,37.47,Equipment & Furniture,1920Apr_PC00007
Sandwell Metropolitan Borough Council,http://www.sandwell.gov.uk/info/200202/performance_and_spending/3233/government_procurement_cards,04-Apr-19,Housing & Communities,AMZNMktplace,Neighbourhoods,2.5,Equipment & Furniture,1920Apr_PC00008
Sandwell Metropolitan Borough Council,http://www.sandwell.gov.uk/info/200202/performance_and_spending/3233/government_procurement_cards,04-Apr-19,Housing & Communities,AMZN Mktp UK MZ41V6A74,Neighbourhoods,4.17,Equipment & Furniture,1920Apr_PC00009
Sandwell Metropolitan Borough Council,http://www.sandwell.gov.uk/info/200202/performance_and_spending/3233/government_procurement_cards,04-Apr-19,Housing & Communities,FOXALL INDUSTRIAL SUPP,Neighbourhoods,12.02,Protective Clothing&Uniforms,1920Apr_PC00010
Sandwell Metropolitan Borough Council,http://www.sandwell.gov.uk/info/200202/performance_and_spending/3233/government_procurement_cards,04-Apr-19,Housing & Communities,HIGHFIELD HOUSE HO,Neighbourhoods,23.32,Rents,1920Apr_PC00011
Sandwell Metropolitan Borough Council,http://www.sandwell.gov.uk/info/200202/performance_and_spending/3233/government_procurement_cards,04-Apr-19,Resources (Inc SIU),WWW.IDCARDCENTRE.CO.UK,Assistant Chief Executive (Excl SIU),23.32,Printing Stationery&Gen Office,1920Apr_PC00012
Sandwell Metropolitan Borough Council,http://www.sandwell.gov.uk/info/200202/performance_and_spending/3233/government_procurement_cards,04-Apr-19,Resources (Inc SIU),POST OFFICE COUNTER,Assistant Chief Executive (Excl SIU),16.63,"Postages, Carriage & Courier Services",1920Apr_PC00013
Sandwell Metropolitan Borough Council,http://www.sandwell.gov.uk/info/200202/performance_and_spending/3233/government_procurement_cards,04-Apr-19,Resources (Inc SIU),ADVANCED CARD BURE,Assistant Chief Executive (Excl SIU),23.32,Printing Stationery&Gen Office,1920Apr_PC00014
Sandwell Metropolitan Borough Council,http://www.sandwell.gov.uk/info/200202/performance_and_spending/3233/government_procurement_cards,04-Apr-19,Housing & Communities,AMZNMktplace,Neighbourhoods,23.32,Equipment & Furniture,1920Apr_PC00015
Sandwell Metropolitan Borough Council,http://www.sandwell.gov.uk/info/200202/performance_and_spending/3233/government_procurement_cards,04-Apr-19,Housing & Communities,Amazon Prime MZ5BB8AK4,Neighbourhoods,382.4,Equipment & Furniture,1920Apr_PC00016
Sandwell Metropolitan Borough Council,http://www.sandwell.gov.uk/info/200202/performance_and_spending/3233/government_procurement_cards,04-Apr-19,Resources (Inc SIU),OFFICE DEPOT UK,Assistant Chief Executive (Excl SIU),42,Printing Stationery&Gen Office,1920Apr_PC00017
Sandwell Metropolitan Borough Council,http://www.sandwell.gov.uk/info/200202/performance_and_spending/3233/government_procurement_cards,04-Apr-19,Childrens Services,REGISTRATION SERVICES,Childrens Services,17.8,Professional Services External,1920Apr_PC00018
Sandwell Metropolitan Borough Council,http://www.sandwell.gov.uk/info/200202/performance_and_spending/3233/government_procurement_cards,04-Apr-19,Individual School Budgets With Inclusion,OFFICE DEPOT UK,Individual School Budgets With Inclusion,131.77,Printing Stationery&Gen Office,1920Apr_PC00019
Sandwell Metropolitan Borough Council,http://www.sandwell.gov.uk/info/200202/performance_and_spending/3233/government_procurement_cards,04-Apr-19,Individual School Budgets With Inclusion,OFFICE DEPOT UK,Individual School Budgets With Inclusion,127.7,Printing Stationery&Gen Office,1920Apr_PC00020
Sandwell Metropolitan Borough Council,http://www.sandwell.gov.uk/info/200202/performance_and_spending/3233/government_procurement_cards,04-Apr-19,Adult Social Care Health and Wellbeing - Total,Trainline,Total Adult Social Care,344.15,Public Transport,1920Apr_PC00021
Sandwell Metropolitan Borough Council,http://www.sandwell.gov.uk/info/200202/performance_and_spending/3233/government_procurement_cards,04-Apr-19,Adult Social Care Health and Wellbeing - Total,WWW.ARGOS.CO.UK,Total Adult Social Care,183.33,Fixtures & Fittings,1920Apr_PC00022
Sandwell Metropolitan Borough Council,http://www.sandwell.gov.uk/info/200202/performance_and_spending/3233/government_procurement_cards,04-Apr-19,Housing & Communities,COSTCUTTER AND POWIS C,Neighbourhoods,183.33,Materials & Consumables,1920Apr_PC00023
Sandwell Metropolitan Borough Council,http://www.sandwell.gov.uk/info/200202/performance_and_spending/3233/government_procurement_cards,04-Apr-19,Regeneration & Growth,AMZ Amazon Business UK,Regeneration And The Economy,779.7,ICT,1920Apr_PC00024
Sandwell Metropolitan Borough Council,http://www.sandwell.gov.uk/info/200202/performance_and_spending/3233/government_procurement_cards,04-Apr-19,Adult Social Care Health and Wellbeing - Total,PARK INN BIRMINGHAM WE,Total Adult Social Care,54.17,Hire of Facilities,1920Apr_PC00025
Sandwell Metropolitan Borough Council,http://www.sandwell.gov.uk/info/200202/performance_and_spending/3233/government_procurement_cards,04-Apr-19,Housing & Communities,THE EDGBASTON PALA,Neighbourhoods,641.67,Operational Services,1920Apr_PC00026
Sandwell Metropolitan Borough Council,http://www.sandwell.gov.uk/info/200202/performance_and_spending/3233/government_procurement_cards,05-Apr-19,Regeneration & Growth,SOVEREIGN,Regeneration And The Economy,320.4,Printing Stationery&Gen Office,1920Apr_PC00027
Sandwell Metropolitan Borough Council,http://www.sandwell.gov.uk/info/200202/performance_and_spending/3233/government_procurement_cards,05-Apr-19,Childrens Services,WWW.ZIGGIZIGGI.COM,Childrens Services,1.25,R& M - Building Maint&Imp.,1920Apr_PC00028
Sandwell Metropolitan Borough Council,http://www.sandwell.gov.uk/info/200202/performance_and_spending/3233/government_procurement_cards,05-Apr-19,Resources Capital,AMZN Mktp UK MZ5XT6EQ4,Resources Capital,13.29,ICT,1920Apr_PC00029
Sandwell Metropolitan Borough Council,http://www.sandwell.gov.uk/info/200202/performance_and_spending/3233/government_procurement_cards,05-Apr-19,Childrens Services,SCREWFIX STAFFORD,Childrens Services,132,R& M - Building Maint&Imp.,1920Apr_PC00030
Sandwell Metropolitan Borough Council,http://www.sandwell.gov.uk/info/200202/performance_and_spending/3233/government_procurement_cards,05-Apr-19,Resources Capital,Amazon.co.uk MZ9K81ER4,Resources Capital,36.36,ICT,1920Apr_PC00031
Sandwell Metropolitan Borough Council,http://www.sandwell.gov.uk/info/200202/performance_and_spending/3233/government_procurement_cards,05-Apr-19,Resources Capital,AMZNMktplace,Resources Capital,204,ICT,1920Apr_PC00032
Sandwell Metropolitan Borough Council,http://www.sandwell.gov.uk/info/200202/performance_and_spending/3233/government_procurement_cards,05-Apr-19,Adult Social Care Health and Wellbeing - Total,MEDIA & COMMUNICATIONS,Total Adult Social Care,70,ICT,1920Apr_PC00033
Sandwell Metropolitan Borough Council,http://www.sandwell.gov.uk/info/200202/performance_and_spending/3233/government_procurement_cards,05-Apr-19,Total Housing Revenue Account,WWW.PMGLTD.CO.UK,Total Housing Revenue Account,12.49,Conference Expenses,1920Apr_PC00034
Sandwell Metropolitan Borough Council,http://www.sandwell.gov.uk/info/200202/performance_and_spending/3233/government_procurement_cards,05-Apr-19,Total Housing Revenue Account,AMZNMktplace,Total Housing Revenue Account,33.33,Materials & Consumables,1920Apr_PC00035
Sandwell Metropolitan Borough Council,http://www.sandwell.gov.uk/info/200202/performance_and_spending/3233/government_procurement_cards,05-Apr-19,Resources (Inc SIU),WILLIAM WHEAT AND SON,Assistant Chief Executive (Excl SIU),54.6,Grounds Maint&Improvements,1920Apr_PC00036
Sandwell Metropolitan Borough Council,http://www.sandwell.gov.uk/info/200202/performance_and_spending/3233/government_procurement_cards,05-Apr-19,Childrens Services,ASDA SUPERSTORE,Childrens Services,52,Catering Provisions,1920Apr_PC00037
Sandwell Metropolitan Borough Council,http://www.sandwell.gov.uk/info/200202/performance_and_spending/3233/government_procurement_cards,05-Apr-19,Resources (Inc SIU),Virgin Trains,Assistant Chief Executive (Excl SIU),52.3,Public Transport,1920Apr_PC00038
Sandwell Metropolitan Borough Council,http://www.sandwell.gov.uk/info/200202/performance_and_spending/3233/government_procurement_cards,05-Apr-19,Resources (Inc SIU),Cross Country Trains,Assistant Chief Executive (Excl SIU),3.99,Public Transport,1920Apr_PC00039
Sandwell Metropolitan Borough Council,http://www.sandwell.gov.uk/info/200202/performance_and_spending/3233/government_procurement_cards,05-Apr-19,Corporate Management,Trainline,Corporate Management,7.99,Public Transport,1920Apr_PC00040
Sandwell Metropolitan Borough Council,http://www.sandwell.gov.uk/info/200202/performance_and_spending/3233/government_procurement_cards,05-Apr-19,Housing & Communities,TANI SKLEP WEST BROM,Neighbourhoods,6.07,Catering Provisions,1920Apr_PC00041
Sandwell Metropolitan Borough Council,http://www.sandwell.gov.uk/info/200202/performance_and_spending/3233/government_procurement_cards,05-Apr-19,Corporate Management,Trainline,Corporate Management,21.14,Public Transport,1920Apr_PC00042
Sandwell Metropolitan Borough Council,http://www.sandwell.gov.uk/info/200202/performance_and_spending/3233/government_procurement_cards,05-Apr-19,Childrens Services,OEAP,Childrens Services,10.65,Subscriptions,1920Apr_PC00043
Sandwell Metropolitan Borough Council,http://www.sandwell.gov.uk/info/200202/performance_and_spending/3233/government_procurement_cards,05-Apr-19,Resources (Inc SIU),WWW.MONEYCLAIM.GOV,Assistant Chief Executive (Excl SIU),22.11,Professional Services External,1920Apr_PC00044
Sandwell Metropolitan Borough Council,http://www.sandwell.gov.uk/info/200202/performance_and_spending/3233/government_procurement_cards,05-Apr-19,Adult Social Care Health and Wellbeing - Total,AMZNMktplace,Total Adult Social Care,36.73,Materials & Consumables,1920Apr_PC00045
Sandwell Metropolitan Borough Council,http://www.sandwell.gov.uk/info/200202/performance_and_spending/3233/government_procurement_cards,05-Apr-19,Individual School Budgets With Inclusion,PAPERSTONE LIMITED,Individual School Budgets With Inclusion,80,ICT,1920Apr_PC00046
Sandwell Metropolitan Borough Council,http://www.sandwell.gov.uk/info/200202/performance_and_spending/3233/government_procurement_cards,05-Apr-19,Corporate Management,Trainline,Corporate Management,36.36,Public Transport,1920Apr_PC00047
Sandwell Metropolitan Borough Council,http://www.sandwell.gov.uk/info/200202/performance_and_spending/3233/government_procurement_cards,05-Apr-19,Childrens Services,ASDA STORES LTD 5865,Childrens Services,-0.47,Materials & Consumables,1920Apr_PC00048
Sandwell Metropolitan Borough Council,http://www.sandwell.gov.uk/info/200202/performance_and_spending/3233/government_procurement_cards,05-Apr-19,Corporate Management,Trainline.com,Corporate Management,24.71,Public Transport,1920Apr_PC00049
Sandwell Metropolitan Borough Council,http://www.sandwell.gov.uk/info/200202/performance_and_spending/3233/government_procurement_cards,05-Apr-19,Corporate Management,Trainline.com,Corporate Management,72.16,Public Transport,1920Apr_PC00050
Sandwell Metropolitan Borough Council,http://www.sandwell.gov.uk/info/200202/performance_and_spending/3233/government_procurement_cards,05-Apr-19,Corporate Management,Trainline.com,Corporate Management,1.84,Public Transport,1920Apr_PC00051
Sandwell Metropolitan Borough Council,http://www.sandwell.gov.uk/info/200202/performance_and_spending/3233/government_procurement_cards,05-Apr-19,Corporate Management,Trainline.com,Corporate Management,38.94,Public Transport,1920Apr_PC00052
Sandwell Metropolitan Borough Council,http://www.sandwell.gov.uk/info/200202/performance_and_spending/3233/government_procurement_cards,05-Apr-19,Regeneration & Growth,Amazon.co.uk MZ6805E54,Regeneration And The Economy,66.24,R& M - Building Maint&Imp.,1920Apr_PC00053
Sandwell Metropolitan Borough Council,http://www.sandwell.gov.uk/info/200202/performance_and_spending/3233/government_procurement_cards,05-Apr-19,Childrens Services,TESCO STORES 3398,Childrens Services,44.57,"Postages, Carriage & Courier Services",1920Apr_PC00054
Sandwell Metropolitan Borough Council,http://www.sandwell.gov.uk/info/200202/performance_and_spending/3233/government_procurement_cards,05-Apr-19,Individual School Budgets With Inclusion,THE BOOK PEOPLE,Individual School Budgets With Inclusion,99.99,Learning Resources,1920Apr_PC00055
Sandwell Metropolitan Borough Council,http://www.sandwell.gov.uk/info/200202/performance_and_spending/3233/government_procurement_cards,05-Apr-19,Childrens Services,OEAP,Childrens Services,389.6,Subscriptions,1920Apr_PC00056
Sandwell Metropolitan Borough Council,http://www.sandwell.gov.uk/info/200202/performance_and_spending/3233/government_procurement_cards,05-Apr-19,Individual School Budgets With Inclusion,AMZNMktplace,Individual School Budgets With Inclusion,389.6,Materials & Consumables,1920Apr_PC00057
Sandwell Metropolitan Borough Council,http://www.sandwell.gov.uk/info/200202/performance_and_spending/3233/government_procurement_cards,05-Apr-19,Resources (Inc SIU),WEST MIDLANDS METRO,Assistant Chief Executive (Excl SIU),4.58,Public Transport,1920Apr_PC00058
Sandwell Metropolitan Borough Council,http://www.sandwell.gov.uk/info/200202/performance_and_spending/3233/government_procurement_cards,05-Apr-19,Adult Social Care Health and Wellbeing - Total,AMZNMktplace,Total Adult Social Care,2.32,Printing Stationery&Gen Office,1920Apr_PC00059
Sandwell Metropolitan Borough Council,http://www.sandwell.gov.uk/info/200202/performance_and_spending/3233/government_procurement_cards,05-Apr-19,Adult Social Care Health and Wellbeing - Total,FOOD SAFETY DIRECT,Total Adult Social Care,41.74,Printing Stationery&Gen Office,1920Apr_PC00060
Sandwell Metropolitan Borough Council,http://www.sandwell.gov.uk/info/200202/performance_and_spending/3233/government_procurement_cards,05-Apr-19,Adult Social Care Health and Wellbeing - Total,AMZN Mktp UK MZ9K98ER4,Total Adult Social Care,9.85,Printing Stationery&Gen Office,1920Apr_PC00061
Sandwell Metropolitan Borough Council,http://www.sandwell.gov.uk/info/200202/performance_and_spending/3233/government_procurement_cards,05-Apr-19,Adult Social Care Health and Wellbeing - Total,AMZNMktplace,Total Adult Social Care,81,Printing Stationery&Gen Office,1920Apr_PC00062
Sandwell Metropolitan Borough Council,http://www.sandwell.gov.uk/info/200202/performance_and_spending/3233/government_procurement_cards,05-Apr-19,Adult Social Care Health and Wellbeing - Total,AMZN Mktp UK MZ5K68E24,Total Adult Social Care,23.55,Printing Stationery&Gen Office,1920Apr_PC00063
Sandwell Metropolitan Borough Council,http://www.sandwell.gov.uk/info/200202/performance_and_spending/3233/government_procurement_cards,08-Apr-19,Regeneration & Growth,AMZNMKTPLACE AMAZON.CO,Regeneration And The Economy,35.98,Equipment & Furniture,1920Apr_PC00064
Sandwell Metropolitan Borough Council,http://www.sandwell.gov.uk/info/200202/performance_and_spending/3233/government_procurement_cards,08-Apr-19,Adult Social Care Health and Wellbeing - Total,WWW.POSTOFFICESHOP.CO.,Total Adult Social Care,17.86,Printing Stationery&Gen Office,1920Apr_PC00065
Sandwell Metropolitan Borough Council,http://www.sandwell.gov.uk/info/200202/performance_and_spending/3233/government_procurement_cards,08-Apr-19,Adult Social Care Health and Wellbeing - Total,MEDIA & COMMUNICATIONS,Total Adult Social Care,157.5,ICT,1920Apr_PC00066
Sandwell Metropolitan Borough Council,http://www.sandwell.gov.uk/info/200202/performance_and_spending/3233/government_procurement_cards,08-Apr-19,Total Housing Revenue Account,C I H,Total Housing Revenue Account,262.5,Conference Expenses,1920Apr_PC00067
Sandwell Metropolitan Borough Council,http://www.sandwell.gov.uk/info/200202/performance_and_spending/3233/government_procurement_cards,08-Apr-19,Housing & Communities,AMZN Mktp UK MZ0ZX51Q4,Neighbourhoods,204.17,Equipment & Furniture,1920Apr_PC00068
Sandwell Metropolitan Borough Council,http://www.sandwell.gov.uk/info/200202/performance_and_spending/3233/government_procurement_cards,08-Apr-19,Resources (Inc SIU),AMZNMktplace,Assistant Chief Executive (Excl SIU),12.15,Printing Stationery&Gen Office,1920Apr_PC00069
Sandwell Metropolitan Borough Council,http://www.sandwell.gov.uk/info/200202/performance_and_spending/3233/government_procurement_cards,08-Apr-19,Resources (Inc SIU),AMZNMktplace,Assistant Chief Executive (Excl SIU),5.19,ICT,1920Apr_PC00070
Sandwell Metropolitan Borough Council,http://www.sandwell.gov.uk/info/200202/performance_and_spending/3233/government_procurement_cards,08-Apr-19,Housing & Communities,EVERYTHING BRANDED,Neighbourhoods,34.74,Ind. Emp Exp-Advertising,1920Apr_PC00071
Sandwell Metropolitan Borough Council,http://www.sandwell.gov.uk/info/200202/performance_and_spending/3233/government_procurement_cards,08-Apr-19,Total Housing Revenue Account,OFFICE DEPOT UK,Total Housing Revenue Account,7.16,Materials & Consumables,1920Apr_PC00072
Sandwell Metropolitan Borough Council,http://www.sandwell.gov.uk/info/200202/performance_and_spending/3233/government_procurement_cards,08-Apr-19,Housing & Communities,OFFICE DEPOT UK,Neighbourhoods,183.31,Printing Stationery&Gen Office,1920Apr_PC00073
Sandwell Metropolitan Borough Council,http://www.sandwell.gov.uk/info/200202/performance_and_spending/3233/government_procurement_cards,08-Apr-19,Childrens Services,POST OFFICE COUNTER,Childrens Services,201.63,"Postages, Carriage & Courier Services",1920Apr_PC00074
Sandwell Metropolitan Borough Council,http://www.sandwell.gov.uk/info/200202/performance_and_spending/3233/government_procurement_cards,08-Apr-19,Adult Social Care Health and Wellbeing - Total,WWW.LICENCEPLUS.CO.UK,Total Adult Social Care,30,Licences&Test Fees,1920Apr_PC00075
Sandwell Metropolitan Borough Council,http://www.sandwell.gov.uk/info/200202/performance_and_spending/3233/government_procurement_cards,08-Apr-19,Resources (Inc SIU),OFFICE DEPOT UK,Assistant Chief Executive (Excl SIU),28.34,Printing Stationery&Gen Office,1920Apr_PC00076
Sandwell Metropolitan Borough Council,http://www.sandwell.gov.uk/info/200202/performance_and_spending/3233/government_procurement_cards,08-Apr-19,Corporate Management,Trainline,Corporate Management,4.6,Public Transport,1920Apr_PC00077
Sandwell Metropolitan Borough Council,http://www.sandwell.gov.uk/info/200202/performance_and_spending/3233/government_procurement_cards,08-Apr-19,Housing & Communities,Trainline,Neighbourhoods,717,Public Transport,1920Apr_PC00078
Sandwell Metropolitan Borough Council,http://www.sandwell.gov.uk/info/200202/performance_and_spending/3233/government_procurement_cards,08-Apr-19,Resources (Inc SIU),Amazon.co.uk MZ6NH90H4,Assistant Chief Executive (Excl SIU),6.99,ICT,1920Apr_PC00079
Sandwell Metropolitan Borough Council,http://www.sandwell.gov.uk/info/200202/performance_and_spending/3233/government_procurement_cards,08-Apr-19,Adult Social Care Health and Wellbeing - Total,Amazon.co.uk MZ6C110G4,Total Adult Social Care,60,Materials & Consumables,1920Apr_PC00080
Sandwell Metropolitan Borough Council,http://www.sandwell.gov.uk/info/200202/performance_and_spending/3233/government_procurement_cards,08-Apr-19,Housing & Communities,SCREWFIX WEST BROMWICH,Neighbourhoods,4.6,R& M - Building Maint&Imp.,1920Apr_PC00081
Sandwell Metropolitan Borough Council,http://www.sandwell.gov.uk/info/200202/performance_and_spending/3233/government_procurement_cards,08-Apr-19,Childrens Services,TESCO STORES 2335,Childrens Services,27.69,Materials & Consumables,1920Apr_PC00082
Sandwell Metropolitan Borough Council,http://www.sandwell.gov.uk/info/200202/performance_and_spending/3233/government_procurement_cards,08-Apr-19,Childrens Services,NEW SQUARE CAR PK,Childrens Services,2.64,Car Parking,1920Apr_PC00083
Sandwell Metropolitan Borough Council,http://www.sandwell.gov.uk/info/200202/performance_and_spending/3233/government_procurement_cards,08-Apr-19,Childrens Services,SAINSBURYS SACAT 0756,Childrens Services,63,Catering Equipment,1920Apr_PC00084
Sandwell Metropolitan Borough Council,http://www.sandwell.gov.uk/info/200202/performance_and_spending/3233/government_procurement_cards,08-Apr-19,Housing & Communities,WM MORRISONS STORE,Neighbourhoods,67.8,Materials & Consumables,1920Apr_PC00085
Sandwell Metropolitan Borough Council,http://www.sandwell.gov.uk/info/200202/performance_and_spending/3233/government_procurement_cards,08-Apr-19,Housing & Communities,AMZNMKTPLACE AMAZON.CO,Neighbourhoods,17.45,Equipment & Furniture,1920Apr_PC00086
Sandwell Metropolitan Borough Council,http://www.sandwell.gov.uk/info/200202/performance_and_spending/3233/government_procurement_cards,08-Apr-19,Regeneration & Growth,Amazon Prime MZ7G03PZ4,Regeneration And The Economy,8.4,ICT,1920Apr_PC00087
Sandwell Metropolitan Borough Council,http://www.sandwell.gov.uk/info/200202/performance_and_spending/3233/government_procurement_cards,08-Apr-19,Adult Social Care Health and Wellbeing - Total,Amazon.co.uk MZ47L6PY4,Total Adult Social Care,425,Materials & Consumables,1920Apr_PC00088
Sandwell Metropolitan Borough Council,http://www.sandwell.gov.uk/info/200202/performance_and_spending/3233/government_procurement_cards,08-Apr-19,Adult Social Care Health and Wellbeing - Total,Amazon.co.uk MZ88111I4,Total Adult Social Care,35.57,Materials & Consumables,1920Apr_PC00089
Sandwell Metropolitan Borough Council,http://www.sandwell.gov.uk/info/200202/performance_and_spending/3233/government_procurement_cards,09-Apr-19,Housing & Communities,TESCO STORES 5362,Neighbourhoods,38.11,Materials & Consumables,1920Apr_PC00090
Sandwell Metropolitan Borough Council,http://www.sandwell.gov.uk/info/200202/performance_and_spending/3233/government_procurement_cards,09-Apr-19,Housing & Communities,TESCO STORES 5362,Neighbourhoods,20.8,Materials & Consumables,1920Apr_PC00091
Sandwell Metropolitan Borough Council,http://www.sandwell.gov.uk/info/200202/performance_and_spending/3233/government_procurement_cards,09-Apr-19,Resources Capital,AMZNMktplace,Resources Capital,15.62,ICT,1920Apr_PC00092
Sandwell Metropolitan Borough Council,http://www.sandwell.gov.uk/info/200202/performance_and_spending/3233/government_procurement_cards,09-Apr-19,Housing & Communities,WWW.COINADRINK.CO.UK,Neighbourhoods,8.33,Catering Provisions,1920Apr_PC00093
Sandwell Metropolitan Borough Council,http://www.sandwell.gov.uk/info/200202/performance_and_spending/3233/government_procurement_cards,09-Apr-19,Childrens Services,WWW.WEIGHTMANS.COM,Childrens Services,61.56,Professional Services External,1920Apr_PC00094
Sandwell Metropolitan Borough Council,http://www.sandwell.gov.uk/info/200202/performance_and_spending/3233/government_procurement_cards,09-Apr-19,Childrens Services,WWW.WEIGHTMANS.COM,Childrens Services,1.17,Professional Services External,1920Apr_PC00095
Sandwell Metropolitan Borough Council,http://www.sandwell.gov.uk/info/200202/performance_and_spending/3233/government_procurement_cards,09-Apr-19,Childrens Services,PLASTOR LIMITED,Childrens Services,7.48,Equipment & Furniture,1920Apr_PC00096
Sandwell Metropolitan Borough Council,http://www.sandwell.gov.uk/info/200202/performance_and_spending/3233/government_procurement_cards,09-Apr-19,Childrens Services,BIGDUG LIMITED,Childrens Services,116.5,Equipment & Furniture,1920Apr_PC00097
Sandwell Metropolitan Borough Council,http://www.sandwell.gov.uk/info/200202/performance_and_spending/3233/government_procurement_cards,09-Apr-19,Childrens Services,ASDA STORES LTD 5865,Childrens Services,205.83,Materials & Consumables,1920Apr_PC00098
Sandwell Metropolitan Borough Council,http://www.sandwell.gov.uk/info/200202/performance_and_spending/3233/government_procurement_cards,09-Apr-19,Housing & Communities,THE RANGE,Neighbourhoods,23.32,Materials & Consumables,1920Apr_PC00099
Sandwell Metropolitan Borough Council,http://www.sandwell.gov.uk/info/200202/performance_and_spending/3233/government_procurement_cards,09-Apr-19,Resources (Inc SIU),AMZNMktplace,Assistant Chief Executive (Excl SIU),23.32,Materials & Consumables,1920Apr_PC00100
Sandwell Metropolitan Borough Council,http://www.sandwell.gov.uk/info/200202/performance_and_spending/3233/government_procurement_cards,09-Apr-19,Housing & Communities,TESCO STORES 2335,Neighbourhoods,36.95,Materials & Consumables,1920Apr_PC00101
Sandwell Metropolitan Borough Council,http://www.sandwell.gov.uk/info/200202/performance_and_spending/3233/government_procurement_cards,09-Apr-19,Housing & Communities,HIGHFIELD HOUSE HO,Neighbourhoods,30.27,Rents,1920Apr_PC00102
Sandwell Metropolitan Borough Council,http://www.sandwell.gov.uk/info/200202/performance_and_spending/3233/government_procurement_cards,09-Apr-19,Housing & Communities,HIGHFIELD HOUSE HO,Neighbourhoods,276,Rents,1920Apr_PC00103
Sandwell Metropolitan Borough Council,http://www.sandwell.gov.uk/info/200202/performance_and_spending/3233/government_procurement_cards,09-Apr-19,Resources (Inc SIU),LAW SOCIETY FINANC,Assistant Chief Executive (Excl SIU),15.83,Subscriptions,1920Apr_PC00104
Sandwell Metropolitan Borough Council,http://www.sandwell.gov.uk/info/200202/performance_and_spending/3233/government_procurement_cards,09-Apr-19,Regeneration & Growth,WWW.SOLACE.ORG.UK,Regeneration And The Economy,2.5,Ind. Emp Exp-Staff Dev&Training,1920Apr_PC00105
Sandwell Metropolitan Borough Council,http://www.sandwell.gov.uk/info/200202/performance_and_spending/3233/government_procurement_cards,09-Apr-19,Housing & Communities,AMZNMktplace,Neighbourhoods,77.49,Materials & Consumables,1920Apr_PC00106
Sandwell Metropolitan Borough Council,http://www.sandwell.gov.uk/info/200202/performance_and_spending/3233/government_procurement_cards,09-Apr-19,Housing & Communities,ARGOS RETAIL GROUP,Neighbourhoods,188.72,Equipment & Furniture,1920Apr_PC00107
Sandwell Metropolitan Borough Council,http://www.sandwell.gov.uk/info/200202/performance_and_spending/3233/government_procurement_cards,09-Apr-19,Childrens Services,WWW.NISBETS.COM,Childrens Services,7.42,Catering Equipment,1920Apr_PC00108
Sandwell Metropolitan Borough Council,http://www.sandwell.gov.uk/info/200202/performance_and_spending/3233/government_procurement_cards,09-Apr-19,Housing & Communities,POUNDLAND LTD 1576,Neighbourhoods,27.41,Materials & Consumables,1920Apr_PC00109
Sandwell Metropolitan Borough Council,http://www.sandwell.gov.uk/info/200202/performance_and_spending/3233/government_procurement_cards,09-Apr-19,Resources (Inc SIU),OFFICE DEPOT UK,Assistant Chief Executive (Excl SIU),91.02,Printing Stationery&Gen Office,1920Apr_PC00110
Sandwell Metropolitan Borough Council,http://www.sandwell.gov.uk/info/200202/performance_and_spending/3233/government_procurement_cards,09-Apr-19,Housing & Communities,OFFICE DEPOT UK,Neighbourhoods,30.41,Printing Stationery&Gen Office,1920Apr_PC00111
Sandwell Metropolitan Borough Council,http://www.sandwell.gov.uk/info/200202/performance_and_spending/3233/government_procurement_cards,09-Apr-19,Housing & Communities,OFFICE DEPOT UK,Neighbourhoods,33.32,Printing Stationery&Gen Office,1920Apr_PC00112
Sandwell Metropolitan Borough Council,http://www.sandwell.gov.uk/info/200202/performance_and_spending/3233/government_procurement_cards,09-Apr-19,Individual School Budgets With Inclusion,Trainline,Individual School Budgets With Inclusion,21.22,Public Transport,1920Apr_PC00113
Sandwell Metropolitan Borough Council,http://www.sandwell.gov.uk/info/200202/performance_and_spending/3233/government_procurement_cards,09-Apr-19,Childrens Services,ASDA STORES LTD 5865,Childrens Services,40,Materials & Consumables,1920Apr_PC00114
Sandwell Metropolitan Borough Council,http://www.sandwell.gov.uk/info/200202/performance_and_spending/3233/government_procurement_cards,09-Apr-19,Adult Social Care Health and Wellbeing - Total,TIMPSON LTD,Total Adult Social Care,37.46,Printing Stationery&Gen Office,1920Apr_PC00115
Sandwell Metropolitan Borough Council,http://www.sandwell.gov.uk/info/200202/performance_and_spending/3233/government_procurement_cards,09-Apr-19,Housing & Communities,WWW.COINADRINK.CO.UK,Neighbourhoods,8.32,Catering Provisions,1920Apr_PC00116
Sandwell Metropolitan Borough Council,http://www.sandwell.gov.uk/info/200202/performance_and_spending/3233/government_procurement_cards,09-Apr-19,Regeneration & Growth,SUBWAY,Regeneration And The Economy,19.16,Catering Provisions,1920Apr_PC00117
Sandwell Metropolitan Borough Council,http://www.sandwell.gov.uk/info/200202/performance_and_spending/3233/government_procurement_cards,09-Apr-19,Regeneration & Growth,OFFICE DEPOT UK,Regeneration And The Economy,49.5,Equipment & Furniture,1920Apr_PC00118
Sandwell Metropolitan Borough Council,http://www.sandwell.gov.uk/info/200202/performance_and_spending/3233/government_procurement_cards,09-Apr-19,Resources (Inc SIU),Virgin Trains,Assistant Chief Executive (Excl SIU),525,Public Transport,1920Apr_PC00119
Sandwell Metropolitan Borough Council,http://www.sandwell.gov.uk/info/200202/performance_and_spending/3233/government_procurement_cards,09-Apr-19,Housing & Communities,OFFICE DEPOT UK,Neighbourhoods,8.82,Printing Stationery&Gen Office,1920Apr_PC00120
Sandwell Metropolitan Borough Council,http://www.sandwell.gov.uk/info/200202/performance_and_spending/3233/government_procurement_cards,09-Apr-19,Regeneration & Growth,Trainline.com,Regeneration And The Economy,54.87,Public Transport,1920Apr_PC00121
Sandwell Metropolitan Borough Council,http://www.sandwell.gov.uk/info/200202/performance_and_spending/3233/government_procurement_cards,09-Apr-19,Childrens Services,MACHINE MART WEB,Childrens Services,109.22,Grounds Maint&Improvements,1920Apr_PC00122
Sandwell Metropolitan Borough Council,http://www.sandwell.gov.uk/info/200202/performance_and_spending/3233/government_procurement_cards,09-Apr-19,Housing & Communities,EDGBASTON PALACE,Neighbourhoods,525,Operational Services,1920Apr_PC00123
Sandwell Metropolitan Borough Council,http://www.sandwell.gov.uk/info/200202/performance_and_spending/3233/government_procurement_cards,10-Apr-19,Housing & Communities,AMZN MKTP UK MZ2D69GQ4,Neighbourhoods,5.39,Equipment & Furniture,1920Apr_PC00124
Sandwell Metropolitan Borough Council,http://www.sandwell.gov.uk/info/200202/performance_and_spending/3233/government_procurement_cards,10-Apr-19,Housing & Communities,DECATHLON UK,Neighbourhoods,4.98,Equipment & Furniture,1920Apr_PC00125
Sandwell Metropolitan Borough Council,http://www.sandwell.gov.uk/info/200202/performance_and_spending/3233/government_procurement_cards,10-Apr-19,Housing & Communities,AMZN MKTP UK MZ2QL2GA4,Neighbourhoods,12.49,Materials & Consumables,1920Apr_PC00126
Sandwell Metropolitan Borough Council,http://www.sandwell.gov.uk/info/200202/performance_and_spending/3233/government_procurement_cards,10-Apr-19,Housing & Communities,AMZNMKTPLACE AMAZON.CO,Neighbourhoods,1.82,Materials & Consumables,1920Apr_PC00127
Sandwell Metropolitan Borough Council,http://www.sandwell.gov.uk/info/200202/performance_and_spending/3233/government_procurement_cards,10-Apr-19,Total Housing Revenue Account,MIDLAND JETTING SERVIC,Total Housing Revenue Account,24.95,Materials & Consumables,1920Apr_PC00128
Sandwell Metropolitan Borough Council,http://www.sandwell.gov.uk/info/200202/performance_and_spending/3233/government_procurement_cards,10-Apr-19,Regeneration & Growth,SAINSBURYS 0558,Regeneration And The Economy,163.6,Catering Provisions,1920Apr_PC00129
Sandwell Metropolitan Borough Council,http://www.sandwell.gov.uk/info/200202/performance_and_spending/3233/government_procurement_cards,10-Apr-19,Housing & Communities,BLACK COUNTRY CHAMBER,Neighbourhoods,33.78,Subscriptions,1920Apr_PC00130
Sandwell Metropolitan Borough Council,http://www.sandwell.gov.uk/info/200202/performance_and_spending/3233/government_procurement_cards,10-Apr-19,Childrens Services,ASDA STORES,Childrens Services,48.83,Catering Provisions,1920Apr_PC00131
Sandwell Metropolitan Borough Council,http://www.sandwell.gov.uk/info/200202/performance_and_spending/3233/government_procurement_cards,10-Apr-19,Childrens Services,ASDA STORES,Childrens Services,30,Equipment & Furniture,1920Apr_PC00132
Sandwell Metropolitan Borough Council,http://www.sandwell.gov.uk/info/200202/performance_and_spending/3233/government_procurement_cards,10-Apr-19,Housing & Communities,SAINSBURYS 0558,Neighbourhoods,69.93,Materials & Consumables,1920Apr_PC00133
Sandwell Metropolitan Borough Council,http://www.sandwell.gov.uk/info/200202/performance_and_spending/3233/government_procurement_cards,10-Apr-19,Housing & Communities,SAINSBURYS 0558,Neighbourhoods,2.5,Materials & Consumables,1920Apr_PC00134
Sandwell Metropolitan Borough Council,http://www.sandwell.gov.uk/info/200202/performance_and_spending/3233/government_procurement_cards,10-Apr-19,Childrens Services,BEEBYS BUBBLES,Childrens Services,16.2,Laundry,1920Apr_PC00135
Sandwell Metropolitan Borough Council,http://www.sandwell.gov.uk/info/200202/performance_and_spending/3233/government_procurement_cards,10-Apr-19,Childrens Services,HANDY DRY CLEANERS,Childrens Services,171.16,Laundry,1920Apr_PC00136
Sandwell Metropolitan Borough Council,http://www.sandwell.gov.uk/info/200202/performance_and_spending/3233/government_procurement_cards,10-Apr-19,Housing & Communities,POUNDLAND LTD 1729,Neighbourhoods,20.41,Materials & Consumables,1920Apr_PC00137
Sandwell Metropolitan Borough Council,http://www.sandwell.gov.uk/info/200202/performance_and_spending/3233/government_procurement_cards,10-Apr-19,Housing & Communities,HIGHFIELD HOUSE HO,Neighbourhoods,19,Rents,1920Apr_PC00138
Sandwell Metropolitan Borough Council,http://www.sandwell.gov.uk/info/200202/performance_and_spending/3233/government_procurement_cards,10-Apr-19,Resources (Inc SIU),POUNDLAND,Assistant Chief Executive (Excl SIU),12.97,Equipment & Furniture,1920Apr_PC00139
Sandwell Metropolitan Borough Council,http://www.sandwell.gov.uk/info/200202/performance_and_spending/3233/government_procurement_cards,10-Apr-19,Adult Social Care Health and Wellbeing - Total,MEDIA & COMMUNICATIONS,Total Adult Social Care,3,ICT,1920Apr_PC00140
Sandwell Metropolitan Borough Council,http://www.sandwell.gov.uk/info/200202/performance_and_spending/3233/government_procurement_cards,10-Apr-19,Childrens Services,AMZNMktplace,Childrens Services,125.92,Materials & Consumables,1920Apr_PC00141
Sandwell Metropolitan Borough Council,http://www.sandwell.gov.uk/info/200202/performance_and_spending/3233/government_procurement_cards,10-Apr-19,Housing & Communities,ASDA SUPERSTORE,Neighbourhoods,18.63,Materials & Consumables,1920Apr_PC00142
Sandwell Metropolitan Borough Council,http://www.sandwell.gov.uk/info/200202/performance_and_spending/3233/government_procurement_cards,10-Apr-19,Regeneration & Growth,VUE NCS CITB HS&E TEST,Regeneration And The Economy,18.5,Ind. Emp Exp-Staff Dev&Training,1920Apr_PC00143
Sandwell Metropolitan Borough Council,http://www.sandwell.gov.uk/info/200202/performance_and_spending/3233/government_procurement_cards,10-Apr-19,Childrens Services,ASDA GROCERIES ONLINE,Childrens Services,18.32,Catering Provisions,1920Apr_PC00144
Sandwell Metropolitan Borough Council,http://www.sandwell.gov.uk/info/200202/performance_and_spending/3233/government_procurement_cards,10-Apr-19,Childrens Services,ASDA GROCERIES ONLINE,Childrens Services,63.19,Catering Provisions,1920Apr_PC00145
Sandwell Metropolitan Borough Council,http://www.sandwell.gov.uk/info/200202/performance_and_spending/3233/government_procurement_cards,10-Apr-19,Childrens Services,AMZNMktplace,Childrens Services,494.25,Materials & Consumables,1920Apr_PC00146
Sandwell Metropolitan Borough Council,http://www.sandwell.gov.uk/info/200202/performance_and_spending/3233/government_procurement_cards,10-Apr-19,Housing & Communities,LIDL GB WEST BROMWICH,Neighbourhoods,380,Catering Provisions,1920Apr_PC00147
Sandwell Metropolitan Borough Council,http://www.sandwell.gov.uk/info/200202/performance_and_spending/3233/government_procurement_cards,10-Apr-19,Childrens Services,ASDA STORES,Childrens Services,19.14,Catering Provisions,1920Apr_PC00148
Sandwell Metropolitan Borough Council,http://www.sandwell.gov.uk/info/200202/performance_and_spending/3233/government_procurement_cards,10-Apr-19,Childrens Services,OFFICE DEPOT UK,Childrens Services,49.11,Equipment & Furniture,1920Apr_PC00149
Sandwell Metropolitan Borough Council,http://www.sandwell.gov.uk/info/200202/performance_and_spending/3233/government_procurement_cards,10-Apr-19,Childrens Services,POST OFFICE COUNTER,Childrens Services,18,"Postages, Carriage & Courier Services",1920Apr_PC00150
Sandwell Metropolitan Borough Council,http://www.sandwell.gov.uk/info/200202/performance_and_spending/3233/government_procurement_cards,10-Apr-19,Childrens Services,POST OFFICE COUNTER,Childrens Services,3,"Postages, Carriage & Courier Services",1920Apr_PC00151
Sandwell Metropolitan Borough Council,http://www.sandwell.gov.uk/info/200202/performance_and_spending/3233/government_procurement_cards,10-Apr-19,Childrens Services,POST OFFICE COUNTER,Childrens Services,71.73,Professional Services External,1920Apr_PC00152
Sandwell Metropolitan Borough Council,http://www.sandwell.gov.uk/info/200202/performance_and_spending/3233/government_procurement_cards,10-Apr-19,Regeneration & Growth,Trainline.com,Regeneration And The Economy,87.8,Public Transport,1920Apr_PC00153
Sandwell Metropolitan Borough Council,http://www.sandwell.gov.uk/info/200202/performance_and_spending/3233/government_procurement_cards,10-Apr-19,Resources (Inc SIU),SAINSBURYS SACAT0558,Assistant Chief Executive (Excl SIU),80,Catering Provisions,1920Apr_PC00154
Sandwell Metropolitan Borough Council,http://www.sandwell.gov.uk/info/200202/performance_and_spending/3233/government_procurement_cards,10-Apr-19,Resources (Inc SIU),WWW.MONEYCLAIM.GOV,Assistant Chief Executive (Excl SIU),770,Professional Services External,1920Apr_PC00155
Sandwell Metropolitan Borough Council,http://www.sandwell.gov.uk/info/200202/performance_and_spending/3233/government_procurement_cards,10-Apr-19,Housing & Communities,AMZNMktplace,Neighbourhoods,11.95,Materials & Consumables,1920Apr_PC00156
Sandwell Metropolitan Borough Council,http://www.sandwell.gov.uk/info/200202/performance_and_spending/3233/government_procurement_cards,10-Apr-19,Housing & Communities,WOLVERHAMPTON CC,Neighbourhoods,80.5,Car Parking,1920Apr_PC00157
Sandwell Metropolitan Borough Council,http://www.sandwell.gov.uk/info/200202/performance_and_spending/3233/government_procurement_cards,10-Apr-19,Childrens Services,LIDL GB PORTHMADOG,Childrens Services,19.56,Catering Provisions,1920Apr_PC00158
Sandwell Metropolitan Borough Council,http://www.sandwell.gov.uk/info/200202/performance_and_spending/3233/government_procurement_cards,11-Apr-19,Total Housing Revenue Account,AMZNMktplace,Total Housing Revenue Account,10.89,Materials & Consumables,1920Apr_PC00159
Sandwell Metropolitan Borough Council,http://www.sandwell.gov.uk/info/200202/performance_and_spending/3233/government_procurement_cards,11-Apr-19,Total Housing Revenue Account,AMZN Mktp UK MZ72V9VR4,Total Housing Revenue Account,26.24,Materials & Consumables,1920Apr_PC00160
Sandwell Metropolitan Borough Council,http://www.sandwell.gov.uk/info/200202/performance_and_spending/3233/government_procurement_cards,11-Apr-19,Adult Social Care Health and Wellbeing - Total,WORKWEAR EXPRESS LIMIT,Total Adult Social Care,17.98,Protective Clothing&Uniforms,1920Apr_PC00161
Sandwell Metropolitan Borough Council,http://www.sandwell.gov.uk/info/200202/performance_and_spending/3233/government_procurement_cards,11-Apr-19,Adult Social Care Health and Wellbeing - Total,WORKWEAR EXPRESS LIMIT,Total Adult Social Care,42.11,Protective Clothing&Uniforms,1920Apr_PC00162
Sandwell Metropolitan Borough Council,http://www.sandwell.gov.uk/info/200202/performance_and_spending/3233/government_procurement_cards,11-Apr-19,Childrens Services,WILKO RETAIL LIMIT,Childrens Services,128.72,Materials & Consumables,1920Apr_PC00163
Sandwell Metropolitan Borough Council,http://www.sandwell.gov.uk/info/200202/performance_and_spending/3233/government_procurement_cards,11-Apr-19,Total Housing Revenue Account,AMZNMKTPLACE AMAZON.CO,Total Housing Revenue Account,30.73,Equipment & Furniture,1920Apr_PC00164
Sandwell Metropolitan Borough Council,http://www.sandwell.gov.uk/info/200202/performance_and_spending/3233/government_procurement_cards,11-Apr-19,Childrens Services,ASDA STORES 4253,Childrens Services,9.99,Materials & Consumables,1920Apr_PC00165
Sandwell Metropolitan Borough Council,http://www.sandwell.gov.uk/info/200202/performance_and_spending/3233/government_procurement_cards,11-Apr-19,Total Housing Revenue Account,AMZNMKTPLACE AMAZON.CO,Total Housing Revenue Account,-3.76,Printing Stationery&Gen Office,1920Apr_PC00166
Sandwell Metropolitan Borough Council,http://www.sandwell.gov.uk/info/200202/performance_and_spending/3233/government_procurement_cards,11-Apr-19,Housing & Communities,EDGBASTON PALACE,Neighbourhoods,64.81,Rents,1920Apr_PC00167
Sandwell Metropolitan Borough Council,http://www.sandwell.gov.uk/info/200202/performance_and_spending/3233/government_procurement_cards,11-Apr-19,Resources (Inc SIU),EB  WORKSHOP BEING AN,Assistant Chief Executive (Excl SIU),29.14,Conference Expenses,1920Apr_PC00168
Sandwell Metropolitan Borough Council,http://www.sandwell.gov.uk/info/200202/performance_and_spending/3233/government_procurement_cards,11-Apr-19,Resources (Inc SIU),FD SOLUTIONS LTD,Assistant Chief Executive (Excl SIU),49.99,Printing Stationery&Gen Office,1920Apr_PC00169
Sandwell Metropolitan Borough Council,http://www.sandwell.gov.uk/info/200202/performance_and_spending/3233/government_procurement_cards,11-Apr-19,Total Housing Revenue Account,AMZNMktplace,Total Housing Revenue Account,55.99,Equipment & Furniture,1920Apr_PC00170
Sandwell Metropolitan Borough Council,http://www.sandwell.gov.uk/info/200202/performance_and_spending/3233/government_procurement_cards,11-Apr-19,Childrens Services,OUT OF SCHOOL ALLIANCE,Childrens Services,37.54,Printing Stationery&Gen Office,1920Apr_PC00171
Sandwell Metropolitan Borough Council,http://www.sandwell.gov.uk/info/200202/performance_and_spending/3233/government_procurement_cards,11-Apr-19,Childrens Services,AMZNMktplace,Childrens Services,4.89,Equipment & Furniture,1920Apr_PC00172
Sandwell Metropolitan Borough Council,http://www.sandwell.gov.uk/info/200202/performance_and_spending/3233/government_procurement_cards,11-Apr-19,Housing & Communities,AMZNMktplace,Neighbourhoods,46.62,Printing Stationery&Gen Office,1920Apr_PC00173
Sandwell Metropolitan Borough Council,http://www.sandwell.gov.uk/info/200202/performance_and_spending/3233/government_procurement_cards,11-Apr-19,Childrens Services,Amazon.co.uk MZ3Z95VO4,Childrens Services,36.57,ICT,1920Apr_PC00174
Sandwell Metropolitan Borough Council,http://www.sandwell.gov.uk/info/200202/performance_and_spending/3233/government_procurement_cards,11-Apr-19,Childrens Services,VISTAPRINT,Childrens Services,119.98,Materials & Consumables,1920Apr_PC00175
Sandwell Metropolitan Borough Council,http://www.sandwell.gov.uk/info/200202/performance_and_spending/3233/government_procurement_cards,11-Apr-19,Regeneration & Growth,XSORTAL GRANTS,Regeneration And The Economy,34.99,Subscriptions,1920Apr_PC00176
Sandwell Metropolitan Borough Council,http://www.sandwell.gov.uk/info/200202/performance_and_spending/3233/government_procurement_cards,11-Apr-19,Housing & Communities,TESCO STORES 2335,Neighbourhoods,20.82,Catering Provisions,1920Apr_PC00177
Sandwell Metropolitan Borough Council,http://www.sandwell.gov.uk/info/200202/performance_and_spending/3233/government_procurement_cards,11-Apr-19,Housing & Communities,IKEA LTD 142 BIRMINGHA,Neighbourhoods,157.5,Equipment & Furniture,1920Apr_PC00178
Sandwell Metropolitan Borough Council,http://www.sandwell.gov.uk/info/200202/performance_and_spending/3233/government_procurement_cards,11-Apr-19,Childrens Services,Amazon.co.uk MZ89Q1MH4,Childrens Services,262.5,Materials & Consumables,1920Apr_PC00179
Sandwell Metropolitan Borough Council,http://www.sandwell.gov.uk/info/200202/performance_and_spending/3233/government_procurement_cards,11-Apr-19,Childrens Services,Amazon.co.uk MZ9J36V74,Childrens Services,204.17,Materials & Consumables,1920Apr_PC00180
Sandwell Metropolitan Borough Council,http://www.sandwell.gov.uk/info/200202/performance_and_spending/3233/government_procurement_cards,11-Apr-19,Childrens Services,Amazon.co.uk MZ6P72VW4,Childrens Services,148.83,Materials & Consumables,1920Apr_PC00181
Sandwell Metropolitan Borough Council,http://www.sandwell.gov.uk/info/200202/performance_and_spending/3233/government_procurement_cards,11-Apr-19,Resources (Inc SIU),OFFICE DEPOT UK,Assistant Chief Executive (Excl SIU),12.08,Printing Stationery&Gen Office,1920Apr_PC00182
Sandwell Metropolitan Borough Council,http://www.sandwell.gov.uk/info/200202/performance_and_spending/3233/government_procurement_cards,11-Apr-19,Housing & Communities,SAINSBURYS 2311,Neighbourhoods,40.19,Materials & Consumables,1920Apr_PC00183
Sandwell Metropolitan Borough Council,http://www.sandwell.gov.uk/info/200202/performance_and_spending/3233/government_procurement_cards,11-Apr-19,Housing & Communities,ASDA STORES,Neighbourhoods,63.95,Catering Provisions,1920Apr_PC00184
Sandwell Metropolitan Borough Council,http://www.sandwell.gov.uk/info/200202/performance_and_spending/3233/government_procurement_cards,11-Apr-19,Childrens Services,ASDA STORES 4253,Childrens Services,44.46,Catering Provisions,1920Apr_PC00185
Sandwell Metropolitan Borough Council,http://www.sandwell.gov.uk/info/200202/performance_and_spending/3233/government_procurement_cards,11-Apr-19,Regeneration & Growth,WWW.CIOB.ORG.UK,Regeneration And The Economy,36.6,Subscriptions,1920Apr_PC00186
Sandwell Metropolitan Borough Council,http://www.sandwell.gov.uk/info/200202/performance_and_spending/3233/government_procurement_cards,11-Apr-19,Regeneration & Growth,WWW.CIOB.ORG.UK,Regeneration And The Economy,573.6,Subscriptions,1920Apr_PC00187
Sandwell Metropolitan Borough Council,http://www.sandwell.gov.uk/info/200202/performance_and_spending/3233/government_procurement_cards,11-Apr-19,Housing & Communities,OFFICE DEPOT UK,Neighbourhoods,8.33,Printing Stationery&Gen Office,1920Apr_PC00188
Sandwell Metropolitan Borough Council,http://www.sandwell.gov.uk/info/200202/performance_and_spending/3233/government_procurement_cards,11-Apr-19,Housing & Communities,OFFICE DEPOT UK,Neighbourhoods,11,Materials & Consumables,1920Apr_PC00189
Sandwell Metropolitan Borough Council,http://www.sandwell.gov.uk/info/200202/performance_and_spending/3233/government_procurement_cards,11-Apr-19,Housing & Communities,Amazon Prime MZ2173VJ4,Neighbourhoods,30.61,Equipment & Furniture,1920Apr_PC00190
Sandwell Metropolitan Borough Council,http://www.sandwell.gov.uk/info/200202/performance_and_spending/3233/government_procurement_cards,11-Apr-19,Regeneration & Growth,SAINSBURYS SACAT0558,Regeneration And The Economy,66.94,Printing Stationery&Gen Office,1920Apr_PC00191
Sandwell Metropolitan Borough Council,http://www.sandwell.gov.uk/info/200202/performance_and_spending/3233/government_procurement_cards,11-Apr-19,Housing & Communities,OFFICE DEPOT UK,Neighbourhoods,177.5,Printing Stationery&Gen Office,1920Apr_PC00192
Sandwell Metropolitan Borough Council,http://www.sandwell.gov.uk/info/200202/performance_and_spending/3233/government_procurement_cards,11-Apr-19,Childrens Services,TIMPSON LTD,Childrens Services,2.98,Materials & Consumables,1920Apr_PC00193
Sandwell Metropolitan Borough Council,http://www.sandwell.gov.uk/info/200202/performance_and_spending/3233/government_procurement_cards,11-Apr-19,Housing & Communities,OFFICE DEPOT UK,Neighbourhoods,7.3,Printing Stationery&Gen Office,1920Apr_PC00194
Sandwell Metropolitan Borough Council,http://www.sandwell.gov.uk/info/200202/performance_and_spending/3233/government_procurement_cards,11-Apr-19,Housing & Communities,JONATHANS IN THE PARK,Neighbourhoods,9.94,Catering Provisions,1920Apr_PC00195
Sandwell Metropolitan Borough Council,http://www.sandwell.gov.uk/info/200202/performance_and_spending/3233/government_procurement_cards,11-Apr-19,Adult Social Care Health and Wellbeing - Total,AMZN Mktp UK MZ3Y52V94,Public Health,19.99,ICT,1920Apr_PC00196
Sandwell Metropolitan Borough Council,http://www.sandwell.gov.uk/info/200202/performance_and_spending/3233/government_procurement_cards,11-Apr-19,Total Housing Revenue Account,OFFICE DEPOT UK,Total Housing Revenue Account,262.5,Printing Stationery&Gen Office,1920Apr_PC00197
Sandwell Metropolitan Borough Council,http://www.sandwell.gov.uk/info/200202/performance_and_spending/3233/government_procurement_cards,11-Apr-19,Childrens Services,CANALSIDE HOLDINGS LIM,Childrens Services,158.69,Catering Provisions,1920Apr_PC00198
Sandwell Metropolitan Borough Council,http://www.sandwell.gov.uk/info/200202/performance_and_spending/3233/government_procurement_cards,11-Apr-19,Housing & Communities,PAYPAL  DECORTRADER,Neighbourhoods,-10.5,Equipment & Furniture,1920Apr_PC00199
Sandwell Metropolitan Borough Council,http://www.sandwell.gov.uk/info/200202/performance_and_spending/3233/government_procurement_cards,11-Apr-19,Total Housing Revenue Account,AMZNMktplace,Total Housing Revenue Account,7.5,Materials & Consumables,1920Apr_PC00200
Sandwell Metropolitan Borough Council,http://www.sandwell.gov.uk/info/200202/performance_and_spending/3233/government_procurement_cards,11-Apr-19,Childrens Services,ALDI 74 778,Childrens Services,29.08,Equipment & Furniture,1920Apr_PC00201
Sandwell Metropolitan Borough Council,http://www.sandwell.gov.uk/info/200202/performance_and_spending/3233/government_procurement_cards,11-Apr-19,Housing & Communities,SAFE.CO.UK,Neighbourhoods,45.84,R & M - Security,1920Apr_PC00202
Sandwell Metropolitan Borough Council,http://www.sandwell.gov.uk/info/200202/performance_and_spending/3233/government_procurement_cards,11-Apr-19,Housing & Communities,Amazon.co.uk MZ9CE0V84,Neighbourhoods,6.24,Equipment & Furniture,1920Apr_PC00203
Sandwell Metropolitan Borough Council,http://www.sandwell.gov.uk/info/200202/performance_and_spending/3233/government_procurement_cards,11-Apr-19,Housing & Communities,AMZNMktplace,Neighbourhoods,32.45,Materials & Consumables,1920Apr_PC00204
Sandwell Metropolitan Borough Council,http://www.sandwell.gov.uk/info/200202/performance_and_spending/3233/government_procurement_cards,11-Apr-19,Housing & Communities,AMZNMktplace,Neighbourhoods,7.07,Materials & Consumables,1920Apr_PC00205
Sandwell Metropolitan Borough Council,http://www.sandwell.gov.uk/info/200202/performance_and_spending/3233/government_procurement_cards,11-Apr-19,Housing & Communities,WWW.BROUGHTONS.COM,Neighbourhoods,186.67,Equipment & Furniture,1920Apr_PC00206
Sandwell Metropolitan Borough Council,http://www.sandwell.gov.uk/info/200202/performance_and_spending/3233/government_procurement_cards,11-Apr-19,Housing & Communities,HIGHFIELD HOUSE HO,Neighbourhoods,333.33,Operational Services,1920Apr_PC00207
Sandwell Metropolitan Borough Council,http://www.sandwell.gov.uk/info/200202/performance_and_spending/3233/government_procurement_cards,11-Apr-19,Housing & Communities,SP   TIFFANY LIGHTING,Neighbourhoods,156.14,Equipment & Furniture,1920Apr_PC00208
Sandwell Metropolitan Borough Council,http://www.sandwell.gov.uk/info/200202/performance_and_spending/3233/government_procurement_cards,11-Apr-19,Housing & Communities,HIGHFIELD HOUSE HO,Neighbourhoods,37.5,Operational Services,1920Apr_PC00209
Sandwell Metropolitan Borough Council,http://www.sandwell.gov.uk/info/200202/performance_and_spending/3233/government_procurement_cards,11-Apr-19,Childrens Services,AMZNMktplace,Childrens Services,70.44,Equipment & Furniture,1920Apr_PC00210
Sandwell Metropolitan Borough Council,http://www.sandwell.gov.uk/info/200202/performance_and_spending/3233/government_procurement_cards,11-Apr-19,Housing & Communities,PAYPAL  MANPREETKD,Neighbourhoods,8,Materials & Consumables,1920Apr_PC00211
Sandwell Metropolitan Borough Council,http://www.sandwell.gov.uk/info/200202/performance_and_spending/3233/government_procurement_cards,12-Apr-19,Housing & Communities,CULPITT LTD,Neighbourhoods,13.12,Materials & Consumables,1920Apr_PC00212
Sandwell Metropolitan Borough Council,http://www.sandwell.gov.uk/info/200202/performance_and_spending/3233/government_procurement_cards,12-Apr-19,Housing & Communities,PREMIER INN,Neighbourhoods,15.99,Rents,1920Apr_PC00213
Sandwell Metropolitan Borough Council,http://www.sandwell.gov.uk/info/200202/performance_and_spending/3233/government_procurement_cards,12-Apr-19,Childrens Services,PEIRIANWAITH EIFIONYDD,Childrens Services,243,Grounds Maint&Improvements,1920Apr_PC00214
Sandwell Metropolitan Borough Council,http://www.sandwell.gov.uk/info/200202/performance_and_spending/3233/government_procurement_cards,12-Apr-19,Housing & Communities,ASDA SUPERSTORE,Neighbourhoods,14.29,Materials & Consumables,1920Apr_PC00215
Sandwell Metropolitan Borough Council,http://www.sandwell.gov.uk/info/200202/performance_and_spending/3233/government_procurement_cards,12-Apr-19,Housing & Communities,LONDONEMBLE,Neighbourhoods,17.73,Equipment & Furniture,1920Apr_PC00216
Sandwell Metropolitan Borough Council,http://www.sandwell.gov.uk/info/200202/performance_and_spending/3233/government_procurement_cards,12-Apr-19,Housing & Communities,AMZN Mktp UK MZ6FL95I4,Neighbourhoods,35.05,Equipment & Furniture,1920Apr_PC00217
Sandwell Metropolitan Borough Council,http://www.sandwell.gov.uk/info/200202/performance_and_spending/3233/government_procurement_cards,12-Apr-19,Housing & Communities,BESTWAY WHOLESALE,Neighbourhoods,1457.5,Catering Provisions,1920Apr_PC00218
Sandwell Metropolitan Borough Council,http://www.sandwell.gov.uk/info/200202/performance_and_spending/3233/government_procurement_cards,12-Apr-19,Housing & Communities,TFM FARM   COUNTRY,Neighbourhoods,1457.5,Materials & Consumables,1920Apr_PC00219
Sandwell Metropolitan Borough Council,http://www.sandwell.gov.uk/info/200202/performance_and_spending/3233/government_procurement_cards,12-Apr-19,Housing & Communities,IKEA LTD 142 BIRMINGHA,Neighbourhoods,12.07,Equipment & Furniture,1920Apr_PC00220
Sandwell Metropolitan Borough Council,http://www.sandwell.gov.uk/info/200202/performance_and_spending/3233/government_procurement_cards,12-Apr-19,Housing & Communities,WWW.CICSLIMITED.CO.UK,Neighbourhoods,47,Materials & Consumables,1920Apr_PC00221
Sandwell Metropolitan Borough Council,http://www.sandwell.gov.uk/info/200202/performance_and_spending/3233/government_procurement_cards,12-Apr-19,Resources (Inc SIU),Amazon.co.uk MZ5L115M4,Assistant Chief Executive (Excl SIU),51.67,Printing Stationery&Gen Office,1920Apr_PC00222
Sandwell Metropolitan Borough Council,http://www.sandwell.gov.uk/info/200202/performance_and_spending/3233/government_procurement_cards,12-Apr-19,Childrens Services,ALDI 109 772,Childrens Services,4.25,Catering Provisions,1920Apr_PC00223
Sandwell Metropolitan Borough Council,http://www.sandwell.gov.uk/info/200202/performance_and_spending/3233/government_procurement_cards,12-Apr-19,Childrens Services,AMZNMktplace,Childrens Services,252.8,Telephones,1920Apr_PC00224
Sandwell Metropolitan Borough Council,http://www.sandwell.gov.uk/info/200202/performance_and_spending/3233/government_procurement_cards,12-Apr-19,Childrens Services,AMZNMktplace,Childrens Services,22.37,Telephones,1920Apr_PC00225
Sandwell Metropolitan Borough Council,http://www.sandwell.gov.uk/info/200202/performance_and_spending/3233/government_procurement_cards,12-Apr-19,Childrens Services,AMZNMktplace,Childrens Services,11.64,Telephones,1920Apr_PC00226
Sandwell Metropolitan Borough Council,http://www.sandwell.gov.uk/info/200202/performance_and_spending/3233/government_procurement_cards,12-Apr-19,Resources (Inc SIU),OFFICE DEPOT UK,Assistant Chief Executive (Excl SIU),105,Printing Stationery&Gen Office,1920Apr_PC00227
Sandwell Metropolitan Borough Council,http://www.sandwell.gov.uk/info/200202/performance_and_spending/3233/government_procurement_cards,12-Apr-19,Housing & Communities,AMZNMKTPLACE AMAZON.CO,Neighbourhoods,95,Materials & Consumables,1920Apr_PC00228
Sandwell Metropolitan Borough Council,http://www.sandwell.gov.uk/info/200202/performance_and_spending/3233/government_procurement_cards,12-Apr-19,Housing & Communities,Amazon.co.uk MZ5ZT05T4,Neighbourhoods,95,Materials & Consumables,1920Apr_PC00229
Sandwell Metropolitan Borough Council,http://www.sandwell.gov.uk/info/200202/performance_and_spending/3233/government_procurement_cards,12-Apr-19,Resources (Inc SIU),WWW.MONEYCLAIM.GOV,Assistant Chief Executive (Excl SIU),20.3,Professional Services External,1920Apr_PC00230
Sandwell Metropolitan Borough Council,http://www.sandwell.gov.uk/info/200202/performance_and_spending/3233/government_procurement_cards,12-Apr-19,Adult Social Care Health and Wellbeing - Total,OFFICE DEPOT UK,Total Adult Social Care,61.08,Printing Stationery&Gen Office,1920Apr_PC00231
Sandwell Metropolitan Borough Council,http://www.sandwell.gov.uk/info/200202/performance_and_spending/3233/government_procurement_cards,12-Apr-19,Adult Social Care Health and Wellbeing - Total,OFFICE DEPOT UK,Total Adult Social Care,30.87,Printing Stationery&Gen Office,1920Apr_PC00232
Sandwell Metropolitan Borough Council,http://www.sandwell.gov.uk/info/200202/performance_and_spending/3233/government_procurement_cards,12-Apr-19,Resources (Inc SIU),Trainline.com,Assistant Chief Executive (Excl SIU),8.32,Public Transport,1920Apr_PC00233
Sandwell Metropolitan Borough Council,http://www.sandwell.gov.uk/info/200202/performance_and_spending/3233/government_procurement_cards,12-Apr-19,Adult Social Care Health and Wellbeing - Total,iZ  SANDWELL REMOV,Total Adult Social Care,690,Professional Services External,1920Apr_PC00234
Sandwell Metropolitan Borough Council,http://www.sandwell.gov.uk/info/200202/performance_and_spending/3233/government_procurement_cards,12-Apr-19,Childrens Services,AMZN Mktp UK MZ3U34M84,Childrens Services,9.58,Materials & Consumables,1920Apr_PC00235
Sandwell Metropolitan Borough Council,http://www.sandwell.gov.uk/info/200202/performance_and_spending/3233/government_procurement_cards,12-Apr-19,Individual School Budgets With Inclusion,Amazon.co.uk MZ5QT6M54,Individual School Budgets With Inclusion,298.72,Materials & Consumables,1920Apr_PC00236
Sandwell Metropolitan Borough Council,http://www.sandwell.gov.uk/info/200202/performance_and_spending/3233/government_procurement_cards,12-Apr-19,Individual School Budgets With Inclusion,Trainline,Individual School Budgets With Inclusion,3956,Public Transport,1920Apr_PC00237
Sandwell Metropolitan Borough Council,http://www.sandwell.gov.uk/info/200202/performance_and_spending/3233/government_procurement_cards,12-Apr-19,Housing & Communities,SAINSBURYS SACAT 0541,Neighbourhoods,87.84,Catering Provisions,1920Apr_PC00238
Sandwell Metropolitan Borough Council,http://www.sandwell.gov.uk/info/200202/performance_and_spending/3233/government_procurement_cards,12-Apr-19,Housing & Communities,HIGHFIELD HOUSE HO,Neighbourhoods,45.83,Operational Services,1920Apr_PC00239
Sandwell Metropolitan Borough Council,http://www.sandwell.gov.uk/info/200202/performance_and_spending/3233/government_procurement_cards,12-Apr-19,Housing & Communities,WM MORRISONS STORE,Neighbourhoods,22.57,Materials & Consumables,1920Apr_PC00240
Sandwell Metropolitan Borough Council,http://www.sandwell.gov.uk/info/200202/performance_and_spending/3233/government_procurement_cards,12-Apr-19,Childrens Services,AMZNMktplace,Childrens Services,24.25,Materials & Consumables,1920Apr_PC00241
Sandwell Metropolitan Borough Council,http://www.sandwell.gov.uk/info/200202/performance_and_spending/3233/government_procurement_cards,12-Apr-19,Childrens Services,AMZNMktplace,Childrens Services,2.99,Equipment & Furniture,1920Apr_PC00242
Sandwell Metropolitan Borough Council,http://www.sandwell.gov.uk/info/200202/performance_and_spending/3233/government_procurement_cards,12-Apr-19,Housing & Communities,PETS AT HOME,Neighbourhoods,49.17,Materials & Consumables,1920Apr_PC00243
Sandwell Metropolitan Borough Council,http://www.sandwell.gov.uk/info/200202/performance_and_spending/3233/government_procurement_cards,15-Apr-19,Housing & Communities,FUTURE GARMENTS LTD,Neighbourhoods,336.02,Protective Clothing&Uniforms,1920Apr_PC00244
Sandwell Metropolitan Borough Council,http://www.sandwell.gov.uk/info/200202/performance_and_spending/3233/government_procurement_cards,15-Apr-19,Regeneration & Growth,SOVEREIGN,Regeneration And The Economy,8,Printing Stationery&Gen Office,1920Apr_PC00245
Sandwell Metropolitan Borough Council,http://www.sandwell.gov.uk/info/200202/performance_and_spending/3233/government_procurement_cards,15-Apr-19,Housing & Communities,AMZN MKTP UK MZ0M555B4,Neighbourhoods,61.75,Printing Stationery&Gen Office,1920Apr_PC00246
Sandwell Metropolitan Borough Council,http://www.sandwell.gov.uk/info/200202/performance_and_spending/3233/government_procurement_cards,15-Apr-19,Individual School Budgets With Inclusion,AMZNMKTPLACE AMAZON.CO,Individual School Budgets With Inclusion,165,Materials & Consumables,1920Apr_PC00247
Sandwell Metropolitan Borough Council,http://www.sandwell.gov.uk/info/200202/performance_and_spending/3233/government_procurement_cards,15-Apr-19,Childrens Services,WWW.AELP.ORG.UK,Childrens Services,5,Ind. Emp Exp-Staff Dev&Training,1920Apr_PC00248
Sandwell Metropolitan Borough Council,http://www.sandwell.gov.uk/info/200202/performance_and_spending/3233/government_procurement_cards,15-Apr-19,Childrens Services,ASDA STORES 4253,Childrens Services,20.82,Materials & Consumables,1920Apr_PC00249
Sandwell Metropolitan Borough Council,http://www.sandwell.gov.uk/info/200202/performance_and_spending/3233/government_procurement_cards,15-Apr-19,Childrens Services,AMZNMktplace,Childrens Services,57.47,Catering Equipment,1920Apr_PC00250
Sandwell Metropolitan Borough Council,http://www.sandwell.gov.uk/info/200202/performance_and_spending/3233/government_procurement_cards,15-Apr-19,Childrens Services,WWW.3WMLTD.COM,Childrens Services,41.62,Materials & Consumables,1920Apr_PC00251
Sandwell Metropolitan Borough Council,http://www.sandwell.gov.uk/info/200202/performance_and_spending/3233/government_procurement_cards,15-Apr-19,Total Housing Revenue Account,WWW.FLAGANDBUNTINGSTOR,Total Housing Revenue Account,73.06,Printing Stationery&Gen Office,1920Apr_PC00252
Sandwell Metropolitan Borough Council,http://www.sandwell.gov.uk/info/200202/performance_and_spending/3233/government_procurement_cards,15-Apr-19,Childrens Services,VISTAPRINT,Childrens Services,140,Materials & Consumables,1920Apr_PC00253
Sandwell Metropolitan Borough Council,http://www.sandwell.gov.uk/info/200202/performance_and_spending/3233/government_procurement_cards,15-Apr-19,Childrens Services,AMZN Mktp UK MZ99N45D4,Childrens Services,46.33,R& M - Building Maint&Imp.,1920Apr_PC00254
Sandwell Metropolitan Borough Council,http://www.sandwell.gov.uk/info/200202/performance_and_spending/3233/government_procurement_cards,15-Apr-19,Resources (Inc SIU),AMZNMktplace,Assistant Chief Executive (Excl SIU),29.37,Catering Equipment,1920Apr_PC00255
Sandwell Metropolitan Borough Council,http://www.sandwell.gov.uk/info/200202/performance_and_spending/3233/government_procurement_cards,15-Apr-19,Total Housing Revenue Account,OFFICE DEPOT UK,Total Housing Revenue Account,51.95,Materials & Consumables,1920Apr_PC00256
Sandwell Metropolitan Borough Council,http://www.sandwell.gov.uk/info/200202/performance_and_spending/3233/government_procurement_cards,15-Apr-19,Housing & Communities,AMZNMKTPLACE AMAZON.CO,Neighbourhoods,5.3,Materials & Consumables,1920Apr_PC00257
Sandwell Metropolitan Borough Council,http://www.sandwell.gov.uk/info/200202/performance_and_spending/3233/government_procurement_cards,15-Apr-19,Housing & Communities,AMZN MKTP UK MZ9BL1534,Neighbourhoods,80.38,Materials & Consumables,1920Apr_PC00258
Sandwell Metropolitan Borough Council,http://www.sandwell.gov.uk/info/200202/performance_and_spending/3233/government_procurement_cards,15-Apr-19,Housing & Communities,AMZN MKTP UK MZ0EZ85X4,Neighbourhoods,150,Materials & Consumables,1920Apr_PC00259
Sandwell Metropolitan Borough Council,http://www.sandwell.gov.uk/info/200202/performance_and_spending/3233/government_procurement_cards,15-Apr-19,Housing & Communities,AMZNMKTPLACE AMAZON.CO,Neighbourhoods,85.52,Materials & Consumables,1920Apr_PC00260
Sandwell Metropolitan Borough Council,http://www.sandwell.gov.uk/info/200202/performance_and_spending/3233/government_procurement_cards,15-Apr-19,Housing & Communities,AMZN MKTP UK MZ29G8554,Neighbourhoods,30.82,Materials & Consumables,1920Apr_PC00261
Sandwell Metropolitan Borough Council,http://www.sandwell.gov.uk/info/200202/performance_and_spending/3233/government_procurement_cards,15-Apr-19,Housing & Communities,AMZN Mktp UK MZ4BS9HK4,Neighbourhoods,33,Materials & Consumables,1920Apr_PC00262
Sandwell Metropolitan Borough Council,http://www.sandwell.gov.uk/info/200202/performance_and_spending/3233/government_procurement_cards,15-Apr-19,Childrens Services,HM PASSPORT OFFICE,Childrens Services,-80,Professional Services External,1920Apr_PC00263
Sandwell Metropolitan Borough Council,http://www.sandwell.gov.uk/info/200202/performance_and_spending/3233/government_procurement_cards,15-Apr-19,Adult Social Care Health and Wellbeing - Total,OFFICE DEPOT UK,Total Adult Social Care,82.93,Printing Stationery&Gen Office,1920Apr_PC00264
Sandwell Metropolitan Borough Council,http://www.sandwell.gov.uk/info/200202/performance_and_spending/3233/government_procurement_cards,15-Apr-19,Resources (Inc SIU),Trainline,Assistant Chief Executive (Excl SIU),47.5,Civic Events,1920Apr_PC00265
Sandwell Metropolitan Borough Council,http://www.sandwell.gov.uk/info/200202/performance_and_spending/3233/government_procurement_cards,15-Apr-19,Housing & Communities,AMZNMktplace,Neighbourhoods,29.17,Materials & Consumables,1920Apr_PC00266
Sandwell Metropolitan Borough Council,http://www.sandwell.gov.uk/info/200202/performance_and_spending/3233/government_procurement_cards,15-Apr-19,Housing & Communities,AMZN Mktp UK MZ98625H4,Neighbourhoods,29.95,Materials & Consumables,1920Apr_PC00267
Sandwell Metropolitan Borough Council,http://www.sandwell.gov.uk/info/200202/performance_and_spending/3233/government_procurement_cards,15-Apr-19,Housing & Communities,AMZNMktplace,Neighbourhoods,991.1,Materials & Consumables,1920Apr_PC00268
Sandwell Metropolitan Borough Council,http://www.sandwell.gov.uk/info/200202/performance_and_spending/3233/government_procurement_cards,15-Apr-19,Housing & Communities,OFFICE DEPOT UK,Neighbourhoods,349,Materials & Consumables,1920Apr_PC00269
Sandwell Metropolitan Borough Council,http://www.sandwell.gov.uk/info/200202/performance_and_spending/3233/government_procurement_cards,15-Apr-19,Resources (Inc SIU),Amazon.co.uk MZ93N7H84,Assistant Chief Executive (Excl SIU),6.24,Printing Stationery&Gen Office,1920Apr_PC00270
Sandwell Metropolitan Borough Council,http://www.sandwell.gov.uk/info/200202/performance_and_spending/3233/government_procurement_cards,15-Apr-19,Housing & Communities,COSWORTH STUD FEEDS,Neighbourhoods,7.48,Materials & Consumables,1920Apr_PC00271
Sandwell Metropolitan Borough Council,http://www.sandwell.gov.uk/info/200202/performance_and_spending/3233/government_procurement_cards,15-Apr-19,Regeneration & Growth,AMZNMktplace,Regeneration And The Economy,23.5,Printing Stationery&Gen Office,1920Apr_PC00272
Sandwell Metropolitan Borough Council,http://www.sandwell.gov.uk/info/200202/performance_and_spending/3233/government_procurement_cards,15-Apr-19,Regeneration & Growth,Amazon.co.uk MZ2TT4HR4,Regeneration And The Economy,10.45,Printing Stationery&Gen Office,1920Apr_PC00273
Sandwell Metropolitan Borough Council,http://www.sandwell.gov.uk/info/200202/performance_and_spending/3233/government_procurement_cards,15-Apr-19,Resources (Inc SIU),SurveyMonkey,Assistant Chief Executive (Excl SIU),195,Subscriptions,1920Apr_PC00274
Sandwell Metropolitan Borough Council,http://www.sandwell.gov.uk/info/200202/performance_and_spending/3233/government_procurement_cards,15-Apr-19,Housing & Communities,PP COASTVINTAG,Neighbourhoods,202.6,Equipment & Furniture,1920Apr_PC00275
Sandwell Metropolitan Borough Council,http://www.sandwell.gov.uk/info/200202/performance_and_spending/3233/government_procurement_cards,15-Apr-19,Housing & Communities,AMZNMKTPLACE AMAZON.CO,Neighbourhoods,10.8,Printing Stationery&Gen Office,1920Apr_PC00276
Sandwell Metropolitan Borough Council,http://www.sandwell.gov.uk/info/200202/performance_and_spending/3233/government_procurement_cards,15-Apr-19,Total Housing Revenue Account,AMZNMktplace,Total Housing Revenue Account,6.47,Materials & Consumables,1920Apr_PC00277
Sandwell Metropolitan Borough Council,http://www.sandwell.gov.uk/info/200202/performance_and_spending/3233/government_procurement_cards,15-Apr-19,Resources (Inc SIU),AMZNMktplace,Assistant Chief Executive (Excl SIU),14.76,Materials & Consumables,1920Apr_PC00278
Sandwell Metropolitan Borough Council,http://www.sandwell.gov.uk/info/200202/performance_and_spending/3233/government_procurement_cards,15-Apr-19,Childrens Services,Amazon.co.uk MZ7EX1HV4,Childrens Services,2,Catering Equipment,1920Apr_PC00279
Sandwell Metropolitan Borough Council,http://www.sandwell.gov.uk/info/200202/performance_and_spending/3233/government_procurement_cards,15-Apr-19,Regeneration & Growth,AMZNMktplace,Regeneration And The Economy,16.99,Printing Stationery&Gen Office,1920Apr_PC00280
Sandwell Metropolitan Borough Council,http://www.sandwell.gov.uk/info/200202/performance_and_spending/3233/government_procurement_cards,15-Apr-19,Childrens Services,POST OFFICE COUNTER,Childrens Services,11.52,Telephones,1920Apr_PC00281
Sandwell Metropolitan Borough Council,http://www.sandwell.gov.uk/info/200202/performance_and_spending/3233/government_procurement_cards,15-Apr-19,Childrens Services,THE SWAN,Childrens Services,9,Rent Allowances Local Scheme,1920Apr_PC00282
Sandwell Metropolitan Borough Council,http://www.sandwell.gov.uk/info/200202/performance_and_spending/3233/government_procurement_cards,15-Apr-19,Resources (Inc SIU),AMZ Amazon US,Assistant Chief Executive (Excl SIU),-1.35,Printing Stationery&Gen Office,1920Apr_PC00283
Sandwell Metropolitan Borough Council,http://www.sandwell.gov.uk/info/200202/performance_and_spending/3233/government_procurement_cards,15-Apr-19,Resources (Inc SIU),AMZ Amazon US,Assistant Chief Executive (Excl SIU),-3.23,Operational Services,1920Apr_PC00284
Sandwell Metropolitan Borough Council,http://www.sandwell.gov.uk/info/200202/performance_and_spending/3233/government_procurement_cards,15-Apr-19,Housing & Communities,Amazon Prime MZ0X07HF4,Neighbourhoods,6.66,Printing Stationery&Gen Office,1920Apr_PC00285
Sandwell Metropolitan Borough Council,http://www.sandwell.gov.uk/info/200202/performance_and_spending/3233/government_procurement_cards,16-Apr-19,Adult Social Care Health and Wellbeing - Total,WWW.BESTINTHECOUNTRY.C,Total Adult Social Care,54.98,Printing Stationery&Gen Office,1920Apr_PC00286
Sandwell Metropolitan Borough Council,http://www.sandwell.gov.uk/info/200202/performance_and_spending/3233/government_procurement_cards,16-Apr-19,Childrens Services,ASDA STORES LTD 5865,Childrens Services,70,Materials & Consumables,1920Apr_PC00287
Sandwell Metropolitan Borough Council,http://www.sandwell.gov.uk/info/200202/performance_and_spending/3233/government_procurement_cards,16-Apr-19,Resources (Inc SIU),AMZNMktplace,Assistant Chief Executive (Excl SIU),8.69,Printing Stationery&Gen Office,1920Apr_PC00288
Sandwell Metropolitan Borough Council,http://www.sandwell.gov.uk/info/200202/performance_and_spending/3233/government_procurement_cards,16-Apr-19,Resources (Inc SIU),AMZNMktplace,Assistant Chief Executive (Excl SIU),589,Printing Stationery&Gen Office,1920Apr_PC00289
Sandwell Metropolitan Borough Council,http://www.sandwell.gov.uk/info/200202/performance_and_spending/3233/government_procurement_cards,16-Apr-19,Resources (Inc SIU),AMZNMktplace,Assistant Chief Executive (Excl SIU),10.04,Printing Stationery&Gen Office,1920Apr_PC00290
Sandwell Metropolitan Borough Council,http://www.sandwell.gov.uk/info/200202/performance_and_spending/3233/government_procurement_cards,16-Apr-19,Resources (Inc SIU),AMZNMktplace,Assistant Chief Executive (Excl SIU),30.27,Printing Stationery&Gen Office,1920Apr_PC00291
Sandwell Metropolitan Borough Council,http://www.sandwell.gov.uk/info/200202/performance_and_spending/3233/government_procurement_cards,16-Apr-19,Resources (Inc SIU),LANYARDS TOMORROW,Assistant Chief Executive (Excl SIU),66.45,Printing Stationery&Gen Office,1920Apr_PC00292
Sandwell Metropolitan Borough Council,http://www.sandwell.gov.uk/info/200202/performance_and_spending/3233/government_procurement_cards,16-Apr-19,Resources (Inc SIU),WWW.PARAGON.NET.UK RT,Assistant Chief Executive (Excl SIU),31.57,ICT,1920Apr_PC00293
Sandwell Metropolitan Borough Council,http://www.sandwell.gov.uk/info/200202/performance_and_spending/3233/government_procurement_cards,16-Apr-19,Resources (Inc SIU),AMZNMktplace,Assistant Chief Executive (Excl SIU),81.5,Printing Stationery&Gen Office,1920Apr_PC00294
Sandwell Metropolitan Borough Council,http://www.sandwell.gov.uk/info/200202/performance_and_spending/3233/government_procurement_cards,16-Apr-19,Childrens Services,Spotify P0A68DD1C2,Childrens Services,110,Subscriptions,1920Apr_PC00295
Sandwell Metropolitan Borough Council,http://www.sandwell.gov.uk/info/200202/performance_and_spending/3233/government_procurement_cards,16-Apr-19,Housing & Communities,OFFICE DEPOT UK,Neighbourhoods,10.1,Materials & Consumables,1920Apr_PC00296
Sandwell Metropolitan Borough Council,http://www.sandwell.gov.uk/info/200202/performance_and_spending/3233/government_procurement_cards,16-Apr-19,Resources (Inc SIU),OFFICE DEPOT UK,Assistant Chief Executive (Excl SIU),1025,Printing Stationery&Gen Office,1920Apr_PC00297
Sandwell Metropolitan Borough Council,http://www.sandwell.gov.uk/info/200202/performance_and_spending/3233/government_procurement_cards,16-Apr-19,Resources (Inc SIU),OFFICE DEPOT UK,Assistant Chief Executive (Excl SIU),63.5,Printing Stationery&Gen Office,1920Apr_PC00298
Sandwell Metropolitan Borough Council,http://www.sandwell.gov.uk/info/200202/performance_and_spending/3233/government_procurement_cards,16-Apr-19,Resources (Inc SIU),ARGOS OLDBURY,Assistant Chief Executive (Excl SIU),489.3,Printing Stationery&Gen Office,1920Apr_PC00299
Sandwell Metropolitan Borough Council,http://www.sandwell.gov.uk/info/200202/performance_and_spending/3233/government_procurement_cards,16-Apr-19,Resources (Inc SIU),SAINSBURYS SACAT0558,Assistant Chief Executive (Excl SIU),137.26,Printing Stationery&Gen Office,1920Apr_PC00300
Sandwell Metropolitan Borough Council,http://www.sandwell.gov.uk/info/200202/performance_and_spending/3233/government_procurement_cards,16-Apr-19,Adult Social Care Health and Wellbeing - Total,OFFICE DEPOT UK,Total Adult Social Care,78,Printing Stationery&Gen Office,1920Apr_PC00301
Sandwell Metropolitan Borough Council,http://www.sandwell.gov.uk/info/200202/performance_and_spending/3233/government_procurement_cards,16-Apr-19,Adult Social Care Health and Wellbeing - Total,Trainline.com,Total Adult Social Care,15.56,Public Transport,1920Apr_PC00302
Sandwell Metropolitan Borough Council,http://www.sandwell.gov.uk/info/200202/performance_and_spending/3233/government_procurement_cards,16-Apr-19,Resources (Inc SIU),HOLIDAY INN EXPRESS GR,Assistant Chief Executive (Excl SIU),147.2,Conference Expenses,1920Apr_PC00303
Sandwell Metropolitan Borough Council,http://www.sandwell.gov.uk/info/200202/performance_and_spending/3233/government_procurement_cards,16-Apr-19,Housing & Communities,EDGBASTON PALACE,Neighbourhoods,600,Operational Services,1920Apr_PC00304
Sandwell Metropolitan Borough Council,http://www.sandwell.gov.uk/info/200202/performance_and_spending/3233/government_procurement_cards,16-Apr-19,Housing & Communities,HIGHFIELD HOUSE HO,Neighbourhoods,180,Operational Services,1920Apr_PC00305
Sandwell Metropolitan Borough Council,http://www.sandwell.gov.uk/info/200202/performance_and_spending/3233/government_procurement_cards,16-Apr-19,Housing & Communities,HIGHFIELD HOUSE HO,Neighbourhoods,300,Operational Services,1920Apr_PC00306
Sandwell Metropolitan Borough Council,http://www.sandwell.gov.uk/info/200202/performance_and_spending/3233/government_procurement_cards,17-Apr-19,Total Housing Revenue Account,OUTDOOR365 LTD,Total Housing Revenue Account,4.25,Materials & Consumables,1920Apr_PC00307
Sandwell Metropolitan Borough Council,http://www.sandwell.gov.uk/info/200202/performance_and_spending/3233/government_procurement_cards,17-Apr-19,Housing & Communities,W AS AUTOCENTRE LIMITE,Neighbourhoods,7.59,Repairs & Maintenance,1920Apr_PC00308
Sandwell Metropolitan Borough Council,http://www.sandwell.gov.uk/info/200202/performance_and_spending/3233/government_procurement_cards,17-Apr-19,Childrens Services,ASDA STORES LTD 5865,Childrens Services,2.99,Materials & Consumables,1920Apr_PC00309
Sandwell Metropolitan Borough Council,http://www.sandwell.gov.uk/info/200202/performance_and_spending/3233/government_procurement_cards,17-Apr-19,Housing & Communities,AMZN MKTP UK MZ8C67Q54,Neighbourhoods,2.93,Printing Stationery&Gen Office,1920Apr_PC00310
Sandwell Metropolitan Borough Council,http://www.sandwell.gov.uk/info/200202/performance_and_spending/3233/government_procurement_cards,17-Apr-19,Adult Social Care Health and Wellbeing - Total,AMZN Mktp UK MZ2WR2Q74,Total Adult Social Care,2.42,Equipment & Furniture,1920Apr_PC00311
Sandwell Metropolitan Borough Council,http://www.sandwell.gov.uk/info/200202/performance_and_spending/3233/government_procurement_cards,17-Apr-19,Adult Social Care Health and Wellbeing - Total,AMZN Mktp UK MZ1H898C4,Total Adult Social Care,125,Equipment & Furniture,1920Apr_PC00312
Sandwell Metropolitan Borough Council,http://www.sandwell.gov.uk/info/200202/performance_and_spending/3233/government_procurement_cards,17-Apr-19,Adult Social Care Health and Wellbeing - Total,AMZN Mktp UK MZ04A2894,Total Adult Social Care,130,Equipment & Furniture,1920Apr_PC00313
Sandwell Metropolitan Borough Council,http://www.sandwell.gov.uk/info/200202/performance_and_spending/3233/government_procurement_cards,17-Apr-19,Adult Social Care Health and Wellbeing - Total,AMZN Mktp UK MZ6Q13QZ4,Total Adult Social Care,2.98,Equipment & Furniture,1920Apr_PC00314
Sandwell Metropolitan Borough Council,http://www.sandwell.gov.uk/info/200202/performance_and_spending/3233/government_procurement_cards,17-Apr-19,Regeneration & Growth,STAFFORDSHIRE BLDS SUP,Regeneration And The Economy,200.66,Materials & Consumables,1920Apr_PC00315
Sandwell Metropolitan Borough Council,http://www.sandwell.gov.uk/info/200202/performance_and_spending/3233/government_procurement_cards,17-Apr-19,Resources (Inc SIU),LABELS DIRECT LTD,Assistant Chief Executive (Excl SIU),18.73,Printing Stationery&Gen Office,1920Apr_PC00316
Sandwell Metropolitan Borough Council,http://www.sandwell.gov.uk/info/200202/performance_and_spending/3233/government_procurement_cards,17-Apr-19,Housing & Communities,POUNDLAND LTD 1576,Neighbourhoods,3.93,Equipment & Furniture,1920Apr_PC00317
Sandwell Metropolitan Borough Council,http://www.sandwell.gov.uk/info/200202/performance_and_spending/3233/government_procurement_cards,17-Apr-19,Adult Social Care Health and Wellbeing - Total,OFFICE DEPOT UK,Total Adult Social Care,-15.29,Printing Stationery&Gen Office,1920Apr_PC00318
Sandwell Metropolitan Borough Council,http://www.sandwell.gov.uk/info/200202/performance_and_spending/3233/government_procurement_cards,17-Apr-19,Childrens Services,Virgin Trains,Childrens Services,-0.78,Public Transport,1920Apr_PC00319
Sandwell Metropolitan Borough Council,http://www.sandwell.gov.uk/info/200202/performance_and_spending/3233/government_procurement_cards,17-Apr-19,Regeneration & Growth,Trainline,Regeneration And The Economy,113.18,Public Transport,1920Apr_PC00320
Sandwell Metropolitan Borough Council,http://www.sandwell.gov.uk/info/200202/performance_and_spending/3233/government_procurement_cards,17-Apr-19,Resources (Inc SIU),ARGOS OLDBURY,Assistant Chief Executive (Excl SIU),13,Materials & Consumables,1920Apr_PC00321
Sandwell Metropolitan Borough Council,http://www.sandwell.gov.uk/info/200202/performance_and_spending/3233/government_procurement_cards,17-Apr-19,Childrens Services,Trainline,Childrens Services,15,Public Transport,1920Apr_PC00322
Sandwell Metropolitan Borough Council,http://www.sandwell.gov.uk/info/200202/performance_and_spending/3233/government_procurement_cards,17-Apr-19,Resources (Inc SIU),HMCOURTS-SERVICE.G,Assistant Chief Executive (Excl SIU),3.48,Council Tax,1920Apr_PC00323
Sandwell Metropolitan Borough Council,http://www.sandwell.gov.uk/info/200202/performance_and_spending/3233/government_procurement_cards,17-Apr-19,Resources (Inc SIU),HMCOURTS-SERVICE.G,Assistant Chief Executive (Excl SIU),26.05,Council Tax,1920Apr_PC00324
Sandwell Metropolitan Borough Council,http://www.sandwell.gov.uk/info/200202/performance_and_spending/3233/government_procurement_cards,17-Apr-19,Housing & Communities,AMZNMktplace,Neighbourhoods,124.92,R& M - Building Maint&Imp.,1920Apr_PC00325
Sandwell Metropolitan Borough Council,http://www.sandwell.gov.uk/info/200202/performance_and_spending/3233/government_procurement_cards,17-Apr-19,Adult Social Care Health and Wellbeing - Total,Virgin Trains,Public Health,57.8,Public Transport,1920Apr_PC00326
Sandwell Metropolitan Borough Council,http://www.sandwell.gov.uk/info/200202/performance_and_spending/3233/government_procurement_cards,17-Apr-19,Housing & Communities,AMZNMKTPLACE AMAZON.CO,Neighbourhoods,14.29,Printing Stationery&Gen Office,1920Apr_PC00327
Sandwell Metropolitan Borough Council,http://www.sandwell.gov.uk/info/200202/performance_and_spending/3233/government_procurement_cards,17-Apr-19,Resources (Inc SIU),OFFICE DEPOT UK,Assistant Chief Executive (Excl SIU),6.7,Printing Stationery&Gen Office,1920Apr_PC00328
Sandwell Metropolitan Borough Council,http://www.sandwell.gov.uk/info/200202/performance_and_spending/3233/government_procurement_cards,17-Apr-19,Corporate Management,Trainline,Corporate Management,7.58,Public Transport,1920Apr_PC00329
Sandwell Metropolitan Borough Council,http://www.sandwell.gov.uk/info/200202/performance_and_spending/3233/government_procurement_cards,17-Apr-19,Adult Social Care Health and Wellbeing - Total,AMZNMktplace,Total Adult Social Care,31.49,Equipment & Furniture,1920Apr_PC00330
Sandwell Metropolitan Borough Council,http://www.sandwell.gov.uk/info/200202/performance_and_spending/3233/government_procurement_cards,17-Apr-19,Corporate Management,Trainline,Corporate Management,71.94,Public Transport,1920Apr_PC00331
Sandwell Metropolitan Borough Council,http://www.sandwell.gov.uk/info/200202/performance_and_spending/3233/government_procurement_cards,17-Apr-19,Resources (Inc SIU),Amazon.co.uk MZ92U0QV4,Assistant Chief Executive (Excl SIU),36.63,Printing Stationery&Gen Office,1920Apr_PC00332
Sandwell Metropolitan Borough Council,http://www.sandwell.gov.uk/info/200202/performance_and_spending/3233/government_procurement_cards,17-Apr-19,Housing & Communities,PREMIER INN,Neighbourhoods,88.75,Operational Services,1920Apr_PC00333
Sandwell Metropolitan Borough Council,http://www.sandwell.gov.uk/info/200202/performance_and_spending/3233/government_procurement_cards,17-Apr-19,Housing & Communities,HIGHFIELD HOUSE HO,Neighbourhoods,157.5,Operational Services,1920Apr_PC00334
Sandwell Metropolitan Borough Council,http://www.sandwell.gov.uk/info/200202/performance_and_spending/3233/government_procurement_cards,17-Apr-19,Adult Social Care Health and Wellbeing - Total,AMZN Mktp UK MZ7EE0QB4,Total Adult Social Care,83.47,Printing Stationery&Gen Office,1920Apr_PC00335
Sandwell Metropolitan Borough Council,http://www.sandwell.gov.uk/info/200202/performance_and_spending/3233/government_procurement_cards,18-Apr-19,Resources (Inc SIU),PAYPAL  CIVILMEDIAT,Assistant Chief Executive (Excl SIU),16.37,Subscriptions,1920Apr_PC00336
Sandwell Metropolitan Borough Council,http://www.sandwell.gov.uk/info/200202/performance_and_spending/3233/government_procurement_cards,18-Apr-19,Adult Social Care Health and Wellbeing - Total,AMZNMktplace,Total Adult Social Care,22,Equipment & Furniture,1920Apr_PC00337
Sandwell Metropolitan Borough Council,http://www.sandwell.gov.uk/info/200202/performance_and_spending/3233/government_procurement_cards,18-Apr-19,Adult Social Care Health and Wellbeing - Total,AMZNMktplace,Total Adult Social Care,3,Equipment & Furniture,1920Apr_PC00338
Sandwell Metropolitan Borough Council,http://www.sandwell.gov.uk/info/200202/performance_and_spending/3233/government_procurement_cards,18-Apr-19,Adult Social Care Health and Wellbeing - Total,AMZNMktplace,Total Adult Social Care,2.41,Equipment & Furniture,1920Apr_PC00339
Sandwell Metropolitan Borough Council,http://www.sandwell.gov.uk/info/200202/performance_and_spending/3233/government_procurement_cards,18-Apr-19,Adult Social Care Health and Wellbeing - Total,AMZNMktplace,Total Adult Social Care,99.6,Equipment & Furniture,1920Apr_PC00340
Sandwell Metropolitan Borough Council,http://www.sandwell.gov.uk/info/200202/performance_and_spending/3233/government_procurement_cards,18-Apr-19,Childrens Services,ASDA STORES LTD 5865,Childrens Services,7.3,Materials & Consumables,1920Apr_PC00341
Sandwell Metropolitan Borough Council,http://www.sandwell.gov.uk/info/200202/performance_and_spending/3233/government_procurement_cards,18-Apr-19,Individual School Budgets With Inclusion,AMZNMktplace,Individual School Budgets With Inclusion,67,Printing Stationery&Gen Office,1920Apr_PC00342
Sandwell Metropolitan Borough Council,http://www.sandwell.gov.uk/info/200202/performance_and_spending/3233/government_procurement_cards,18-Apr-19,Housing Revenue Account Capital,WESTERN POWER DISTRIBU,Housing Revenue Account Capital,50.72,Energy Costs-Electricity,1920Apr_PC00343
Sandwell Metropolitan Borough Council,http://www.sandwell.gov.uk/info/200202/performance_and_spending/3233/government_procurement_cards,18-Apr-19,Adult Social Care Health and Wellbeing - Total,WWW.ADASS.ORG.UK,Total Adult Social Care,13.47,Conference Expenses,1920Apr_PC00344
Sandwell Metropolitan Borough Council,http://www.sandwell.gov.uk/info/200202/performance_and_spending/3233/government_procurement_cards,18-Apr-19,Childrens Services,AMZNMktplace,Childrens Services,44.62,R& M - Building Maint&Imp.,1920Apr_PC00345
Sandwell Metropolitan Borough Council,http://www.sandwell.gov.uk/info/200202/performance_and_spending/3233/government_procurement_cards,18-Apr-19,Regeneration & Growth,AMZN Mktp UK MZ3ZB96T4,Regeneration And The Economy,19.99,Equipment & Furniture,1920Apr_PC00346
Sandwell Metropolitan Borough Council,http://www.sandwell.gov.uk/info/200202/performance_and_spending/3233/government_procurement_cards,18-Apr-19,Regeneration & Growth,AMZNMktplace,Regeneration And The Economy,79.98,Equipment & Furniture,1920Apr_PC00347
Sandwell Metropolitan Borough Council,http://www.sandwell.gov.uk/info/200202/performance_and_spending/3233/government_procurement_cards,18-Apr-19,Individual School Budgets With Inclusion,AMZNMKTPLACE AMAZON.CO,Individual School Budgets With Inclusion,2.93,Printing Stationery&Gen Office,1920Apr_PC00348
Sandwell Metropolitan Borough Council,http://www.sandwell.gov.uk/info/200202/performance_and_spending/3233/government_procurement_cards,18-Apr-19,Resources (Inc SIU),AMZNMktplace,Assistant Chief Executive (Excl SIU),3.41,Printing Stationery&Gen Office,1920Apr_PC00349
Sandwell Metropolitan Borough Council,http://www.sandwell.gov.uk/info/200202/performance_and_spending/3233/government_procurement_cards,18-Apr-19,Resources (Inc SIU),AMZN Mktp UK MZ96866W4,Assistant Chief Executive (Excl SIU),51,Printing Stationery&Gen Office,1920Apr_PC00350
Sandwell Metropolitan Borough Council,http://www.sandwell.gov.uk/info/200202/performance_and_spending/3233/government_procurement_cards,18-Apr-19,Regeneration & Growth,WWW.DESIGNOFFICESUPPLI,Regeneration And The Economy,118.8,Equipment & Furniture,1920Apr_PC00351
Sandwell Metropolitan Borough Council,http://www.sandwell.gov.uk/info/200202/performance_and_spending/3233/government_procurement_cards,18-Apr-19,Housing & Communities,OFFICE DEPOT UK,Neighbourhoods,1.41,Printing Stationery&Gen Office,1920Apr_PC00352
Sandwell Metropolitan Borough Council,http://www.sandwell.gov.uk/info/200202/performance_and_spending/3233/government_procurement_cards,18-Apr-19,Housing & Communities,OFFICE DEPOT UK,Neighbourhoods,38.3,Printing Stationery&Gen Office,1920Apr_PC00353
Sandwell Metropolitan Borough Council,http://www.sandwell.gov.uk/info/200202/performance_and_spending/3233/government_procurement_cards,18-Apr-19,Adult Social Care Health and Wellbeing - Total,AMZN Mktp UK MZ72Q26R4,Total Adult Social Care,10.8,Equipment & Furniture,1920Apr_PC00354
Sandwell Metropolitan Borough Council,http://www.sandwell.gov.uk/info/200202/performance_and_spending/3233/government_procurement_cards,18-Apr-19,Childrens Services,OFFICE DEPOT UK,Childrens Services,999.95,Printing Stationery&Gen Office,1920Apr_PC00355
Sandwell Metropolitan Borough Council,http://www.sandwell.gov.uk/info/200202/performance_and_spending/3233/government_procurement_cards,18-Apr-19,Adult Social Care Health and Wellbeing - Total,AMZN Mktp UK MZ2ZS0604,Total Adult Social Care,147.14,ICT,1920Apr_PC00356
Sandwell Metropolitan Borough Council,http://www.sandwell.gov.uk/info/200202/performance_and_spending/3233/government_procurement_cards,18-Apr-19,Adult Social Care Health and Wellbeing - Total,PROARK UK HOTELS LTD O,Total Adult Social Care,135,Hire of Facilities,1920Apr_PC00357
Sandwell Metropolitan Borough Council,http://www.sandwell.gov.uk/info/200202/performance_and_spending/3233/government_procurement_cards,18-Apr-19,Adult Social Care Health and Wellbeing - Total,PROARK UK HOTELS LTD O,Total Adult Social Care,135,Hire of Facilities,1920Apr_PC00358
Sandwell Metropolitan Borough Council,http://www.sandwell.gov.uk/info/200202/performance_and_spending/3233/government_procurement_cards,18-Apr-19,Total Housing Revenue Account,OFFICE DEPOT UK,Total Housing Revenue Account,8.33,Printing Stationery&Gen Office,1920Apr_PC00359
Sandwell Metropolitan Borough Council,http://www.sandwell.gov.uk/info/200202/performance_and_spending/3233/government_procurement_cards,18-Apr-19,Regeneration & Growth,OFFICE DEPOT UK,Regeneration And The Economy,61.62,Printing Stationery&Gen Office,1920Apr_PC00360
Sandwell Metropolitan Borough Council,http://www.sandwell.gov.uk/info/200202/performance_and_spending/3233/government_procurement_cards,18-Apr-19,Childrens Services,OFFICE DEPOT UK,Childrens Services,147.12,Printing Stationery&Gen Office,1920Apr_PC00361
Sandwell Metropolitan Borough Council,http://www.sandwell.gov.uk/info/200202/performance_and_spending/3233/government_procurement_cards,18-Apr-19,Housing & Communities,OFFICE DEPOT UK,Neighbourhoods,15.82,Printing Stationery&Gen Office,1920Apr_PC00362
Sandwell Metropolitan Borough Council,http://www.sandwell.gov.uk/info/200202/performance_and_spending/3233/government_procurement_cards,18-Apr-19,Childrens Services,DOVE VALLEY TIMBER & F,Childrens Services,2.08,Grounds Maint&Improvements,1920Apr_PC00363
Sandwell Metropolitan Borough Council,http://www.sandwell.gov.uk/info/200202/performance_and_spending/3233/government_procurement_cards,18-Apr-19,Total Housing Revenue Account,OFFICE DEPOT UK,Total Housing Revenue Account,0.66,Printing Stationery&Gen Office,1920Apr_PC00364
Sandwell Metropolitan Borough Council,http://www.sandwell.gov.uk/info/200202/performance_and_spending/3233/government_procurement_cards,18-Apr-19,Total Housing Revenue Account,OFFICE DEPOT UK,Total Housing Revenue Account,45.77,Printing Stationery&Gen Office,1920Apr_PC00365
Sandwell Metropolitan Borough Council,http://www.sandwell.gov.uk/info/200202/performance_and_spending/3233/government_procurement_cards,18-Apr-19,Housing & Communities,WWW.VICARAGELODGE.COM,Neighbourhoods,40.83,Operational Services,1920Apr_PC00366
Sandwell Metropolitan Borough Council,http://www.sandwell.gov.uk/info/200202/performance_and_spending/3233/government_procurement_cards,19-Apr-19,Total Housing Revenue Account,Central Taxis Limited,Total Housing Revenue Account,63.65,Public Transport,1920Apr_PC00367
Sandwell Metropolitan Borough Council,http://www.sandwell.gov.uk/info/200202/performance_and_spending/3233/government_procurement_cards,19-Apr-19,Childrens Services,AVH SUPPLIES,Childrens Services,21.22,R& M - Building Maint&Imp.,1920Apr_PC00368
Sandwell Metropolitan Borough Council,http://www.sandwell.gov.uk/info/200202/performance_and_spending/3233/government_procurement_cards,19-Apr-19,Resources (Inc SIU),WWW.CIPS.ORG,Assistant Chief Executive (Excl SIU),274.87,Ind. Emp Exp-Staff Dev&Training,1920Apr_PC00369
Sandwell Metropolitan Borough Council,http://www.sandwell.gov.uk/info/200202/performance_and_spending/3233/government_procurement_cards,19-Apr-19,Childrens Services,COTSWOLD OUTDOOR,Childrens Services,137.43,Protective Clothing&Uniforms,1920Apr_PC00370
Sandwell Metropolitan Borough Council,http://www.sandwell.gov.uk/info/200202/performance_and_spending/3233/government_procurement_cards,19-Apr-19,Resources (Inc SIU),UNIQUE VENUES BIRMINGH,Assistant Chief Executive (Excl SIU),14.29,Conference Expenses,1920Apr_PC00371
Sandwell Metropolitan Borough Council,http://www.sandwell.gov.uk/info/200202/performance_and_spending/3233/government_procurement_cards,19-Apr-19,Resources (Inc SIU),WWW.HYMNSAM.CO.UK,Assistant Chief Executive (Excl SIU),295,Printing Stationery&Gen Office,1920Apr_PC00372
Sandwell Metropolitan Borough Council,http://www.sandwell.gov.uk/info/200202/performance_and_spending/3233/government_procurement_cards,19-Apr-19,Housing & Communities,OFFICE DEPOT UK,Neighbourhoods,148,Printing Stationery&Gen Office,1920Apr_PC00373
Sandwell Metropolitan Borough Council,http://www.sandwell.gov.uk/info/200202/performance_and_spending/3233/government_procurement_cards,19-Apr-19,Childrens Services,Trainline,Childrens Services,59.97,Public Transport,1920Apr_PC00374
Sandwell Metropolitan Borough Council,http://www.sandwell.gov.uk/info/200202/performance_and_spending/3233/government_procurement_cards,19-Apr-19,Childrens Services,Trainline,Childrens Services,34.76,Public Transport,1920Apr_PC00375
Sandwell Metropolitan Borough Council,http://www.sandwell.gov.uk/info/200202/performance_and_spending/3233/government_procurement_cards,19-Apr-19,Childrens Services,OFFICE DEPOT UK,Childrens Services,1014,Printing Stationery&Gen Office,1920Apr_PC00376
Sandwell Metropolitan Borough Council,http://www.sandwell.gov.uk/info/200202/performance_and_spending/3233/government_procurement_cards,19-Apr-19,Adult Social Care Health and Wellbeing - Total,APPLE ONLINE STORE GBP,Total Adult Social Care,32.46,Telephones,1920Apr_PC00377
Sandwell Metropolitan Borough Council,http://www.sandwell.gov.uk/info/200202/performance_and_spending/3233/government_procurement_cards,19-Apr-19,Housing & Communities,EDGBASTON PALACE,Neighbourhoods,641.67,Operational Services,1920Apr_PC00378
Sandwell Metropolitan Borough Council,http://www.sandwell.gov.uk/info/200202/performance_and_spending/3233/government_procurement_cards,19-Apr-19,Housing & Communities,HIGHFIELD HOUSE HO,Neighbourhoods,291.67,Operational Services,1920Apr_PC00379
Sandwell Metropolitan Borough Council,http://www.sandwell.gov.uk/info/200202/performance_and_spending/3233/government_procurement_cards,19-Apr-19,Housing & Communities,POUNDLAND LTD,Neighbourhoods,100,Materials & Consumables,1920Apr_PC00380
Sandwell Metropolitan Borough Council,http://www.sandwell.gov.uk/info/200202/performance_and_spending/3233/government_procurement_cards,22-Apr-19,Housing & Communities,POUNDLAND LTD 1576,Neighbourhoods,145.85,Catering Provisions,1920Apr_PC00381
Sandwell Metropolitan Borough Council,http://www.sandwell.gov.uk/info/200202/performance_and_spending/3233/government_procurement_cards,22-Apr-19,Childrens Services,BOOKWHEN.COM - BOOKING,Childrens Services,1.94,Subscriptions,1920Apr_PC00382
Sandwell Metropolitan Borough Council,http://www.sandwell.gov.uk/info/200202/performance_and_spending/3233/government_procurement_cards,22-Apr-19,Housing & Communities,AMZNMktplace,Neighbourhoods,3.66,ICT,1920Apr_PC00383
Sandwell Metropolitan Borough Council,http://www.sandwell.gov.uk/info/200202/performance_and_spending/3233/government_procurement_cards,22-Apr-19,Adult Social Care Health and Wellbeing - Total,Amazon Prime MZ6KK7SW4,Public Health,7.99,Subscriptions,1920Apr_PC00384
Sandwell Metropolitan Borough Council,http://www.sandwell.gov.uk/info/200202/performance_and_spending/3233/government_procurement_cards,23-Apr-19,Resources (Inc SIU),SAINSBURYS SACAT0558,Assistant Chief Executive (Excl SIU),51.38,Catering Provisions,1920Apr_PC00385
Sandwell Metropolitan Borough Council,http://www.sandwell.gov.uk/info/200202/performance_and_spending/3233/government_procurement_cards,23-Apr-19,Resources (Inc SIU),SAINSBURYS SACAT0558,Assistant Chief Executive (Excl SIU),49.98,Catering Provisions,1920Apr_PC00386
Sandwell Metropolitan Borough Council,http://www.sandwell.gov.uk/info/200202/performance_and_spending/3233/government_procurement_cards,24-Apr-19,Resources (Inc SIU),LABELS DIRECT LTD,Assistant Chief Executive (Excl SIU),21.6,Printing Stationery&Gen Office,1920Apr_PC00387
Sandwell Metropolitan Borough Council,http://www.sandwell.gov.uk/info/200202/performance_and_spending/3233/government_procurement_cards,24-Apr-19,Housing & Communities,PAYPAL  SALES,Neighbourhoods,3.45,Grounds Maint&Improvements,1920Apr_PC00388
Sandwell Metropolitan Borough Council,http://www.sandwell.gov.uk/info/200202/performance_and_spending/3233/government_procurement_cards,24-Apr-19,Adult Social Care Health and Wellbeing - Total,AMZN Mktp UK MZ0O729Z4,Total Adult Social Care,84.77,Materials & Consumables,1920Apr_PC00389
Sandwell Metropolitan Borough Council,http://www.sandwell.gov.uk/info/200202/performance_and_spending/3233/government_procurement_cards,24-Apr-19,Resources Capital,Amazon.co.uk MZ9ED89P4,Resources Capital,26.66,ICT,1920Apr_PC00390
Sandwell Metropolitan Borough Council,http://www.sandwell.gov.uk/info/200202/performance_and_spending/3233/government_procurement_cards,24-Apr-19,Childrens Services,WWW.QUICKSARCHERY.CO.U,Childrens Services,4.54,Equipment & Furniture,1920Apr_PC00391
Sandwell Metropolitan Borough Council,http://www.sandwell.gov.uk/info/200202/performance_and_spending/3233/government_procurement_cards,24-Apr-19,Total Housing Revenue Account,SAINSBURYS TO YOU 0558,Total Housing Revenue Account,16.83,Conference Expenses,1920Apr_PC00392
Sandwell Metropolitan Borough Council,http://www.sandwell.gov.uk/info/200202/performance_and_spending/3233/government_procurement_cards,24-Apr-19,Total Housing Revenue Account,SAINSBURYS TO YOU 0558,Total Housing Revenue Account,69.13,Conference Expenses,1920Apr_PC00393
Sandwell Metropolitan Borough Council,http://www.sandwell.gov.uk/info/200202/performance_and_spending/3233/government_procurement_cards,24-Apr-19,Childrens Services,ASDA STORES LTD 5865,Childrens Services,7.49,Materials & Consumables,1920Apr_PC00394
Sandwell Metropolitan Borough Council,http://www.sandwell.gov.uk/info/200202/performance_and_spending/3233/government_procurement_cards,24-Apr-19,Childrens Services,NHBS LTD,Childrens Services,93.75,Equipment & Furniture,1920Apr_PC00395
Sandwell Metropolitan Borough Council,http://www.sandwell.gov.uk/info/200202/performance_and_spending/3233/government_procurement_cards,24-Apr-19,Housing & Communities,THE EDGBASTON PALA,Neighbourhoods,525,Operational Services,1920Apr_PC00396
Sandwell Metropolitan Borough Council,http://www.sandwell.gov.uk/info/200202/performance_and_spending/3233/government_procurement_cards,24-Apr-19,Housing & Communities,HIGHFIELD HOUSE HO,Neighbourhoods,157.5,Operational Services,1920Apr_PC00397
Sandwell Metropolitan Borough Council,http://www.sandwell.gov.uk/info/200202/performance_and_spending/3233/government_procurement_cards,24-Apr-19,Housing & Communities,HIGHFIELD HOUSE HO,Neighbourhoods,225,Operational Services,1920Apr_PC00398
Sandwell Metropolitan Borough Council,http://www.sandwell.gov.uk/info/200202/performance_and_spending/3233/government_procurement_cards,24-Apr-19,Housing & Communities,HIGHFIELD HOUSE HO,Neighbourhoods,157.5,Operational Services,1920Apr_PC00399
Sandwell Metropolitan Borough Council,http://www.sandwell.gov.uk/info/200202/performance_and_spending/3233/government_procurement_cards,24-Apr-19,Housing & Communities,HIGHFIELD HOUSE HO,Neighbourhoods,320.83,Operational Services,1920Apr_PC00400
Sandwell Metropolitan Borough Council,http://www.sandwell.gov.uk/info/200202/performance_and_spending/3233/government_procurement_cards,24-Apr-19,Housing & Communities,HIGHFIELD HOUSE HO,Neighbourhoods,191.67,Operational Services,1920Apr_PC00401
Sandwell Metropolitan Borough Council,http://www.sandwell.gov.uk/info/200202/performance_and_spending/3233/government_procurement_cards,24-Apr-19,Housing & Communities,WWW.VICARAGELODGE.COM,Neighbourhoods,46.67,Operational Services,1920Apr_PC00402
Sandwell Metropolitan Borough Council,http://www.sandwell.gov.uk/info/200202/performance_and_spending/3233/government_procurement_cards,25-Apr-19,Regeneration & Growth,WWW.MOVERSANDSHAKERS.U,Regeneration And The Economy,12.5,Ind. Emp Exp-Staff Dev&Training,1920Apr_PC00403
Sandwell Metropolitan Borough Council,http://www.sandwell.gov.uk/info/200202/performance_and_spending/3233/government_procurement_cards,25-Apr-19,Resources (Inc SIU),OFFICE.EC,Assistant Chief Executive (Excl SIU),26.2,Printing Stationery&Gen Office,1920Apr_PC00404
Sandwell Metropolitan Borough Council,http://www.sandwell.gov.uk/info/200202/performance_and_spending/3233/government_procurement_cards,25-Apr-19,Childrens Services,HANDY DRY CLEANERS,Childrens Services,1.91,Laundry,1920Apr_PC00405
Sandwell Metropolitan Borough Council,http://www.sandwell.gov.uk/info/200202/performance_and_spending/3233/government_procurement_cards,25-Apr-19,Total Housing Revenue Account,Amazon.co.uk MZ7FB1UW4,Total Housing Revenue Account,5.99,Equipment & Furniture,1920Apr_PC00406
Sandwell Metropolitan Borough Council,http://www.sandwell.gov.uk/info/200202/performance_and_spending/3233/government_procurement_cards,25-Apr-19,Childrens Services,HOLDZ LTD,Childrens Services,93.33,Equipment & Furniture,1920Apr_PC00407
Sandwell Metropolitan Borough Council,http://www.sandwell.gov.uk/info/200202/performance_and_spending/3233/government_procurement_cards,25-Apr-19,Regeneration & Growth,PAYPAL  RTPI,Regeneration And The Economy,17.37,Ind. Emp Exp-Staff Dev&Training,1920Apr_PC00408
Sandwell Metropolitan Borough Council,http://www.sandwell.gov.uk/info/200202/performance_and_spending/3233/government_procurement_cards,25-Apr-19,Resources (Inc SIU),AMZN Mktp UK MZ9CH6UD4,Assistant Chief Executive (Excl SIU),1.23,Printing Stationery&Gen Office,1920Apr_PC00409
Sandwell Metropolitan Borough Council,http://www.sandwell.gov.uk/info/200202/performance_and_spending/3233/government_procurement_cards,25-Apr-19,Total Housing Revenue Account,THE CELTIC MANOR RESOR,Total Housing Revenue Account,4.37,Ind. Emp Exp-Staff Dev&Training,1920Apr_PC00410
Sandwell Metropolitan Borough Council,http://www.sandwell.gov.uk/info/200202/performance_and_spending/3233/government_procurement_cards,25-Apr-19,Corporate Management,Trainline,Corporate Management,7.39,Public Transport,1920Apr_PC00411
Sandwell Metropolitan Borough Council,http://www.sandwell.gov.uk/info/200202/performance_and_spending/3233/government_procurement_cards,25-Apr-19,Resources (Inc SIU),KAPLAN FINANCIAL LTD,Assistant Chief Executive (Excl SIU),10.8,Professional Services External,1920Apr_PC00412
Sandwell Metropolitan Borough Council,http://www.sandwell.gov.uk/info/200202/performance_and_spending/3233/government_procurement_cards,25-Apr-19,Housing & Communities,Trainline,Neighbourhoods,20.65,Public Transport,1920Apr_PC00413
Sandwell Metropolitan Borough Council,http://www.sandwell.gov.uk/info/200202/performance_and_spending/3233/government_procurement_cards,25-Apr-19,Resources (Inc SIU),OFFICE DEPOT UK,Assistant Chief Executive (Excl SIU),57.57,Printing Stationery&Gen Office,1920Apr_PC00414
Sandwell Metropolitan Borough Council,http://www.sandwell.gov.uk/info/200202/performance_and_spending/3233/government_procurement_cards,25-Apr-19,Total Housing Revenue Account,OFFICE DEPOT UK,Total Housing Revenue Account,133.97,Printing Stationery&Gen Office,1920Apr_PC00415
Sandwell Metropolitan Borough Council,http://www.sandwell.gov.uk/info/200202/performance_and_spending/3233/government_procurement_cards,25-Apr-19,Resources (Inc SIU),OFFICE DEPOT UK,Assistant Chief Executive (Excl SIU),4.06,Printing Stationery&Gen Office,1920Apr_PC00416
Sandwell Metropolitan Borough Council,http://www.sandwell.gov.uk/info/200202/performance_and_spending/3233/government_procurement_cards,25-Apr-19,Total Housing Revenue Account,OFFICE DEPOT UK,Total Housing Revenue Account,18.75,Printing Stationery&Gen Office,1920Apr_PC00417
Sandwell Metropolitan Borough Council,http://www.sandwell.gov.uk/info/200202/performance_and_spending/3233/government_procurement_cards,25-Apr-19,Total Housing Revenue Account,WWW.TPEXPRESS.CO.UK,Total Housing Revenue Account,66.65,Public Transport,1920Apr_PC00418
Sandwell Metropolitan Borough Council,http://www.sandwell.gov.uk/info/200202/performance_and_spending/3233/government_procurement_cards,25-Apr-19,Total Housing Revenue Account,Cross Country Trains,Total Housing Revenue Account,119.05,Public Transport,1920Apr_PC00419
Sandwell Metropolitan Borough Council,http://www.sandwell.gov.uk/info/200202/performance_and_spending/3233/government_procurement_cards,25-Apr-19,Childrens Services,ALDI 74 778,Childrens Services,1.63,Materials & Consumables,1920Apr_PC00420
Sandwell Metropolitan Borough Council,http://www.sandwell.gov.uk/info/200202/performance_and_spending/3233/government_procurement_cards,25-Apr-19,Housing & Communities,PAYPAL  VERDO LTD,Neighbourhoods,104.58,Equipment & Furniture,1920Apr_PC00421
Sandwell Metropolitan Borough Council,http://www.sandwell.gov.uk/info/200202/performance_and_spending/3233/government_procurement_cards,25-Apr-19,Housing & Communities,MEACO,Neighbourhoods,178,Materials & Consumables,1920Apr_PC00422
Sandwell Metropolitan Borough Council,http://www.sandwell.gov.uk/info/200202/performance_and_spending/3233/government_procurement_cards,25-Apr-19,Housing & Communities,AMZN Mktp UK MZ5JD3US4,Neighbourhoods,11.03,Grounds Maint&Improvements,1920Apr_PC00423
Sandwell Metropolitan Borough Council,http://www.sandwell.gov.uk/info/200202/performance_and_spending/3233/government_procurement_cards,25-Apr-19,Childrens Services,Trainline,Childrens Services,188.75,Public Transport,1920Apr_PC00424
Sandwell Metropolitan Borough Council,http://www.sandwell.gov.uk/info/200202/performance_and_spending/3233/government_procurement_cards,26-Apr-19,Housing & Communities,AMZ One Retail Group,Neighbourhoods,18.54,Equipment & Furniture,1920Apr_PC00425
Sandwell Metropolitan Borough Council,http://www.sandwell.gov.uk/info/200202/performance_and_spending/3233/government_procurement_cards,26-Apr-19,Regeneration & Growth,WILKO RETAIL LIMIT,Regeneration And The Economy,38.85,Equipment & Furniture,1920Apr_PC00426
Sandwell Metropolitan Borough Council,http://www.sandwell.gov.uk/info/200202/performance_and_spending/3233/government_procurement_cards,26-Apr-19,Housing & Communities,MIDLAND STARTER,Neighbourhoods,110,Fire Service Workshops,1920Apr_PC00427
Sandwell Metropolitan Borough Council,http://www.sandwell.gov.uk/info/200202/performance_and_spending/3233/government_procurement_cards,26-Apr-19,Resources (Inc SIU),Amazon.co.uk MZ0MH7I34,Assistant Chief Executive (Excl SIU),53.98,Printing Stationery&Gen Office,1920Apr_PC00428
Sandwell Metropolitan Borough Council,http://www.sandwell.gov.uk/info/200202/performance_and_spending/3233/government_procurement_cards,26-Apr-19,Childrens Services,AMZNMKTPLACE AMAZON.CO,Childrens Services,8.9,Catering Provisions,1920Apr_PC00429
Sandwell Metropolitan Borough Council,http://www.sandwell.gov.uk/info/200202/performance_and_spending/3233/government_procurement_cards,26-Apr-19,Housing & Communities,AMZN Mktp UK MZ8MG7RD4,Neighbourhoods,2.2,Materials & Consumables,1920Apr_PC00430
Sandwell Metropolitan Borough Council,http://www.sandwell.gov.uk/info/200202/performance_and_spending/3233/government_procurement_cards,26-Apr-19,Adult Social Care Health and Wellbeing - Total,ASDA SUPERSTORE,Total Adult Social Care,6.04,Catering Provisions,1920Apr_PC00431
Sandwell Metropolitan Borough Council,http://www.sandwell.gov.uk/info/200202/performance_and_spending/3233/government_procurement_cards,26-Apr-19,Adult Social Care Health and Wellbeing - Total,ASDA SUPERSTORE,Total Adult Social Care,3.83,Catering Provisions,1920Apr_PC00432
Sandwell Metropolitan Borough Council,http://www.sandwell.gov.uk/info/200202/performance_and_spending/3233/government_procurement_cards,26-Apr-19,Adult Social Care Health and Wellbeing - Total,ASDA SUPERSTORE,Total Adult Social Care,5.99,Catering Provisions,1920Apr_PC00433
Sandwell Metropolitan Borough Council,http://www.sandwell.gov.uk/info/200202/performance_and_spending/3233/government_procurement_cards,26-Apr-19,Adult Social Care Health and Wellbeing - Total,ASDA SUPERSTORE,Total Adult Social Care,10.81,Catering Provisions,1920Apr_PC00434
Sandwell Metropolitan Borough Council,http://www.sandwell.gov.uk/info/200202/performance_and_spending/3233/government_procurement_cards,26-Apr-19,Adult Social Care Health and Wellbeing - Total,ASDA SUPERSTORE,Total Adult Social Care,41.97,Catering Provisions,1920Apr_PC00435
Sandwell Metropolitan Borough Council,http://www.sandwell.gov.uk/info/200202/performance_and_spending/3233/government_procurement_cards,26-Apr-19,Adult Social Care Health and Wellbeing - Total,ASDA SUPERSTORE,Total Adult Social Care,21.2,Catering Provisions,1920Apr_PC00436
Sandwell Metropolitan Borough Council,http://www.sandwell.gov.uk/info/200202/performance_and_spending/3233/government_procurement_cards,26-Apr-19,Housing Revenue Account Capital,SEVERN TRENT WATER,Housing Revenue Account Capital,31.13,Water Services,1920Apr_PC00437
Sandwell Metropolitan Borough Council,http://www.sandwell.gov.uk/info/200202/performance_and_spending/3233/government_procurement_cards,26-Apr-19,Childrens Services,AMZN Mktp UK MZ6LT6R34,Childrens Services,50,Printing Stationery&Gen Office,1920Apr_PC00438
Sandwell Metropolitan Borough Council,http://www.sandwell.gov.uk/info/200202/performance_and_spending/3233/government_procurement_cards,26-Apr-19,Childrens Services,Amazon.co.uk MZ5B65R34,Childrens Services,19.74,Materials & Consumables,1920Apr_PC00439
Sandwell Metropolitan Borough Council,http://www.sandwell.gov.uk/info/200202/performance_and_spending/3233/government_procurement_cards,26-Apr-19,Childrens Services,AMZNMktplace,Childrens Services,15.72,Materials & Consumables,1920Apr_PC00440
Sandwell Metropolitan Borough Council,http://www.sandwell.gov.uk/info/200202/performance_and_spending/3233/government_procurement_cards,26-Apr-19,Resources (Inc SIU),WWW.THERANGE.CO.UK,Assistant Chief Executive (Excl SIU),-24.99,Printing Stationery&Gen Office,1920Apr_PC00441
Sandwell Metropolitan Borough Council,http://www.sandwell.gov.uk/info/200202/performance_and_spending/3233/government_procurement_cards,26-Apr-19,Housing & Communities,ASDA SUPERSTORE,Neighbourhoods,27.15,Catering Equipment,1920Apr_PC00442
Sandwell Metropolitan Borough Council,http://www.sandwell.gov.uk/info/200202/performance_and_spending/3233/government_procurement_cards,26-Apr-19,Childrens Services,ANIMOTO INC,Childrens Services,10.83,Subscriptions,1920Apr_PC00443
Sandwell Metropolitan Borough Council,http://www.sandwell.gov.uk/info/200202/performance_and_spending/3233/government_procurement_cards,26-Apr-19,Regeneration & Growth,Amazon.co.uk MZ0J58IS4,Regeneration And The Economy,2.87,Equipment & Furniture,1920Apr_PC00444
Sandwell Metropolitan Borough Council,http://www.sandwell.gov.uk/info/200202/performance_and_spending/3233/government_procurement_cards,26-Apr-19,Resources (Inc SIU),Trainline.com,Assistant Chief Executive (Excl SIU),14.57,Public Transport,1920Apr_PC00445
Sandwell Metropolitan Borough Council,http://www.sandwell.gov.uk/info/200202/performance_and_spending/3233/government_procurement_cards,26-Apr-19,Adult Social Care Health and Wellbeing - Total,ASDA SUPERSTORE,Total Adult Social Care,35.85,Catering Provisions,1920Apr_PC00446
Sandwell Metropolitan Borough Council,http://www.sandwell.gov.uk/info/200202/performance_and_spending/3233/government_procurement_cards,26-Apr-19,Adult Social Care Health and Wellbeing - Total,ASDA SUPERSTORE,Total Adult Social Care,14.01,Catering Provisions,1920Apr_PC00447
Sandwell Metropolitan Borough Council,http://www.sandwell.gov.uk/info/200202/performance_and_spending/3233/government_procurement_cards,26-Apr-19,Adult Social Care Health and Wellbeing - Total,ASDA SUPERSTORE,Total Adult Social Care,12.91,Catering Provisions,1920Apr_PC00448
Sandwell Metropolitan Borough Council,http://www.sandwell.gov.uk/info/200202/performance_and_spending/3233/government_procurement_cards,26-Apr-19,Adult Social Care Health and Wellbeing - Total,ASDA SUPERSTORE,Total Adult Social Care,8.38,Catering Provisions,1920Apr_PC00449
Sandwell Metropolitan Borough Council,http://www.sandwell.gov.uk/info/200202/performance_and_spending/3233/government_procurement_cards,26-Apr-19,Adult Social Care Health and Wellbeing - Total,ASDA SUPERSTORE,Total Adult Social Care,4.79,Catering Provisions,1920Apr_PC00450
Sandwell Metropolitan Borough Council,http://www.sandwell.gov.uk/info/200202/performance_and_spending/3233/government_procurement_cards,26-Apr-19,Housing & Communities,Trainline,Neighbourhoods,416.67,Public Transport,1920Apr_PC00451
Sandwell Metropolitan Borough Council,http://www.sandwell.gov.uk/info/200202/performance_and_spending/3233/government_procurement_cards,26-Apr-19,Housing & Communities,OFFICE DEPOT UK,Neighbourhoods,424.33,Equipment & Furniture,1920Apr_PC00452
Sandwell Metropolitan Borough Council,http://www.sandwell.gov.uk/info/200202/performance_and_spending/3233/government_procurement_cards,26-Apr-19,Childrens Services,AMZNMktplace,Childrens Services,39.43,Printing Stationery&Gen Office,1920Apr_PC00453
Sandwell Metropolitan Borough Council,http://www.sandwell.gov.uk/info/200202/performance_and_spending/3233/government_procurement_cards,26-Apr-19,Childrens Services,AMZNMktplace,Childrens Services,29.99,Equipment & Furniture,1920Apr_PC00454
Sandwell Metropolitan Borough Council,http://www.sandwell.gov.uk/info/200202/performance_and_spending/3233/government_procurement_cards,26-Apr-19,Adult Social Care Health and Wellbeing - Total,Trainline,Total Adult Social Care,255.9,Public Transport,1920Apr_PC00455
Sandwell Metropolitan Borough Council,http://www.sandwell.gov.uk/info/200202/performance_and_spending/3233/government_procurement_cards,26-Apr-19,Housing & Communities,PREMIER INN,Neighbourhoods,320,Operational Services,1920Apr_PC00456
Sandwell Metropolitan Borough Council,http://www.sandwell.gov.uk/info/200202/performance_and_spending/3233/government_procurement_cards,26-Apr-19,Housing & Communities,PREMIER INN,Neighbourhoods,65.83,Operational Services,1920Apr_PC00457
Sandwell Metropolitan Borough Council,http://www.sandwell.gov.uk/info/200202/performance_and_spending/3233/government_procurement_cards,26-Apr-19,Housing & Communities,EDGBASTON PALACE,Neighbourhoods,641.67,Operational Services,1920Apr_PC00458
Sandwell Metropolitan Borough Council,http://www.sandwell.gov.uk/info/200202/performance_and_spending/3233/government_procurement_cards,26-Apr-19,Housing & Communities,HIGHFIELD HOUSE HO,Neighbourhoods,291.67,Operational Services,1920Apr_PC00459
Sandwell Metropolitan Borough Council,http://www.sandwell.gov.uk/info/200202/performance_and_spending/3233/government_procurement_cards,26-Apr-19,Housing & Communities,WWW.VICARAGELODGE.COM,Neighbourhoods,186.67,Operational Services,1920Apr_PC00460
Sandwell Metropolitan Borough Council,http://www.sandwell.gov.uk/info/200202/performance_and_spending/3233/government_procurement_cards,26-Apr-19,Housing & Communities,AMZNMktplace,Neighbourhoods,3.27,Grounds Maint&Improvements,1920Apr_PC00461
Sandwell Metropolitan Borough Council,http://www.sandwell.gov.uk/info/200202/performance_and_spending/3233/government_procurement_cards,26-Apr-19,Housing & Communities,AMZN Mktp UK MZ2SS4I94,Neighbourhoods,7.5,Grounds Maint&Improvements,1920Apr_PC00462
Sandwell Metropolitan Borough Council,http://www.sandwell.gov.uk/info/200202/performance_and_spending/3233/government_procurement_cards,26-Apr-19,Housing & Communities,AMZN Mktp UK MZ6H50UV4,Neighbourhoods,1.57,Grounds Maint&Improvements,1920Apr_PC00463
Sandwell Metropolitan Borough Council,http://www.sandwell.gov.uk/info/200202/performance_and_spending/3233/government_procurement_cards,29-Apr-19,Housing & Communities,CULPITT LTD,Neighbourhoods,304,Materials & Consumables,1920Apr_PC00464
Sandwell Metropolitan Borough Council,http://www.sandwell.gov.uk/info/200202/performance_and_spending/3233/government_procurement_cards,29-Apr-19,Housing & Communities,AMZNMktplace,Neighbourhoods,152,Grounds Maint&Improvements,1920Apr_PC00465
Sandwell Metropolitan Borough Council,http://www.sandwell.gov.uk/info/200202/performance_and_spending/3233/government_procurement_cards,29-Apr-19,Housing & Communities,WILKO RETAIL LIMIT,Neighbourhoods,116.5,Materials & Consumables,1920Apr_PC00466
Sandwell Metropolitan Borough Council,http://www.sandwell.gov.uk/info/200202/performance_and_spending/3233/government_procurement_cards,29-Apr-19,Total Housing Revenue Account,AMZNMktplace,Total Housing Revenue Account,100,Equipment & Furniture,1920Apr_PC00467
Sandwell Metropolitan Borough Council,http://www.sandwell.gov.uk/info/200202/performance_and_spending/3233/government_procurement_cards,29-Apr-19,Childrens Services,AMZNMktplace,Childrens Services,25.82,Fixtures & Fittings,1920Apr_PC00468
Sandwell Metropolitan Borough Council,http://www.sandwell.gov.uk/info/200202/performance_and_spending/3233/government_procurement_cards,29-Apr-19,Housing & Communities,PACK KING LTD,Neighbourhoods,2.87,Equipment & Furniture,1920Apr_PC00469
Sandwell Metropolitan Borough Council,http://www.sandwell.gov.uk/info/200202/performance_and_spending/3233/government_procurement_cards,29-Apr-19,Childrens Services,AMZN Mktp UK MZ4JX8RZ4,Childrens Services,8.99,Printing Stationery&Gen Office,1920Apr_PC00470
Sandwell Metropolitan Borough Council,http://www.sandwell.gov.uk/info/200202/performance_and_spending/3233/government_procurement_cards,29-Apr-19,Resources (Inc SIU),Trainline,Assistant Chief Executive (Excl SIU),21.32,Public Transport,1920Apr_PC00471
Sandwell Metropolitan Borough Council,http://www.sandwell.gov.uk/info/200202/performance_and_spending/3233/government_procurement_cards,29-Apr-19,Adult Social Care Health and Wellbeing - Total,AMZNMKTPLACE AMAZON.CO,Total Adult Social Care,8.99,Telephones,1920Apr_PC00472
Sandwell Metropolitan Borough Council,http://www.sandwell.gov.uk/info/200202/performance_and_spending/3233/government_procurement_cards,29-Apr-19,Adult Social Care Health and Wellbeing - Total,Trainline.com,Public Health,7.37,Public Transport,1920Apr_PC00473
Sandwell Metropolitan Borough Council,http://www.sandwell.gov.uk/info/200202/performance_and_spending/3233/government_procurement_cards,29-Apr-19,Adult Social Care Health and Wellbeing - Total,Trainline,Total Adult Social Care,21.32,Public Transport,1920Apr_PC00474
Sandwell Metropolitan Borough Council,http://www.sandwell.gov.uk/info/200202/performance_and_spending/3233/government_procurement_cards,29-Apr-19,Childrens Services,Amazon.co.uk MZ20Z5I54,Childrens Services,59,Materials & Consumables,1920Apr_PC00475
Sandwell Metropolitan Borough Council,http://www.sandwell.gov.uk/info/200202/performance_and_spending/3233/government_procurement_cards,29-Apr-19,Housing & Communities,HOME BARGAINS MERRY HI,Neighbourhoods,14.85,Equipment & Furniture,1920Apr_PC00476
Sandwell Metropolitan Borough Council,http://www.sandwell.gov.uk/info/200202/performance_and_spending/3233/government_procurement_cards,29-Apr-19,Housing & Communities,AMZN Mktp UK MZ0G65RY4,Neighbourhoods,3.4,Grounds Maint&Improvements,1920Apr_PC00477
Sandwell Metropolitan Borough Council,http://www.sandwell.gov.uk/info/200202/performance_and_spending/3233/government_procurement_cards,29-Apr-19,Housing & Communities,Amazon Prime MZ9GN4W84,Neighbourhoods,6.66,Materials & Consumables,1920Apr_PC00478
Sandwell Metropolitan Borough Council,http://www.sandwell.gov.uk/info/200202/performance_and_spending/3233/government_procurement_cards,30-Apr-19,Resources (Inc SIU),KALTZ LTD,Assistant Chief Executive (Excl SIU),36.34,Professional Services External,1920Apr_PC00479
Sandwell Metropolitan Borough Council,http://www.sandwell.gov.uk/info/200202/performance_and_spending/3233/government_procurement_cards,30-Apr-19,Total Housing Revenue Account,WWW.KANE.CO.UK,Total Housing Revenue Account,150,Equipment & Furniture,1920Apr_PC00480
Sandwell Metropolitan Borough Council,http://www.sandwell.gov.uk/info/200202/performance_and_spending/3233/government_procurement_cards,30-Apr-19,Total Housing Revenue Account,AMZNMKTPLACE AMAZON.CO,Total Housing Revenue Account,77.49,Materials & Consumables,1920Apr_PC00481
Sandwell Metropolitan Borough Council,http://www.sandwell.gov.uk/info/200202/performance_and_spending/3233/government_procurement_cards,30-Apr-19,Childrens Services,ALDI 74 778,Childrens Services,23.17,Catering Provisions,1920Apr_PC00482
Sandwell Metropolitan Borough Council,http://www.sandwell.gov.uk/info/200202/performance_and_spending/3233/government_procurement_cards,30-Apr-19,Childrens Services,ASDA STORES LTD 5865,Childrens Services,11.7,Catering Provisions,1920Apr_PC00483
Sandwell Metropolitan Borough Council,http://www.sandwell.gov.uk/info/200202/performance_and_spending/3233/government_procurement_cards,30-Apr-19,Resources (Inc SIU),OFFICE DEPOT UK,Assistant Chief Executive (Excl SIU),19.49,Printing Stationery&Gen Office,1920Apr_PC00484
Sandwell Metropolitan Borough Council,http://www.sandwell.gov.uk/info/200202/performance_and_spending/3233/government_procurement_cards,30-Apr-19,Resources (Inc SIU),OFFICE DEPOT UK,Assistant Chief Executive (Excl SIU),61.34,Printing Stationery&Gen Office,1920Apr_PC00485
Sandwell Metropolitan Borough Council,http://www.sandwell.gov.uk/info/200202/performance_and_spending/3233/government_procurement_cards,30-Apr-19,Childrens Services,PAYPAL  STAFFORDSHI,Childrens Services,27.72,Ind. Emp Exp-Staff Dev&Training,1920Apr_PC00486
Sandwell Metropolitan Borough Council,http://www.sandwell.gov.uk/info/200202/performance_and_spending/3233/government_procurement_cards,30-Apr-19,Childrens Services,Trainline,Childrens Services,14.29,Public Transport,1920Apr_PC00487
Sandwell Metropolitan Borough Council,http://www.sandwell.gov.uk/info/200202/performance_and_spending/3233/government_procurement_cards,30-Apr-19,Resources (Inc SIU),Trainline,Assistant Chief Executive (Excl SIU),46.25,Public Transport,1920Apr_PC00488
Sandwell Metropolitan Borough Council,http://www.sandwell.gov.uk/info/200202/performance_and_spending/3233/government_procurement_cards,30-Apr-19,Resources (Inc SIU),Trainline,Assistant Chief Executive (Excl SIU),27.65,Public Transport,1920Apr_PC00489
Sandwell Metropolitan Borough Council,http://www.sandwell.gov.uk/info/200202/performance_and_spending/3233/government_procurement_cards,30-Apr-19,Childrens Services,POST OFFICE COUNTER,Childrens Services,22.74,"Postages, Carriage & Courier Services",1920Apr_PC00490
Sandwell Metropolitan Borough Council,http://www.sandwell.gov.uk/info/200202/performance_and_spending/3233/government_procurement_cards,30-Apr-19,Childrens Services,ALDI 74 778,Childrens Services,12.46,Catering Provisions,1920Apr_PC00491
Sandwell Metropolitan Borough Council,http://www.sandwell.gov.uk/info/200202/performance_and_spending/3233/government_procurement_cards,30-Apr-19,Housing & Communities,Amazon.co.uk MN3MR7OY4,Neighbourhoods,341.25,Materials & Consumables,1920Apr_PC00492
Sandwell Metropolitan Borough Council,http://www.sandwell.gov.uk/info/200202/performance_and_spending/3233/government_procurement_cards,30-Apr-19,Housing & Communities,Amazon.co.uk MN0HF1C34,Neighbourhoods,19.95,Materials & Consumables,1920Apr_PC00493
Sandwell Metropolitan Borough Council,http://www.sandwell.gov.uk/info/200202/performance_and_spending/3233/government_procurement_cards,30-Apr-19,Childrens Services,WWW.QUICKSARCHERY.CO.U,Childrens Services,22.33,Equipment & Furniture,1920Apr_PC00494
Sandwell Metropolitan Borough Council,http://www.sandwell.gov.uk/info/200202/performance_and_spending/3233/government_procurement_cards,30-Apr-19,Housing & Communities,AMZN MKTP UK MN9RC6CS4,Neighbourhoods,10.25,Printing Stationery&Gen Office,1920Apr_PC00495
Sandwell Metropolitan Borough Council,http://www.sandwell.gov.uk/info/200202/performance_and_spending/3233/government_procurement_cards,30-Apr-19,Housing & Communities,WWW.VICARAGELODGE.COM,Neighbourhoods,326.67,Operational Services,1920Apr_PC00496
Sandwell Metropolitan Borough Council,http://www.sandwell.gov.uk/info/200202/performance_and_spending/3233/government_procurement_cards,30-Apr-19,Housing & Communities,HIGHFIELD HOUSE HO,Neighbourhoods,262.5,Operational Services,1920Apr_PC00497
Sandwell Metropolitan Borough Council,http://www.sandwell.gov.uk/info/200202/performance_and_spending/3233/government_procurement_cards,01-May-19,Childrens Services,WWW.AELP.ORG.UK,Childrens Services,2.4,Ind. Emp Exp-Staff Dev&Training,1920Apr_PC00498
Sandwell Metropolitan Borough Council,http://www.sandwell.gov.uk/info/200202/performance_and_spending/3233/government_procurement_cards,01-May-19,Adult Social Care Health and Wellbeing - Total,Amazon.co.uk MN2JQ8OI4,Total Adult Social Care,165.81,ICT,1920Apr_PC00499
Sandwell Metropolitan Borough Council,http://www.sandwell.gov.uk/info/200202/performance_and_spending/3233/government_procurement_cards,01-May-19,Adult Social Care Health and Wellbeing - Total,TESCO STORES 2335,Total Adult Social Care,6.77,Ind. Emp Exp-Staff Dev&Training,1920Apr_PC00500
Sandwell Metropolitan Borough Council,http://www.sandwell.gov.uk/info/200202/performance_and_spending/3233/government_procurement_cards,01-May-19,Childrens Services,AMZNMktplace,Childrens Services,5.89,Materials & Consumables,1920Apr_PC00501
Sandwell Metropolitan Borough Council,http://www.sandwell.gov.uk/info/200202/performance_and_spending/3233/government_procurement_cards,01-May-19,Adult Social Care Health and Wellbeing - Total,AMZNMktplace,Total Adult Social Care,26.15,Printing Stationery&Gen Office,1920Apr_PC00502
Sandwell Metropolitan Borough Council,http://www.sandwell.gov.uk/info/200202/performance_and_spending/3233/government_procurement_cards,01-May-19,Regeneration & Growth,Amazon.co.uk MN1BS5F84,Regeneration And The Economy,42.84,Equipment & Furniture,1920Apr_PC00503
Sandwell Metropolitan Borough Council,http://www.sandwell.gov.uk/info/200202/performance_and_spending/3233/government_procurement_cards,01-May-19,Regeneration & Growth,Amazon.co.uk MN0BT3FB4,Regeneration And The Economy,11.64,Equipment & Furniture,1920Apr_PC00504
Sandwell Metropolitan Borough Council,http://www.sandwell.gov.uk/info/200202/performance_and_spending/3233/government_procurement_cards,01-May-19,Housing & Communities,SAINSBURYS 0558,Neighbourhoods,3.12,Catering Provisions,1920Apr_PC00505
Sandwell Metropolitan Borough Council,http://www.sandwell.gov.uk/info/200202/performance_and_spending/3233/government_procurement_cards,01-May-19,Adult Social Care Health and Wellbeing - Total,TESCO STORES 2335,Total Adult Social Care,23.65,Ind. Emp Exp-Staff Dev&Training,1920Apr_PC00506
Sandwell Metropolitan Borough Council,http://www.sandwell.gov.uk/info/200202/performance_and_spending/3233/government_procurement_cards,01-May-19,Childrens Services,TESCO STORES 2335,Childrens Services,8.32,Materials & Consumables,1920Apr_PC00507
Sandwell Metropolitan Borough Council,http://www.sandwell.gov.uk/info/200202/performance_and_spending/3233/government_procurement_cards,01-May-19,Childrens Services,CANALSIDE HOLDINGS LIM,Childrens Services,166.67,Catering Provisions,1920Apr_PC00508
Sandwell Metropolitan Borough Council,http://www.sandwell.gov.uk/info/200202/performance_and_spending/3233/government_procurement_cards,01-May-19,Housing & Communities,AMZN MKTP UK MN4RT7CA4,Neighbourhoods,10.75,Printing Stationery&Gen Office,1920Apr_PC00509
Sandwell Metropolitan Borough Council,http://www.sandwell.gov.uk/info/200202/performance_and_spending/3233/government_procurement_cards,01-May-19,Housing & Communities,AMZNMKTPLACE AMAZON.CO,Neighbourhoods,9.77,Printing Stationery&Gen Office,1920Apr_PC00510
Sandwell Metropolitan Borough Council,http://www.sandwell.gov.uk/info/200202/performance_and_spending/3233/government_procurement_cards,01-May-19,Housing & Communities,Amazon.co.uk MN4570FZ4,Neighbourhoods,25.29,Printing Stationery&Gen Office,1920Apr_PC00511
Sandwell Metropolitan Borough Council,http://www.sandwell.gov.uk/info/200202/performance_and_spending/3233/government_procurement_cards,01-May-19,Childrens Services,Trainline,Childrens Services,110.91,Public Transport,1920Apr_PC00512
Sandwell Metropolitan Borough Council,http://www.sandwell.gov.uk/info/200202/performance_and_spending/3233/government_procurement_cards,01-May-19,Housing & Communities,EDGBASTON PALACE,Neighbourhoods,525,Operational Services,1920Apr_PC00513
Sandwell Metropolitan Borough Council,http://www.sandwell.gov.uk/info/200202/performance_and_spending/3233/government_procurement_cards,01-May-19,Housing & Communities,HIGHFIELD HOUSE HO,Neighbourhoods,157.5,Operational Services,1920Apr_PC00514
Sandwell Metropolitan Borough Council,http://www.sandwell.gov.uk/info/200202/performance_and_spending/3233/government_procurement_cards,01-May-19,Housing & Communities,HIGHFIELD HOUSE HO,Neighbourhoods,320.83,Operational Services,1920Apr_PC00515
Sandwell Metropolitan Borough Council,http://www.sandwell.gov.uk/info/200202/performance_and_spending/3233/government_procurement_cards,01-May-19,Housing & Communities,HIGHFIELD HOUSE HO,Neighbourhoods,191.67,Operational Services,1920Apr_PC00516
Sandwell Metropolitan Borough Council,http://www.sandwell.gov.uk/info/200202/performance_and_spending/3233/government_procurement_cards,01-May-19,Childrens Services,Trainline,Childrens Services,32.31,Public Transport,1920Apr_PC00517
Sandwell Metropolitan Borough Council,http://www.sandwell.gov.uk/info/200202/performance_and_spending/3233/government_procurement_cards,01-May-19,Childrens Services,Trainline,Childrens Services,18.57,Public Transport,1920Apr_PC00518
Sandwell Metropolitan Borough Council,http://www.sandwell.gov.uk/info/200202/performance_and_spending/3233/government_procurement_cards,01-May-19,Childrens Services,Trainline,Childrens Services,38.16,Public Transport,1920Apr_PC00519
Sandwell Metropolitan Borough Council,http://www.sandwell.gov.uk/info/200202/performance_and_spending/3233/government_procurement_cards,01-May-19,Childrens Services,Trainline,Childrens Services,112.94,Public Transport,1920Apr_PC00520
Sandwell Metropolitan Borough Council,http://www.sandwell.gov.uk/info/200202/performance_and_spending/3233/government_procurement_cards,01-May-19,Childrens Services,AMZNMktplace,Childrens Services,9.15,Equipment & Furniture,1920Apr_PC00521
Sandwell Metropolitan Borough Council,http://www.sandwell.gov.uk/info/200202/performance_and_spending/3233/government_procurement_cards,02-May-19,Childrens Services,NEWPORT SF CONNECT,Childrens Services,177.5,Catering Provisions,1920Apr_PC00522
Sandwell Metropolitan Borough Council,http://www.sandwell.gov.uk/info/200202/performance_and_spending/3233/government_procurement_cards,02-May-19,Regeneration & Growth,AMZN MKTP UK MN4515484,Regeneration And The Economy,149.25,Printing Stationery&Gen Office,1920Apr_PC00523
Sandwell Metropolitan Borough Council,http://www.sandwell.gov.uk/info/200202/performance_and_spending/3233/government_procurement_cards,02-May-19,Childrens Services,AMZNMktplace,Childrens Services,42.87,Materials & Consumables,1920Apr_PC00524
Sandwell Metropolitan Borough Council,http://www.sandwell.gov.uk/info/200202/performance_and_spending/3233/government_procurement_cards,02-May-19,Regeneration & Growth,Amazon.co.uk MN3LW14J4,Regeneration And The Economy,31.05,ICT,1920Apr_PC00525
Sandwell Metropolitan Borough Council,http://www.sandwell.gov.uk/info/200202/performance_and_spending/3233/government_procurement_cards,02-May-19,Housing & Communities,WWW.KINGSSEEDS.COM,Neighbourhoods,126.06,Grounds Maint&Improvements,1920Apr_PC00526
Sandwell Metropolitan Borough Council,http://www.sandwell.gov.uk/info/200202/performance_and_spending/3233/government_procurement_cards,02-May-19,Housing & Communities,LBS WORLDWIDE LTD,Neighbourhoods,16.23,Grounds Maint&Improvements,1920Apr_PC00527
Sandwell Metropolitan Borough Council,http://www.sandwell.gov.uk/info/200202/performance_and_spending/3233/government_procurement_cards,02-May-19,Adult Social Care Health and Wellbeing - Total,The Plastic Box Compan,Public Health,10.74,Operational Services,1920Apr_PC00528
Sandwell Metropolitan Borough Council,http://www.sandwell.gov.uk/info/200202/performance_and_spending/3233/government_procurement_cards,02-May-19,Adult Social Care Health and Wellbeing - Total,AMZNMktplace,Total Adult Social Care,174.5,Equipment & Furniture,1920Apr_PC00529
Sandwell Metropolitan Borough Council,http://www.sandwell.gov.uk/info/200202/performance_and_spending/3233/government_procurement_cards,02-May-19,Housing & Communities,AQUAID FRANCHISING LTD,Neighbourhoods,174.5,Catering Provisions,1920Apr_PC00530
Sandwell Metropolitan Borough Council,http://www.sandwell.gov.uk/info/200202/performance_and_spending/3233/government_procurement_cards,02-May-19,Childrens Services,WWW.SOLENTPLASTICS.CO.,Childrens Services,3.58,Catering Equipment,1920Apr_PC00531
Sandwell Metropolitan Borough Council,http://www.sandwell.gov.uk/info/200202/performance_and_spending/3233/government_procurement_cards,02-May-19,Total Housing Revenue Account,SAINSBURYS (2340),Total Housing Revenue Account,198.72,Printing Stationery&Gen Office,1920Apr_PC00532
Sandwell Metropolitan Borough Council,http://www.sandwell.gov.uk/info/200202/performance_and_spending/3233/government_procurement_cards,02-May-19,Resources (Inc SIU),TESCO STORES 2335,Assistant Chief Executive (Excl SIU),323.75,Catering Provisions,1920Apr_PC00533
Sandwell Metropolitan Borough Council,http://www.sandwell.gov.uk/info/200202/performance_and_spending/3233/government_procurement_cards,02-May-19,Resources (Inc SIU),GOOGLE  CLOUD_01B69F-A,Assistant Chief Executive (Excl SIU),93.18,ICT,1920Apr_PC00534
Sandwell Metropolitan Borough Council,http://www.sandwell.gov.uk/info/200202/performance_and_spending/3233/government_procurement_cards,02-May-19,Childrens Services,AMZNMktplace,Childrens Services,6.33,Materials & Consumables,1920Apr_PC00535
Sandwell Metropolitan Borough Council,http://www.sandwell.gov.uk/info/200202/performance_and_spending/3233/government_procurement_cards,02-May-19,Corporate Management,OFFICE DEPOT UK,Corporate Management,41.58,Printing Stationery&Gen Office,1920Apr_PC00536
Sandwell Metropolitan Borough Council,http://www.sandwell.gov.uk/info/200202/performance_and_spending/3233/government_procurement_cards,02-May-19,Adult Social Care Health and Wellbeing - Total,SANDWELL & DUD SST,Public Health,14.11,Public Transport,1920Apr_PC00537
Sandwell Metropolitan Borough Council,http://www.sandwell.gov.uk/info/200202/performance_and_spending/3233/government_procurement_cards,02-May-19,Regeneration & Growth,OFFICE DEPOT UK,Regeneration And The Economy,186.1,Equipment & Furniture,1920Apr_PC00538
Sandwell Metropolitan Borough Council,http://www.sandwell.gov.uk/info/200202/performance_and_spending/3233/government_procurement_cards,02-May-19,Housing & Communities,OFFICE DEPOT UK,Neighbourhoods,10.91,Printing Stationery&Gen Office,1920Apr_PC00539
Sandwell Metropolitan Borough Council,http://www.sandwell.gov.uk/info/200202/performance_and_spending/3233/government_procurement_cards,02-May-19,Housing & Communities,OFFICE DEPOT UK,Neighbourhoods,72.6,Printing Stationery&Gen Office,1920Apr_PC00540
Sandwell Metropolitan Borough Council,http://www.sandwell.gov.uk/info/200202/performance_and_spending/3233/government_procurement_cards,02-May-19,Housing & Communities,OFFICE DEPOT UK,Neighbourhoods,36.38,Printing Stationery&Gen Office,1920Apr_PC00541
Sandwell Metropolitan Borough Council,http://www.sandwell.gov.uk/info/200202/performance_and_spending/3233/government_procurement_cards,02-May-19,Housing & Communities,OFFICE DEPOT UK,Neighbourhoods,26.18,Printing Stationery&Gen Office,1920Apr_PC00542
Sandwell Metropolitan Borough Council,http://www.sandwell.gov.uk/info/200202/performance_and_spending/3233/government_procurement_cards,02-May-19,Housing & Communities,OFFICE DEPOT UK,Neighbourhoods,497,Printing Stationery&Gen Office,1920Apr_PC00543
Sandwell Metropolitan Borough Council,http://www.sandwell.gov.uk/info/200202/performance_and_spending/3233/government_procurement_cards,02-May-19,Resources (Inc SIU),B & Q 1276,Assistant Chief Executive (Excl SIU),157.5,Civic Events,1920Apr_PC00544
Sandwell Metropolitan Borough Council,http://www.sandwell.gov.uk/info/200202/performance_and_spending/3233/government_procurement_cards,02-May-19,Resources (Inc SIU),OFFICE DEPOT UK,Assistant Chief Executive (Excl SIU),262.5,Printing Stationery&Gen Office,1920Apr_PC00545
Sandwell Metropolitan Borough Council,http://www.sandwell.gov.uk/info/200202/performance_and_spending/3233/government_procurement_cards,02-May-19,Adult Social Care Health and Wellbeing - Total,PP HFSYSTEMS,Total Adult Social Care,205.13,ICT,1920Apr_PC00546
Sandwell Metropolitan Borough Council,http://www.sandwell.gov.uk/info/200202/performance_and_spending/3233/government_procurement_cards,02-May-19,Housing & Communities,OFFICE DEPOT UK,Neighbourhoods,94.16,Printing Stationery&Gen Office,1920Apr_PC00547
Sandwell Metropolitan Borough Council,http://www.sandwell.gov.uk/info/200202/performance_and_spending/3233/government_procurement_cards,02-May-19,Childrens Services,MMU,Childrens Services,8.32,Ind. Emp Exp-Staff Dev&Training,1920Apr_PC00548
Sandwell Metropolitan Borough Council,http://www.sandwell.gov.uk/info/200202/performance_and_spending/3233/government_procurement_cards,02-May-19,Childrens Services,HOMEBASE LTD,Childrens Services,13.5,Equipment & Furniture,1920Apr_PC00549
Sandwell Metropolitan Borough Council,http://www.sandwell.gov.uk/info/200202/performance_and_spending/3233/government_procurement_cards,02-May-19,Housing & Communities,PREMIER INN,Neighbourhoods,549.17,Operational Services,1920Apr_PC00550
Sandwell Metropolitan Borough Council,http://www.sandwell.gov.uk/info/200202/performance_and_spending/3233/government_procurement_cards,02-May-19,Regeneration & Growth,AMZNMktplace,Regeneration And The Economy,44.12,Materials & Consumables,1920Apr_PC00551
Sandwell Metropolitan Borough Council,http://www.sandwell.gov.uk/info/200202/performance_and_spending/3233/government_procurement_cards,02-May-19,Regeneration And The Economy Capital,ASDA SUPERSTORE,Regeneration And The Economy Capital,7.08,Materials & Consumables,1920Apr_PC00552
Sandwell Metropolitan Borough Council,http://www.sandwell.gov.uk/info/200202/performance_and_spending/3233/government_procurement_cards,02-May-19,Housing & Communities,WWW.VICARAGELODGE.COM,Neighbourhoods,46.67,Operational Services,1920Apr_PC00553
Sandwell Metropolitan Borough Council,http://www.sandwell.gov.uk/info/200202/performance_and_spending/3233/government_procurement_cards,02-May-19,Regeneration And The Economy Capital,ASDA SUPERSTORE,Regeneration And The Economy Capital,6.46,Materials & Consumables,1920Apr_PC00554
Sandwell Metropolitan Borough Council,http://www.sandwell.gov.uk/info/200202/performance_and_spending/3233/government_procurement_cards,02-May-19,Housing & Communities,COVENTRY CITY COUNCIL,Neighbourhoods,4,Car Parking,1920Apr_PC00555
Sandwell Metropolitan Borough Council,http://www.sandwell.gov.uk/info/200202/performance_and_spending/3233/government_procurement_cards,03-May-19,Resources (Inc SIU),MCDONALDS,Assistant Chief Executive (Excl SIU),170,Catering Provisions,1920Apr_PC00556
Sandwell Metropolitan Borough Council,http://www.sandwell.gov.uk/info/200202/performance_and_spending/3233/government_procurement_cards,03-May-19,Resources (Inc SIU),WM MORRISONS STORE,Assistant Chief Executive (Excl SIU),44.84,Catering Provisions,1920Apr_PC00557
Sandwell Metropolitan Borough Council,http://www.sandwell.gov.uk/info/200202/performance_and_spending/3233/government_procurement_cards,03-May-19,Housing & Communities,TOOLSTATION LTD,Neighbourhoods,20.82,Repairs & Maintenance,1920Apr_PC00558
Sandwell Metropolitan Borough Council,http://www.sandwell.gov.uk/info/200202/performance_and_spending/3233/government_procurement_cards,03-May-19,Regeneration & Growth,AMZNMKTPLACE AMAZON.CO,Regeneration And The Economy,76,Printing Stationery&Gen Office,1920Apr_PC00559
Sandwell Metropolitan Borough Council,http://www.sandwell.gov.uk/info/200202/performance_and_spending/3233/government_procurement_cards,03-May-19,Housing & Communities,BESTWAY WHOLESALE,Neighbourhoods,28.29,Materials & Consumables,1920Apr_PC00560
Sandwell Metropolitan Borough Council,http://www.sandwell.gov.uk/info/200202/performance_and_spending/3233/government_procurement_cards,03-May-19,Regeneration & Growth,AMZN Mktp UK MN4CI0LN4,Regeneration And The Economy,430,Equipment & Furniture,1920Apr_PC00561
Sandwell Metropolitan Borough Council,http://www.sandwell.gov.uk/info/200202/performance_and_spending/3233/government_procurement_cards,03-May-19,Resources (Inc SIU),SAINSBURYS SACAT0558,Assistant Chief Executive (Excl SIU),34.04,Catering Provisions,1920Apr_PC00562
Sandwell Metropolitan Borough Council,http://www.sandwell.gov.uk/info/200202/performance_and_spending/3233/government_procurement_cards,03-May-19,Total Housing Revenue Account,SAINSBURYS SACAT0558,Total Housing Revenue Account,8.35,Printing Stationery&Gen Office,1920Apr_PC00563
Sandwell Metropolitan Borough Council,http://www.sandwell.gov.uk/info/200202/performance_and_spending/3233/government_procurement_cards,03-May-19,Resources (Inc SIU),WWW.SANDWELL.GOV.UK,Assistant Chief Executive (Excl SIU),86.79,Car Parking,1920Apr_PC00564
Sandwell Metropolitan Borough Council,http://www.sandwell.gov.uk/info/200202/performance_and_spending/3233/government_procurement_cards,03-May-19,Individual School Budgets With Inclusion,OFFICE DEPOT UK,Individual School Budgets With Inclusion,124.34,Printing Stationery&Gen Office,1920Apr_PC00565
Sandwell Metropolitan Borough Council,http://www.sandwell.gov.uk/info/200202/performance_and_spending/3233/government_procurement_cards,03-May-19,Resources (Inc SIU),OFFICE DEPOT UK,Strategic Investment Unit,114.46,Printing Stationery&Gen Office,1920Apr_PC00566
Sandwell Metropolitan Borough Council,http://www.sandwell.gov.uk/info/200202/performance_and_spending/3233/government_procurement_cards,03-May-19,Resources (Inc SIU),APPLE ONLINE STORE GBP,Assistant Chief Executive (Excl SIU),256.65,ICT,1920Apr_PC00567
Sandwell Metropolitan Borough Council,http://www.sandwell.gov.uk/info/200202/performance_and_spending/3233/government_procurement_cards,03-May-19,Housing & Communities,Amazon.co.uk MN09Y5ZP4,Neighbourhoods,4.57,Materials & Consumables,1920Apr_PC00568
Sandwell Metropolitan Borough Council,http://www.sandwell.gov.uk/info/200202/performance_and_spending/3233/government_procurement_cards,03-May-19,Housing & Communities,EDGBASTON PALACE,Neighbourhoods,641.67,Operational Services,1920Apr_PC00569
Sandwell Metropolitan Borough Council,http://www.sandwell.gov.uk/info/200202/performance_and_spending/3233/government_procurement_cards,03-May-19,Housing & Communities,HIGHFIELD HOUSE HO,Neighbourhoods,291.67,Operational Services,1920Apr_PC00570
Sandwell Metropolitan Borough Council,http://www.sandwell.gov.uk/info/200202/performance_and_spending/3233/government_procurement_cards,03-May-19,Regeneration & Growth,Amazon.co.uk MN4KT6LA4,Regeneration And The Economy,8.32,Fixtures & Fittings,1920Apr_PC00571
Sandwell Metropolitan Borough Council,http://www.sandwell.gov.uk/info/200202/performance_and_spending/3233/government_procurement_cards,03-May-19,Housing & Communities,AMZNMKTPLACE AMAZON.CO,Neighbourhoods,62.49,Printing Stationery&Gen Office,1920Apr_PC00572
Sandwell Metropolitan Borough Council,http://www.sandwell.gov.uk/info/200202/performance_and_spending/3233/government_procurement_cards,06-May-19,Regeneration & Growth,HOLIDAY INNS,Regeneration And The Economy,"1,295.00",Conference Expenses,1920May_PC00001
Sandwell Metropolitan Borough Council,http://www.sandwell.gov.uk/info/200202/performance_and_spending/3233/government_procurement_cards,06-May-19,Individual School Budgets With Inclusion,AMZNMKTPLACE AMAZON.CO,Individual School Budgets With Inclusion,7.99,Materials & Consumables,1920May_PC00002
Sandwell Metropolitan Borough Council,http://www.sandwell.gov.uk/info/200202/performance_and_spending/3233/government_procurement_cards,06-May-19,Individual School Budgets With Inclusion,AMZNMKTPLACE AMAZON.CO,Individual School Budgets With Inclusion,4.49,Materials & Consumables,1920May_PC00003
Sandwell Metropolitan Borough Council,http://www.sandwell.gov.uk/info/200202/performance_and_spending/3233/government_procurement_cards,06-May-19,Total Housing Revenue Account,DVLA DIGITAL TACHO,Total Housing Revenue Account,15.83,Licences&Test Fees,1920May_PC00004
Sandwell Metropolitan Borough Council,http://www.sandwell.gov.uk/info/200202/performance_and_spending/3233/government_procurement_cards,06-May-19,Regeneration & Growth,AMZN MKTP UK MN2BN3ZL4,Regeneration And The Economy,17.45,Printing Stationery&Gen Office,1920May_PC00005
Sandwell Metropolitan Borough Council,http://www.sandwell.gov.uk/info/200202/performance_and_spending/3233/government_procurement_cards,06-May-19,Regeneration & Growth,AMZNMktplace,Regeneration And The Economy,49.99,Equipment & Furniture,1920May_PC00006
Sandwell Metropolitan Borough Council,http://www.sandwell.gov.uk/info/200202/performance_and_spending/3233/government_procurement_cards,06-May-19,Childrens Services,TWINKL LTD,Childrens Services,44.9,Printing Stationery&Gen Office,1920May_PC00007
Sandwell Metropolitan Borough Council,http://www.sandwell.gov.uk/info/200202/performance_and_spending/3233/government_procurement_cards,06-May-19,Childrens Services,VISTAPR VistaPrint.com,Childrens Services,17.73,Materials & Consumables,1920May_PC00008
Sandwell Metropolitan Borough Council,http://www.sandwell.gov.uk/info/200202/performance_and_spending/3233/government_procurement_cards,06-May-19,Childrens Services,VISTAPRINT,Childrens Services,17.73,Materials & Consumables,1920May_PC00009
Sandwell Metropolitan Borough Council,http://www.sandwell.gov.uk/info/200202/performance_and_spending/3233/government_procurement_cards,06-May-19,Housing & Communities,EVERYTHING BRANDED,Neighbourhoods,353.59,Equipment & Furniture,1920May_PC00010
Sandwell Metropolitan Borough Council,http://www.sandwell.gov.uk/info/200202/performance_and_spending/3233/government_procurement_cards,06-May-19,Adult Social Care Health and Wellbeing - Total,WWW.ARGOS.CO.UK,Total Adult Social Care,283.95,Materials & Consumables,1920May_PC00011
Sandwell Metropolitan Borough Council,http://www.sandwell.gov.uk/info/200202/performance_and_spending/3233/government_procurement_cards,06-May-19,Regeneration & Growth,SAINSBURYS SACAT0558,Regeneration And The Economy,7.5,Printing Stationery&Gen Office,1920May_PC00012
Sandwell Metropolitan Borough Council,http://www.sandwell.gov.uk/info/200202/performance_and_spending/3233/government_procurement_cards,06-May-19,Childrens Services,ASDA,Childrens Services,2,Catering Provisions,1920May_PC00013
Sandwell Metropolitan Borough Council,http://www.sandwell.gov.uk/info/200202/performance_and_spending/3233/government_procurement_cards,06-May-19,Childrens Services,CANALSIDE HOLDINGS LIM,Childrens Services,11,Catering Provisions,1920May_PC00014
Sandwell Metropolitan Borough Council,http://www.sandwell.gov.uk/info/200202/performance_and_spending/3233/government_procurement_cards,06-May-19,Individual School Budgets With Inclusion,AMZN Mktp UK MN3610ZZ4,Individual School Budgets With Inclusion,4.49,Materials & Consumables,1920May_PC00015
Sandwell Metropolitan Borough Council,http://www.sandwell.gov.uk/info/200202/performance_and_spending/3233/government_procurement_cards,06-May-19,Housing & Communities,OFFICE DEPOT UK,Neighbourhoods,109.17,Printing Stationery&Gen Office,1920May_PC00016
Sandwell Metropolitan Borough Council,http://www.sandwell.gov.uk/info/200202/performance_and_spending/3233/government_procurement_cards,06-May-19,Adult Social Care Health and Wellbeing - Total,AMSTERDAM UNIVERSITY P,Public Health,228.95,Materials & Consumables,1920May_PC00017
Sandwell Metropolitan Borough Council,http://www.sandwell.gov.uk/info/200202/performance_and_spending/3233/government_procurement_cards,06-May-19,Adult Social Care Health and Wellbeing - Total,WWW.ARGOS.CO.UK,Total Adult Social Care,421.93,Materials & Consumables,1920May_PC00018
Sandwell Metropolitan Borough Council,http://www.sandwell.gov.uk/info/200202/performance_and_spending/3233/government_procurement_cards,06-May-19,Housing & Communities,AMZNMKTPLACE AMAZON.CO,Neighbourhoods,3.02,Materials & Consumables,1920May_PC00019
Sandwell Metropolitan Borough Council,http://www.sandwell.gov.uk/info/200202/performance_and_spending/3233/government_procurement_cards,06-May-19,Housing & Communities,AMZNMKTPLACE AMAZON.CO,Neighbourhoods,3.09,Materials & Consumables,1920May_PC00020
Sandwell Metropolitan Borough Council,http://www.sandwell.gov.uk/info/200202/performance_and_spending/3233/government_procurement_cards,06-May-19,Housing & Communities,AMZN Mktp UK MN3DI3ZO4,Neighbourhoods,2.59,Materials & Consumables,1920May_PC00021
Sandwell Metropolitan Borough Council,http://www.sandwell.gov.uk/info/200202/performance_and_spending/3233/government_procurement_cards,06-May-19,Regeneration & Growth,AMZNMktplace,Regeneration And The Economy,124.98,Fixtures & Fittings,1920May_PC00022
Sandwell Metropolitan Borough Council,http://www.sandwell.gov.uk/info/200202/performance_and_spending/3233/government_procurement_cards,06-May-19,Resources (Inc SIU),OFFICE DEPOT UK,Assistant Chief Executive (Excl SIU),142.93,Printing Stationery&Gen Office,1920May_PC00023
Sandwell Metropolitan Borough Council,http://www.sandwell.gov.uk/info/200202/performance_and_spending/3233/government_procurement_cards,06-May-19,Resources (Inc SIU),WWW.CIPS.ORG,Assistant Chief Executive (Excl SIU),45.6,Ind. Emp Exp-Staff Dev&Training,1920May_PC00024
Sandwell Metropolitan Borough Council,http://www.sandwell.gov.uk/info/200202/performance_and_spending/3233/government_procurement_cards,06-May-19,Individual School Budgets With Inclusion,AMZNMktplace,Individual School Budgets With Inclusion,17.98,Materials & Consumables,1920May_PC00025
Sandwell Metropolitan Borough Council,http://www.sandwell.gov.uk/info/200202/performance_and_spending/3233/government_procurement_cards,06-May-19,Individual School Budgets With Inclusion,AMZNMktplace,Individual School Budgets With Inclusion,4.49,Materials & Consumables,1920May_PC00026
Sandwell Metropolitan Borough Council,http://www.sandwell.gov.uk/info/200202/performance_and_spending/3233/government_procurement_cards,06-May-19,Adult Social Care Health and Wellbeing - Total,PROARK UK HOTELS LTD O,Total Adult Social Care,65,Hire of Facilities,1920May_PC00027
Sandwell Metropolitan Borough Council,http://www.sandwell.gov.uk/info/200202/performance_and_spending/3233/government_procurement_cards,06-May-19,Adult Social Care Health and Wellbeing - Total,PROARK UK HOTELS LTD O,Total Adult Social Care,65,Hire of Facilities,1920May_PC00028
Sandwell Metropolitan Borough Council,http://www.sandwell.gov.uk/info/200202/performance_and_spending/3233/government_procurement_cards,06-May-19,Regeneration & Growth,OFFICE DEPOT UK,Regeneration And The Economy,200.64,Printing Stationery&Gen Office,1920May_PC00029
Sandwell Metropolitan Borough Council,http://www.sandwell.gov.uk/info/200202/performance_and_spending/3233/government_procurement_cards,06-May-19,Adult Social Care Health and Wellbeing - Total,AMZN Mktp UK MN9FW7NH4,Total Adult Social Care,92.48,Materials & Consumables,1920May_PC00030
Sandwell Metropolitan Borough Council,http://www.sandwell.gov.uk/info/200202/performance_and_spending/3233/government_procurement_cards,06-May-19,Childrens Services,POST OFFICE COUNTER,Childrens Services,3.78,"Postages, Carriage & Courier Services",1920May_PC00031
Sandwell Metropolitan Borough Council,http://www.sandwell.gov.uk/info/200202/performance_and_spending/3233/government_procurement_cards,06-May-19,Housing & Communities,OFFICE DEPOT UK,Neighbourhoods,197.45,Printing Stationery&Gen Office,1920May_PC00032
Sandwell Metropolitan Borough Council,http://www.sandwell.gov.uk/info/200202/performance_and_spending/3233/government_procurement_cards,06-May-19,Housing & Communities,WM MORRISONS STORE,Neighbourhoods,3.05,Catering Provisions,1920May_PC00033
Sandwell Metropolitan Borough Council,http://www.sandwell.gov.uk/info/200202/performance_and_spending/3233/government_procurement_cards,06-May-19,Adult Social Care Health and Wellbeing - Total,AMZN Mktp UK MN7412N84,Total Adult Social Care,18.25,Materials & Consumables,1920May_PC00034
Sandwell Metropolitan Borough Council,http://www.sandwell.gov.uk/info/200202/performance_and_spending/3233/government_procurement_cards,06-May-19,Resources (Inc SIU),AMZNMktplace,Assistant Chief Executive (Excl SIU),15.11,Printing Stationery&Gen Office,1920May_PC00035
Sandwell Metropolitan Borough Council,http://www.sandwell.gov.uk/info/200202/performance_and_spending/3233/government_procurement_cards,06-May-19,Housing & Communities,HIGHFIELD HOUSE HO,Neighbourhoods,262.5,Operational Services,1920May_PC00036
Sandwell Metropolitan Borough Council,http://www.sandwell.gov.uk/info/200202/performance_and_spending/3233/government_procurement_cards,06-May-19,Housing & Communities,WWW.VICARAGELODGE.COM,Neighbourhoods,326.67,Operational Services,1920May_PC00037
Sandwell Metropolitan Borough Council,http://www.sandwell.gov.uk/info/200202/performance_and_spending/3233/government_procurement_cards,07-May-19,Regeneration & Growth,TVLICENSING.CO.UK,Regeneration And The Economy,154.5,Licences,1920May_PC00038
Sandwell Metropolitan Borough Council,http://www.sandwell.gov.uk/info/200202/performance_and_spending/3233/government_procurement_cards,07-May-19,Childrens Services,WILKO RETAIL LIMIT,Childrens Services,12.5,Equipment & Furniture,1920May_PC00039
Sandwell Metropolitan Borough Council,http://www.sandwell.gov.uk/info/200202/performance_and_spending/3233/government_procurement_cards,07-May-19,Childrens Services,B&M RETAIL LTD,Childrens Services,29.12,Equipment & Furniture,1920May_PC00040
Sandwell Metropolitan Borough Council,http://www.sandwell.gov.uk/info/200202/performance_and_spending/3233/government_procurement_cards,07-May-19,Childrens Services,ARGOS LTD,Childrens Services,4.17,Equipment & Furniture,1920May_PC00041
Sandwell Metropolitan Borough Council,http://www.sandwell.gov.uk/info/200202/performance_and_spending/3233/government_procurement_cards,07-May-19,Housing & Communities,WICKES HALESOWEN,Neighbourhoods,7.5,Materials & Consumables,1920May_PC00042
Sandwell Metropolitan Borough Council,http://www.sandwell.gov.uk/info/200202/performance_and_spending/3233/government_procurement_cards,07-May-19,Housing & Communities,AMZNMktplace,Neighbourhoods,8.7,ICT,1920May_PC00043
Sandwell Metropolitan Borough Council,http://www.sandwell.gov.uk/info/200202/performance_and_spending/3233/government_procurement_cards,07-May-19,Corporate Management,Trainline,Corporate Management,-157.2,Public Transport,1920May_PC00044
Sandwell Metropolitan Borough Council,http://www.sandwell.gov.uk/info/200202/performance_and_spending/3233/government_procurement_cards,07-May-19,Resources (Inc SIU),AMZNMktplace,Assistant Chief Executive (Excl SIU),27.98,Materials & Consumables,1920May_PC00045
Sandwell Metropolitan Borough Council,http://www.sandwell.gov.uk/info/200202/performance_and_spending/3233/government_procurement_cards,08-May-19,Childrens Services,AMZN Mktp UK MN3GR2TW4,Childrens Services,24.16,Printing Stationery&Gen Office,1920May_PC00046
Sandwell Metropolitan Borough Council,http://www.sandwell.gov.uk/info/200202/performance_and_spending/3233/government_procurement_cards,08-May-19,Childrens Services,AMZNMKTPLACE AMAZON.CO,Childrens Services,6.65,Printing Stationery&Gen Office,1920May_PC00047
Sandwell Metropolitan Borough Council,http://www.sandwell.gov.uk/info/200202/performance_and_spending/3233/government_procurement_cards,08-May-19,Individual School Budgets With Inclusion,2CO.com bitdefender.co,Individual School Budgets With Inclusion,58.32,ICT,1920May_PC00048
Sandwell Metropolitan Borough Council,http://www.sandwell.gov.uk/info/200202/performance_and_spending/3233/government_procurement_cards,08-May-19,Housing & Communities,GREEN IMAGE SAIL FLAGS,Neighbourhoods,103.5,R& M - Building Maint&Imp.,1920May_PC00049
Sandwell Metropolitan Borough Council,http://www.sandwell.gov.uk/info/200202/performance_and_spending/3233/government_procurement_cards,08-May-19,Adult Social Care Health and Wellbeing - Total,Amazon.co.uk MN5AR9TE4,Total Adult Social Care,13.08,Materials & Consumables,1920May_PC00050
Sandwell Metropolitan Borough Council,http://www.sandwell.gov.uk/info/200202/performance_and_spending/3233/government_procurement_cards,08-May-19,Housing & Communities,WWW.TOOLSTATION.COM,Neighbourhoods,24.73,Materials & Consumables,1920May_PC00051
Sandwell Metropolitan Borough Council,http://www.sandwell.gov.uk/info/200202/performance_and_spending/3233/government_procurement_cards,08-May-19,Regeneration & Growth,Amazon.co.uk MN3CT0TP4,Regeneration And The Economy,47.42,Equipment & Furniture,1920May_PC00052
Sandwell Metropolitan Borough Council,http://www.sandwell.gov.uk/info/200202/performance_and_spending/3233/government_procurement_cards,08-May-19,Housing & Communities,AMZNMKTPLACE AMAZON.CO,Neighbourhoods,163.32,Materials & Consumables,1920May_PC00053
Sandwell Metropolitan Borough Council,http://www.sandwell.gov.uk/info/200202/performance_and_spending/3233/government_procurement_cards,08-May-19,Childrens Services,VICTORIAPLUM.COM,Childrens Services,17.47,Equipment & Furniture,1920May_PC00054
Sandwell Metropolitan Borough Council,http://www.sandwell.gov.uk/info/200202/performance_and_spending/3233/government_procurement_cards,08-May-19,Total Housing Revenue Account,BESTWAY WHOLESALE,Total Housing Revenue Account,97.4,Catering Provisions,1920May_PC00055
Sandwell Metropolitan Borough Council,http://www.sandwell.gov.uk/info/200202/performance_and_spending/3233/government_procurement_cards,08-May-19,Regeneration & Growth,Amazon Prime MN5M02T24,Regeneration And The Economy,0.82,Equipment & Furniture,1920May_PC00056
Sandwell Metropolitan Borough Council,http://www.sandwell.gov.uk/info/200202/performance_and_spending/3233/government_procurement_cards,08-May-19,Regeneration & Growth,Amazon Prime,Regeneration And The Economy,-0.82,Equipment & Furniture,1920May_PC00057
Sandwell Metropolitan Borough Council,http://www.sandwell.gov.uk/info/200202/performance_and_spending/3233/government_procurement_cards,08-May-19,Adult Social Care Health and Wellbeing - Total,AMZN Mktp UK MN3AL1TJ4,Total Adult Social Care,38.48,Materials & Consumables,1920May_PC00058
Sandwell Metropolitan Borough Council,http://www.sandwell.gov.uk/info/200202/performance_and_spending/3233/government_procurement_cards,08-May-19,Regeneration & Growth,AMZN Mktp UK MN7RT5TG4,Regeneration And The Economy,37.45,Printing Stationery&Gen Office,1920May_PC00059
Sandwell Metropolitan Borough Council,http://www.sandwell.gov.uk/info/200202/performance_and_spending/3233/government_procurement_cards,08-May-19,Resources Capital,AMZN Mktp UK MN3UE9T34,Resources Capital,6.96,ICT,1920May_PC00060
Sandwell Metropolitan Borough Council,http://www.sandwell.gov.uk/info/200202/performance_and_spending/3233/government_procurement_cards,08-May-19,Housing & Communities,HIGHFIELD HOUSE HO,Neighbourhoods,157.5,Operational Services,1920May_PC00061
Sandwell Metropolitan Borough Council,http://www.sandwell.gov.uk/info/200202/performance_and_spending/3233/government_procurement_cards,08-May-19,Housing & Communities,HIGHFIELD HOUSE HO,Neighbourhoods,191.67,Operational Services,1920May_PC00062
Sandwell Metropolitan Borough Council,http://www.sandwell.gov.uk/info/200202/performance_and_spending/3233/government_procurement_cards,08-May-19,Housing & Communities,HIGHFIELD HOUSE HO,Neighbourhoods,320.83,Operational Services,1920May_PC00063
Sandwell Metropolitan Borough Council,http://www.sandwell.gov.uk/info/200202/performance_and_spending/3233/government_procurement_cards,08-May-19,Housing & Communities,EDGBASTON PALACE,Neighbourhoods,525,Operational Services,1920May_PC00064
Sandwell Metropolitan Borough Council,http://www.sandwell.gov.uk/info/200202/performance_and_spending/3233/government_procurement_cards,08-May-19,Adult Social Care Health and Wellbeing - Total,Trainline.com,Total Adult Social Care,91.07,Public Transport,1920May_PC00065
Sandwell Metropolitan Borough Council,http://www.sandwell.gov.uk/info/200202/performance_and_spending/3233/government_procurement_cards,08-May-19,Housing & Communities,POUNDLAND LTD 1729,Neighbourhoods,16,Catering Provisions,1920May_PC00066
Sandwell Metropolitan Borough Council,http://www.sandwell.gov.uk/info/200202/performance_and_spending/3233/government_procurement_cards,09-May-19,Regeneration & Growth,AMZNMktplace,Regeneration And The Economy,37.07,Equipment & Furniture,1920May_PC00067
Sandwell Metropolitan Borough Council,http://www.sandwell.gov.uk/info/200202/performance_and_spending/3233/government_procurement_cards,09-May-19,Childrens Services,Amazon.co.uk MN2668AN4,Childrens Services,15.64,Printing Stationery&Gen Office,1920May_PC00068
Sandwell Metropolitan Borough Council,http://www.sandwell.gov.uk/info/200202/performance_and_spending/3233/government_procurement_cards,09-May-19,Childrens Services,Amazon.co.uk MN6RU9AP4,Childrens Services,9.19,Printing Stationery&Gen Office,1920May_PC00069
Sandwell Metropolitan Borough Council,http://www.sandwell.gov.uk/info/200202/performance_and_spending/3233/government_procurement_cards,09-May-19,Adult Social Care Health and Wellbeing - Total,GALLEON SUPPLIES L,Total Adult Social Care,24.5,Hygiene Services,1920May_PC00070
Sandwell Metropolitan Borough Council,http://www.sandwell.gov.uk/info/200202/performance_and_spending/3233/government_procurement_cards,09-May-19,Childrens Services,HANDY DRY CLEANERS,Childrens Services,120,Laundry,1920May_PC00071
Sandwell Metropolitan Borough Council,http://www.sandwell.gov.uk/info/200202/performance_and_spending/3233/government_procurement_cards,09-May-19,Total Housing Revenue Account,OCEAN MEDIA,Total Housing Revenue Account,"1,896.00",Conference Expenses,1920May_PC00072
Sandwell Metropolitan Borough Council,http://www.sandwell.gov.uk/info/200202/performance_and_spending/3233/government_procurement_cards,09-May-19,Housing & Communities,AMZNMKTPLACE AMAZON.CO,Neighbourhoods,14.97,Materials & Consumables,1920May_PC00073
Sandwell Metropolitan Borough Council,http://www.sandwell.gov.uk/info/200202/performance_and_spending/3233/government_procurement_cards,09-May-19,Childrens Services,AMZN Mktp UK MN3X14AJ4,Childrens Services,45.83,Materials & Consumables,1920May_PC00074
Sandwell Metropolitan Borough Council,http://www.sandwell.gov.uk/info/200202/performance_and_spending/3233/government_procurement_cards,09-May-19,Housing & Communities,AMZN Mktp UK MN2TG6AB4,Neighbourhoods,33.32,ICT,1920May_PC00075
Sandwell Metropolitan Borough Council,http://www.sandwell.gov.uk/info/200202/performance_and_spending/3233/government_procurement_cards,09-May-19,Childrens Services,AMZN Mktp UK MN9A98EQ4,Childrens Services,27.71,Equipment & Furniture,1920May_PC00076
Sandwell Metropolitan Borough Council,http://www.sandwell.gov.uk/info/200202/performance_and_spending/3233/government_procurement_cards,09-May-19,Childrens Services,AMZ Fonetek,Childrens Services,-31.9,Telephones,1920May_PC00077
Sandwell Metropolitan Borough Council,http://www.sandwell.gov.uk/info/200202/performance_and_spending/3233/government_procurement_cards,09-May-19,Adult Social Care Health and Wellbeing - Total,WWW.ARGOS.CO.UK,Total Adult Social Care,246.55,Materials & Consumables,1920May_PC00078
Sandwell Metropolitan Borough Council,http://www.sandwell.gov.uk/info/200202/performance_and_spending/3233/government_procurement_cards,09-May-19,Childrens Services,ASDA GROCERIES ONLINE,Childrens Services,62.35,Catering Provisions,1920May_PC00079
Sandwell Metropolitan Borough Council,http://www.sandwell.gov.uk/info/200202/performance_and_spending/3233/government_procurement_cards,09-May-19,Individual School Budgets With Inclusion,AMZNMktplace,Individual School Budgets With Inclusion,38.56,Printing Stationery&Gen Office,1920May_PC00080
Sandwell Metropolitan Borough Council,http://www.sandwell.gov.uk/info/200202/performance_and_spending/3233/government_procurement_cards,09-May-19,Individual School Budgets With Inclusion,AMZNMktplace,Individual School Budgets With Inclusion,4.49,Printing Stationery&Gen Office,1920May_PC00081
Sandwell Metropolitan Borough Council,http://www.sandwell.gov.uk/info/200202/performance_and_spending/3233/government_procurement_cards,09-May-19,Individual School Budgets With Inclusion,AMZNMktplace,Individual School Budgets With Inclusion,43.04,Printing Stationery&Gen Office,1920May_PC00082
Sandwell Metropolitan Borough Council,http://www.sandwell.gov.uk/info/200202/performance_and_spending/3233/government_procurement_cards,09-May-19,Resources (Inc SIU),OFFICE DEPOT UK,Assistant Chief Executive (Excl SIU),40.3,Printing Stationery&Gen Office,1920May_PC00083
Sandwell Metropolitan Borough Council,http://www.sandwell.gov.uk/info/200202/performance_and_spending/3233/government_procurement_cards,09-May-19,Childrens Services,POST OFFICE COUNTER,Childrens Services,30.5,"Postages, Carriage & Courier Services",1920May_PC00084
Sandwell Metropolitan Borough Council,http://www.sandwell.gov.uk/info/200202/performance_and_spending/3233/government_procurement_cards,09-May-19,Resources (Inc SIU),BROMSGROVE STN T/O,Assistant Chief Executive (Excl SIU),7.8,Public Transport,1920May_PC00085
Sandwell Metropolitan Borough Council,http://www.sandwell.gov.uk/info/200202/performance_and_spending/3233/government_procurement_cards,09-May-19,Individual School Budgets With Inclusion,AMZNMktplace,Individual School Budgets With Inclusion,14.94,Printing Stationery&Gen Office,1920May_PC00086
Sandwell Metropolitan Borough Council,http://www.sandwell.gov.uk/info/200202/performance_and_spending/3233/government_procurement_cards,09-May-19,Individual School Budgets With Inclusion,OFFICE DEPOT UK,Individual School Budgets With Inclusion,120.56,Catering Provisions,1920May_PC00087
Sandwell Metropolitan Borough Council,http://www.sandwell.gov.uk/info/200202/performance_and_spending/3233/government_procurement_cards,09-May-19,Adult Social Care Health and Wellbeing - Total,FOOD SAFETY DIRECT,Total Adult Social Care,32.96,Protective Clothing&Uniforms,1920May_PC00088
Sandwell Metropolitan Borough Council,http://www.sandwell.gov.uk/info/200202/performance_and_spending/3233/government_procurement_cards,09-May-19,Adult Social Care Health and Wellbeing - Total,WWW.ARGOS.CO.UK,Total Adult Social Care,486.34,Materials & Consumables,1920May_PC00089
Sandwell Metropolitan Borough Council,http://www.sandwell.gov.uk/info/200202/performance_and_spending/3233/government_procurement_cards,09-May-19,Adult Social Care Health and Wellbeing - Total,WWW.LIVINGVENTURES.COM,Public Health,90,Catering Provisions,1920May_PC00090
Sandwell Metropolitan Borough Council,http://www.sandwell.gov.uk/info/200202/performance_and_spending/3233/government_procurement_cards,09-May-19,Individual School Budgets With Inclusion,NORTON  AP1281605571,Individual School Budgets With Inclusion,49.99,ICT,1920May_PC00091
Sandwell Metropolitan Borough Council,http://www.sandwell.gov.uk/info/200202/performance_and_spending/3233/government_procurement_cards,09-May-19,Adult Social Care Health and Wellbeing - Total,AMZNMktplace,Total Adult Social Care,9.91,Professional Services External,1920May_PC00092
Sandwell Metropolitan Borough Council,http://www.sandwell.gov.uk/info/200202/performance_and_spending/3233/government_procurement_cards,09-May-19,Resources (Inc SIU),DXNS CREDIT CONTROL,Assistant Chief Executive (Excl SIU),425,Printing Stationery&Gen Office,1920May_PC00093
Sandwell Metropolitan Borough Council,http://www.sandwell.gov.uk/info/200202/performance_and_spending/3233/government_procurement_cards,09-May-19,Housing & Communities,HIGHFIELD HOUSE HO,Neighbourhoods,333.33,Operational Services,1920May_PC00094
Sandwell Metropolitan Borough Council,http://www.sandwell.gov.uk/info/200202/performance_and_spending/3233/government_procurement_cards,09-May-19,Resources (Inc SIU),Amazon Prime MN6Y74AN4,Assistant Chief Executive (Excl SIU),6.66,"Postages, Carriage & Courier Services",1920May_PC00095
Sandwell Metropolitan Borough Council,http://www.sandwell.gov.uk/info/200202/performance_and_spending/3233/government_procurement_cards,09-May-19,Total Housing Revenue Account,WWW.FLAGANDBUNTINGSTOR,Total Housing Revenue Account,24.92,Printing Stationery&Gen Office,1920May_PC00096
Sandwell Metropolitan Borough Council,http://www.sandwell.gov.uk/info/200202/performance_and_spending/3233/government_procurement_cards,10-May-19,Childrens Services,POLYBAGS LTD,Childrens Services,26.29,Materials & Consumables,1920May_PC00097
Sandwell Metropolitan Borough Council,http://www.sandwell.gov.uk/info/200202/performance_and_spending/3233/government_procurement_cards,10-May-19,Adult Social Care Health and Wellbeing - Total,AMZN MKTP UK MN76G1EZ4,Public Health,5.82,Printing Stationery&Gen Office,1920May_PC00098
Sandwell Metropolitan Borough Council,http://www.sandwell.gov.uk/info/200202/performance_and_spending/3233/government_procurement_cards,10-May-19,Childrens Services,WWW.AELP.ORG.UK,Childrens Services,-159,Ind. Emp Exp-Staff Dev&Training,1920May_PC00099
Sandwell Metropolitan Borough Council,http://www.sandwell.gov.uk/info/200202/performance_and_spending/3233/government_procurement_cards,10-May-19,Adult Social Care Health and Wellbeing - Total,BRAUNABILITY UK LTD,Total Adult Social Care,322,Equipment & Furniture,1920May_PC00100
Sandwell Metropolitan Borough Council,http://www.sandwell.gov.uk/info/200202/performance_and_spending/3233/government_procurement_cards,10-May-19,Resources (Inc SIU),Flextronics,Assistant Chief Executive (Excl SIU),339.67,ICT,1920May_PC00101
Sandwell Metropolitan Borough Council,http://www.sandwell.gov.uk/info/200202/performance_and_spending/3233/government_procurement_cards,10-May-19,Housing & Communities,FATTORINI LOCAL,Neighbourhoods,103.49,Materials & Consumables,1920May_PC00102
Sandwell Metropolitan Borough Council,http://www.sandwell.gov.uk/info/200202/performance_and_spending/3233/government_procurement_cards,10-May-19,Housing & Communities,BLACK COUNTRY CHAMBER,Neighbourhoods,65,Subscriptions,1920May_PC00103
Sandwell Metropolitan Borough Council,http://www.sandwell.gov.uk/info/200202/performance_and_spending/3233/government_procurement_cards,10-May-19,Childrens Services,SCREWFIX DIRECT,Childrens Services,57.73,Equipment & Furniture,1920May_PC00104
Sandwell Metropolitan Borough Council,http://www.sandwell.gov.uk/info/200202/performance_and_spending/3233/government_procurement_cards,10-May-19,Adult Social Care Health and Wellbeing - Total,BRAUNABILITY UK LTD,Total Adult Social Care,783.75,Equipment & Furniture,1920May_PC00105
Sandwell Metropolitan Borough Council,http://www.sandwell.gov.uk/info/200202/performance_and_spending/3233/government_procurement_cards,10-May-19,Adult Social Care Health and Wellbeing - Total,BRAUNABILITY UK LTD,Total Adult Social Care,783.75,Equipment & Furniture,1920May_PC00106
Sandwell Metropolitan Borough Council,http://www.sandwell.gov.uk/info/200202/performance_and_spending/3233/government_procurement_cards,10-May-19,Housing & Communities,AMZNMktplace,Neighbourhoods,12.9,Materials & Consumables,1920May_PC00107
Sandwell Metropolitan Borough Council,http://www.sandwell.gov.uk/info/200202/performance_and_spending/3233/government_procurement_cards,10-May-19,Childrens Services,ASDA STORES LTD 5865,Childrens Services,4.58,Materials & Consumables,1920May_PC00108
Sandwell Metropolitan Borough Council,http://www.sandwell.gov.uk/info/200202/performance_and_spending/3233/government_procurement_cards,10-May-19,Housing & Communities,NATURESCAPE,Neighbourhoods,66.25,Grounds Maint&Improvements,1920May_PC00109
Sandwell Metropolitan Borough Council,http://www.sandwell.gov.uk/info/200202/performance_and_spending/3233/government_procurement_cards,10-May-19,Childrens Services,AMZNMKTPLACE AMAZON.CO,Childrens Services,48.71,Fixtures & Fittings,1920May_PC00110
Sandwell Metropolitan Borough Council,http://www.sandwell.gov.uk/info/200202/performance_and_spending/3233/government_procurement_cards,10-May-19,Childrens Services,AMZNMKTPLACE AMAZON.CO,Childrens Services,18.14,Materials & Consumables,1920May_PC00111
Sandwell Metropolitan Borough Council,http://www.sandwell.gov.uk/info/200202/performance_and_spending/3233/government_procurement_cards,10-May-19,Total Housing Revenue Account,WWW.PMGLTD.CO.UK,Total Housing Revenue Account,355.5,Ind. Emp Exp-Staff Dev&Training,1920May_PC00112
Sandwell Metropolitan Borough Council,http://www.sandwell.gov.uk/info/200202/performance_and_spending/3233/government_procurement_cards,10-May-19,Adult Social Care Health and Wellbeing - Total,WWW.DOMINOS.CO.UK,Public Health,54.95,Catering Provisions,1920May_PC00113
Sandwell Metropolitan Borough Council,http://www.sandwell.gov.uk/info/200202/performance_and_spending/3233/government_procurement_cards,10-May-19,Individual School Budgets With Inclusion,Amazon Prime MN7T65EG4,Individual School Budgets With Inclusion,6.66,Printing Stationery&Gen Office,1920May_PC00114
Sandwell Metropolitan Borough Council,http://www.sandwell.gov.uk/info/200202/performance_and_spending/3233/government_procurement_cards,10-May-19,Adult Social Care Health and Wellbeing - Total,Trainline,Total Adult Social Care,182.64,Public Transport,1920May_PC00115
Sandwell Metropolitan Borough Council,http://www.sandwell.gov.uk/info/200202/performance_and_spending/3233/government_procurement_cards,10-May-19,Resources (Inc SIU),Trainline.com,Assistant Chief Executive (Excl SIU),160.26,Public Transport,1920May_PC00116
Sandwell Metropolitan Borough Council,http://www.sandwell.gov.uk/info/200202/performance_and_spending/3233/government_procurement_cards,10-May-19,Housing & Communities,OFFICE DEPOT UK,Neighbourhoods,12.23,Printing Stationery&Gen Office,1920May_PC00117
Sandwell Metropolitan Borough Council,http://www.sandwell.gov.uk/info/200202/performance_and_spending/3233/government_procurement_cards,10-May-19,Regeneration & Growth,SANDWELL & DUD T/O,Dead SeRCOP,13.1,Public Transport,1920May_PC00118
Sandwell Metropolitan Borough Council,http://www.sandwell.gov.uk/info/200202/performance_and_spending/3233/government_procurement_cards,10-May-19,Childrens Services,Amazon Prime MN5278E64,Childrens Services,7.99,Subscriptions,1920May_PC00119
Sandwell Metropolitan Borough Council,http://www.sandwell.gov.uk/info/200202/performance_and_spending/3233/government_procurement_cards,10-May-19,Resources (Inc SIU),OFFICE DEPOT UK,Assistant Chief Executive (Excl SIU),50.92,Printing Stationery&Gen Office,1920May_PC00120
Sandwell Metropolitan Borough Council,http://www.sandwell.gov.uk/info/200202/performance_and_spending/3233/government_procurement_cards,10-May-19,Childrens Services,Amazon.co.uk MN7D190M4,Childrens Services,7.48,Materials & Consumables,1920May_PC00121
Sandwell Metropolitan Borough Council,http://www.sandwell.gov.uk/info/200202/performance_and_spending/3233/government_procurement_cards,10-May-19,Housing & Communities,PREMIER INN,Neighbourhoods,386.67,Operational Services,1920May_PC00122
Sandwell Metropolitan Borough Council,http://www.sandwell.gov.uk/info/200202/performance_and_spending/3233/government_procurement_cards,10-May-19,Housing & Communities,TESCO STORES 2335,Neighbourhoods,10.42,Catering Equipment,1920May_PC00123
Sandwell Metropolitan Borough Council,http://www.sandwell.gov.uk/info/200202/performance_and_spending/3233/government_procurement_cards,13-May-19,Adult Social Care Health and Wellbeing - Total,Amazon.co.uk,Total Adult Social Care,-16.69,Materials & Consumables,1920May_PC00124
Sandwell Metropolitan Borough Council,http://www.sandwell.gov.uk/info/200202/performance_and_spending/3233/government_procurement_cards,13-May-19,Childrens Services,AMZN Mktp UK MN75H3184,Childrens Services,8.59,Equipment & Furniture,1920May_PC00125
Sandwell Metropolitan Borough Council,http://www.sandwell.gov.uk/info/200202/performance_and_spending/3233/government_procurement_cards,13-May-19,Childrens Services,AMZNMktplace,Childrens Services,6.62,Materials & Consumables,1920May_PC00126
Sandwell Metropolitan Borough Council,http://www.sandwell.gov.uk/info/200202/performance_and_spending/3233/government_procurement_cards,13-May-19,Childrens Services,AMZNMktplace,Childrens Services,60.69,Materials & Consumables,1920May_PC00127
Sandwell Metropolitan Borough Council,http://www.sandwell.gov.uk/info/200202/performance_and_spending/3233/government_procurement_cards,13-May-19,Childrens Services,SCREWFIX STAFFORD,Childrens Services,12.48,Equipment & Furniture,1920May_PC00128
Sandwell Metropolitan Borough Council,http://www.sandwell.gov.uk/info/200202/performance_and_spending/3233/government_procurement_cards,13-May-19,Resources (Inc SIU),BROMSGROVE STN T/O,Assistant Chief Executive (Excl SIU),6.5,Public Transport,1920May_PC00129
Sandwell Metropolitan Borough Council,http://www.sandwell.gov.uk/info/200202/performance_and_spending/3233/government_procurement_cards,13-May-19,Adult Social Care Health and Wellbeing - Total,WORKWEAR EXPRESS LIMIT,Total Adult Social Care,71.13,Protective Clothing&Uniforms,1920May_PC00130
Sandwell Metropolitan Borough Council,http://www.sandwell.gov.uk/info/200202/performance_and_spending/3233/government_procurement_cards,13-May-19,Adult Social Care Health and Wellbeing - Total,HOME COMFORTS STON,Total Adult Social Care,441.67,Equipment & Furniture,1920May_PC00131
Sandwell Metropolitan Borough Council,http://www.sandwell.gov.uk/info/200202/performance_and_spending/3233/government_procurement_cards,13-May-19,Adult Social Care Health and Wellbeing - Total,Amazon.co.uk MN65Q5194,Total Adult Social Care,16.69,Materials & Consumables,1920May_PC00132
Sandwell Metropolitan Borough Council,http://www.sandwell.gov.uk/info/200202/performance_and_spending/3233/government_procurement_cards,13-May-19,Housing & Communities,B M LTD,Neighbourhoods,216.28,Materials & Consumables,1920May_PC00133
Sandwell Metropolitan Borough Council,http://www.sandwell.gov.uk/info/200202/performance_and_spending/3233/government_procurement_cards,13-May-19,Adult Social Care Health and Wellbeing - Total,TIMPSON LTD,Total Adult Social Care,14.96,Equipment & Furniture,1920May_PC00134
Sandwell Metropolitan Borough Council,http://www.sandwell.gov.uk/info/200202/performance_and_spending/3233/government_procurement_cards,13-May-19,Childrens Services,BEEBYS BUBBLES,Childrens Services,91.67,Laundry,1920May_PC00135
Sandwell Metropolitan Borough Council,http://www.sandwell.gov.uk/info/200202/performance_and_spending/3233/government_procurement_cards,13-May-19,Housing & Communities,RIJO 42 INGREDIENT,Neighbourhoods,35.77,Catering Provisions,1920May_PC00136
Sandwell Metropolitan Borough Council,http://www.sandwell.gov.uk/info/200202/performance_and_spending/3233/government_procurement_cards,13-May-19,Adult Social Care Health and Wellbeing - Total,ARGOS RETAIL GROUP,Total Adult Social Care,16.65,Materials & Consumables,1920May_PC00137
Sandwell Metropolitan Borough Council,http://www.sandwell.gov.uk/info/200202/performance_and_spending/3233/government_procurement_cards,13-May-19,Childrens Services,VISTAPR VistaPrint.com,Childrens Services,13.29,Materials & Consumables,1920May_PC00138
Sandwell Metropolitan Borough Council,http://www.sandwell.gov.uk/info/200202/performance_and_spending/3233/government_procurement_cards,13-May-19,Resources (Inc SIU),PAYPAL  ELITEPACK,Assistant Chief Executive (Excl SIU),4.9,Printing Stationery&Gen Office,1920May_PC00139
Sandwell Metropolitan Borough Council,http://www.sandwell.gov.uk/info/200202/performance_and_spending/3233/government_procurement_cards,13-May-19,Total Housing Revenue Account,Cross Country Trains,Dead SeRCOP,81.35,Public Transport,1920May_PC00140
Sandwell Metropolitan Borough Council,http://www.sandwell.gov.uk/info/200202/performance_and_spending/3233/government_procurement_cards,13-May-19,Childrens Services,LIDL GB STAFFORD,Childrens Services,4.36,Catering Provisions,1920May_PC00141
Sandwell Metropolitan Borough Council,http://www.sandwell.gov.uk/info/200202/performance_and_spending/3233/government_procurement_cards,13-May-19,Resources (Inc SIU),AMZNMktplace,Assistant Chief Executive (Excl SIU),45,Materials & Consumables,1920May_PC00142
Sandwell Metropolitan Borough Council,http://www.sandwell.gov.uk/info/200202/performance_and_spending/3233/government_procurement_cards,13-May-19,Childrens Services,Trainline,Childrens Services,19.38,Public Transport,1920May_PC00143
Sandwell Metropolitan Borough Council,http://www.sandwell.gov.uk/info/200202/performance_and_spending/3233/government_procurement_cards,13-May-19,Resources (Inc SIU),OFFICE DEPOT UK,Assistant Chief Executive (Excl SIU),30.25,Printing Stationery&Gen Office,1920May_PC00144
Sandwell Metropolitan Borough Council,http://www.sandwell.gov.uk/info/200202/performance_and_spending/3233/government_procurement_cards,13-May-19,Childrens Services,Trainline,Childrens Services,19.38,"Postages, Carriage & Courier Services",1920May_PC00145
Sandwell Metropolitan Borough Council,http://www.sandwell.gov.uk/info/200202/performance_and_spending/3233/government_procurement_cards,13-May-19,Adult Social Care Health and Wellbeing - Total,GT APPLIANCE WAREHOUSE,Total Adult Social Care,175,Fixtures & Fittings,1920May_PC00146
Sandwell Metropolitan Borough Council,http://www.sandwell.gov.uk/info/200202/performance_and_spending/3233/government_procurement_cards,13-May-19,Regeneration & Growth,AMZN MKTP UK MN1S811R4,Regeneration And The Economy,18.17,Printing Stationery&Gen Office,1920May_PC00147
Sandwell Metropolitan Borough Council,http://www.sandwell.gov.uk/info/200202/performance_and_spending/3233/government_procurement_cards,13-May-19,Regeneration & Growth,AMZNMktplace,Regeneration And The Economy,10.3,Printing Stationery&Gen Office,1920May_PC00148
Sandwell Metropolitan Borough Council,http://www.sandwell.gov.uk/info/200202/performance_and_spending/3233/government_procurement_cards,13-May-19,Resources (Inc SIU),AMZNMktplace,Assistant Chief Executive (Excl SIU),26.85,Printing Stationery&Gen Office,1920May_PC00149
Sandwell Metropolitan Borough Council,http://www.sandwell.gov.uk/info/200202/performance_and_spending/3233/government_procurement_cards,13-May-19,Regeneration & Growth,AMZNMktplace,Regeneration And The Economy,11.23,Printing Stationery&Gen Office,1920May_PC00150
Sandwell Metropolitan Borough Council,http://www.sandwell.gov.uk/info/200202/performance_and_spending/3233/government_procurement_cards,13-May-19,Regeneration & Growth,Amazon.co.uk MN5VX3PV4,Regeneration And The Economy,17.23,Printing Stationery&Gen Office,1920May_PC00151
Sandwell Metropolitan Borough Council,http://www.sandwell.gov.uk/info/200202/performance_and_spending/3233/government_procurement_cards,13-May-19,Resources (Inc SIU),AMZNMktplace,Assistant Chief Executive (Excl SIU),16.57,Printing Stationery&Gen Office,1920May_PC00152
Sandwell Metropolitan Borough Council,http://www.sandwell.gov.uk/info/200202/performance_and_spending/3233/government_procurement_cards,13-May-19,Resources (Inc SIU),AMZNMktplace,Assistant Chief Executive (Excl SIU),8.73,Printing Stationery&Gen Office,1920May_PC00153
Sandwell Metropolitan Borough Council,http://www.sandwell.gov.uk/info/200202/performance_and_spending/3233/government_procurement_cards,13-May-19,Resources (Inc SIU),AMZN Mktp UK MN5R45PU4,Assistant Chief Executive (Excl SIU),35.78,Printing Stationery&Gen Office,1920May_PC00154
Sandwell Metropolitan Borough Council,http://www.sandwell.gov.uk/info/200202/performance_and_spending/3233/government_procurement_cards,13-May-19,Resources (Inc SIU),AMZNMktplace,Assistant Chief Executive (Excl SIU),53.97,Printing Stationery&Gen Office,1920May_PC00155
Sandwell Metropolitan Borough Council,http://www.sandwell.gov.uk/info/200202/performance_and_spending/3233/government_procurement_cards,13-May-19,Resources (Inc SIU),AMZN Mktp UK MN30Y2PR4,Assistant Chief Executive (Excl SIU),35.77,Printing Stationery&Gen Office,1920May_PC00156
Sandwell Metropolitan Borough Council,http://www.sandwell.gov.uk/info/200202/performance_and_spending/3233/government_procurement_cards,13-May-19,Resources (Inc SIU),AMZN Mktp UK MN8X35P34,Assistant Chief Executive (Excl SIU),75.72,Printing Stationery&Gen Office,1920May_PC00157
Sandwell Metropolitan Borough Council,http://www.sandwell.gov.uk/info/200202/performance_and_spending/3233/government_procurement_cards,13-May-19,Housing & Communities,FUTURE GARMENTS LTD,Neighbourhoods,169.86,Protective Clothing&Uniforms,1920May_PC00158
Sandwell Metropolitan Borough Council,http://www.sandwell.gov.uk/info/200202/performance_and_spending/3233/government_procurement_cards,13-May-19,Corporate Management,AMZNMktplace,Corporate Management,7.99,ICT,1920May_PC00159
Sandwell Metropolitan Borough Council,http://www.sandwell.gov.uk/info/200202/performance_and_spending/3233/government_procurement_cards,13-May-19,Housing & Communities,THE EDGBASTON PALA,Neighbourhoods,641.67,Operational Services,1920May_PC00160
Sandwell Metropolitan Borough Council,http://www.sandwell.gov.uk/info/200202/performance_and_spending/3233/government_procurement_cards,13-May-19,Housing & Communities,THE HAWTHORNS T/O,Neighbourhoods,2.25,Public Transport,1920May_PC00161
Sandwell Metropolitan Borough Council,http://www.sandwell.gov.uk/info/200202/performance_and_spending/3233/government_procurement_cards,13-May-19,Resources (Inc SIU),JOHNSTONES DEC CENTRE,Assistant Chief Executive (Excl SIU),53.25,Grounds Maint&Improvements,1920May_PC00162
Sandwell Metropolitan Borough Council,http://www.sandwell.gov.uk/info/200202/performance_and_spending/3233/government_procurement_cards,13-May-19,Resources (Inc SIU),Trainline,Assistant Chief Executive (Excl SIU),21.67,Public Transport,1920May_PC00163
Sandwell Metropolitan Borough Council,http://www.sandwell.gov.uk/info/200202/performance_and_spending/3233/government_procurement_cards,13-May-19,Regeneration & Growth,PAYPAL  MAGNOSPHERE,Regeneration And The Economy,45.32,Equipment & Furniture,1920May_PC00164
Sandwell Metropolitan Borough Council,http://www.sandwell.gov.uk/info/200202/performance_and_spending/3233/government_procurement_cards,13-May-19,Resources (Inc SIU),ARGOS LTD,Assistant Chief Executive (Excl SIU),33.32,Fixtures & Fittings,1920May_PC00165
Sandwell Metropolitan Borough Council,http://www.sandwell.gov.uk/info/200202/performance_and_spending/3233/government_procurement_cards,14-May-19,Individual School Budgets With Inclusion,AMZN MKTP UK MN8KY5PQ4,Individual School Budgets With Inclusion,107.79,Materials & Consumables,1920May_PC00166
Sandwell Metropolitan Borough Council,http://www.sandwell.gov.uk/info/200202/performance_and_spending/3233/government_procurement_cards,14-May-19,Individual School Budgets With Inclusion,AMZN MKTP UK MN6AA2PG4,Individual School Budgets With Inclusion,46.2,Materials & Consumables,1920May_PC00167
Sandwell Metropolitan Borough Council,http://www.sandwell.gov.uk/info/200202/performance_and_spending/3233/government_procurement_cards,14-May-19,Resources (Inc SIU),SurveyMonkey,Assistant Chief Executive (Excl SIU),29.17,Subscriptions,1920May_PC00168
Sandwell Metropolitan Borough Council,http://www.sandwell.gov.uk/info/200202/performance_and_spending/3233/government_procurement_cards,14-May-19,Housing & Communities,AMZN Mktp UK MN30Q0GB4,Neighbourhoods,12.9,Civic Events,1920May_PC00169
Sandwell Metropolitan Borough Council,http://www.sandwell.gov.uk/info/200202/performance_and_spending/3233/government_procurement_cards,14-May-19,Childrens Services,ASDA GROCERIES ONLINE,Childrens Services,-4.12,Catering Provisions,1920May_PC00170
Sandwell Metropolitan Borough Council,http://www.sandwell.gov.uk/info/200202/performance_and_spending/3233/government_procurement_cards,14-May-19,Adult Social Care Health and Wellbeing - Total,OFFICE DEPOT UK,Public Health,3.55,Printing Stationery&Gen Office,1920May_PC00171
Sandwell Metropolitan Borough Council,http://www.sandwell.gov.uk/info/200202/performance_and_spending/3233/government_procurement_cards,14-May-19,Resources (Inc SIU),OFFICE DEPOT UK,Assistant Chief Executive (Excl SIU),73.37,Printing Stationery&Gen Office,1920May_PC00172
Sandwell Metropolitan Borough Council,http://www.sandwell.gov.uk/info/200202/performance_and_spending/3233/government_procurement_cards,14-May-19,Resources (Inc SIU),OFFICE DEPOT UK,Assistant Chief Executive (Excl SIU),107.62,Printing Stationery&Gen Office,1920May_PC00173
Sandwell Metropolitan Borough Council,http://www.sandwell.gov.uk/info/200202/performance_and_spending/3233/government_procurement_cards,14-May-19,Housing & Communities,OFFICE DEPOT UK,Neighbourhoods,72.62,Printing Stationery&Gen Office,1920May_PC00174
Sandwell Metropolitan Borough Council,http://www.sandwell.gov.uk/info/200202/performance_and_spending/3233/government_procurement_cards,14-May-19,Childrens Services,ASDA GROCERIES ONLINE,Childrens Services,96.56,Catering Provisions,1920May_PC00175
Sandwell Metropolitan Borough Council,http://www.sandwell.gov.uk/info/200202/performance_and_spending/3233/government_procurement_cards,14-May-19,Childrens Services,ALDI 8 778,Childrens Services,2.55,Catering Provisions,1920May_PC00176
Sandwell Metropolitan Borough Council,http://www.sandwell.gov.uk/info/200202/performance_and_spending/3233/government_procurement_cards,14-May-19,Childrens Services,CANALSIDE HOLDINGS LIM,Childrens Services,11,Catering Provisions,1920May_PC00177
Sandwell Metropolitan Borough Council,http://www.sandwell.gov.uk/info/200202/performance_and_spending/3233/government_procurement_cards,14-May-19,Housing & Communities,JURASSIC JIM,Neighbourhoods,66,Civic Events,1920May_PC00178
Sandwell Metropolitan Borough Council,http://www.sandwell.gov.uk/info/200202/performance_and_spending/3233/government_procurement_cards,14-May-19,Adult Social Care Health and Wellbeing - Total,ARGOS RETAIL GROUP,Total Adult Social Care,111,Materials & Consumables,1920May_PC00179
Sandwell Metropolitan Borough Council,http://www.sandwell.gov.uk/info/200202/performance_and_spending/3233/government_procurement_cards,14-May-19,Childrens Services,ASDA,Childrens Services,12,Catering Provisions,1920May_PC00180
Sandwell Metropolitan Borough Council,http://www.sandwell.gov.uk/info/200202/performance_and_spending/3233/government_procurement_cards,14-May-19,Housing & Communities,AMZNMKTPLACE AMAZON.CO,Neighbourhoods,8.09,Catering Provisions,1920May_PC00181
Sandwell Metropolitan Borough Council,http://www.sandwell.gov.uk/info/200202/performance_and_spending/3233/government_procurement_cards,14-May-19,Adult Social Care Health and Wellbeing - Total,Amazon.co.uk MN96G6X34,Total Adult Social Care,20.37,Printing Stationery&Gen Office,1920May_PC00182
Sandwell Metropolitan Borough Council,http://www.sandwell.gov.uk/info/200202/performance_and_spending/3233/government_procurement_cards,14-May-19,Childrens Services,POST OFFICE COUNTER,Childrens Services,6.6,"Postages, Carriage & Courier Services",1920May_PC00183
Sandwell Metropolitan Borough Council,http://www.sandwell.gov.uk/info/200202/performance_and_spending/3233/government_procurement_cards,14-May-19,Childrens Services,POST OFFICE COUNTER,Childrens Services,67.2,"Postages, Carriage & Courier Services",1920May_PC00184
Sandwell Metropolitan Borough Council,http://www.sandwell.gov.uk/info/200202/performance_and_spending/3233/government_procurement_cards,14-May-19,Resources (Inc SIU),Trainline,Assistant Chief Executive (Excl SIU),153.5,Public Transport,1920May_PC00185
Sandwell Metropolitan Borough Council,http://www.sandwell.gov.uk/info/200202/performance_and_spending/3233/government_procurement_cards,14-May-19,Childrens Services,POST OFFICE COUNTER,Childrens Services,54.06,"Postages, Carriage & Courier Services",1920May_PC00186
Sandwell Metropolitan Borough Council,http://www.sandwell.gov.uk/info/200202/performance_and_spending/3233/government_procurement_cards,14-May-19,Resources (Inc SIU),ASDA SUPERSTORE,Assistant Chief Executive (Excl SIU),9.95,Printing Stationery&Gen Office,1920May_PC00187
Sandwell Metropolitan Borough Council,http://www.sandwell.gov.uk/info/200202/performance_and_spending/3233/government_procurement_cards,14-May-19,Housing & Communities,WWW.VICARAGELODGE.COM,Neighbourhoods,326.67,Operational Services,1920May_PC00188
Sandwell Metropolitan Borough Council,http://www.sandwell.gov.uk/info/200202/performance_and_spending/3233/government_procurement_cards,14-May-19,Resources (Inc SIU),POUNDSTRETCHER 003,Assistant Chief Executive (Excl SIU),1.58,Printing Stationery&Gen Office,1920May_PC00189
Sandwell Metropolitan Borough Council,http://www.sandwell.gov.uk/info/200202/performance_and_spending/3233/government_procurement_cards,14-May-19,Resources (Inc SIU),THE LORD MAYORS APPEAL,Assistant Chief Executive (Excl SIU),10,Professional Services External,1920May_PC00190
Sandwell Metropolitan Borough Council,http://www.sandwell.gov.uk/info/200202/performance_and_spending/3233/government_procurement_cards,15-May-19,Housing & Communities,Amazon Prime,Neighbourhoods,-6.66,Printing Stationery&Gen Office,1920May_PC00191
Sandwell Metropolitan Borough Council,http://www.sandwell.gov.uk/info/200202/performance_and_spending/3233/government_procurement_cards,15-May-19,Resources (Inc SIU),EB  WORKSHOP BEING AN,Assistant Chief Executive (Excl SIU),-42.69,Conference Expenses,1920May_PC00192
Sandwell Metropolitan Borough Council,http://www.sandwell.gov.uk/info/200202/performance_and_spending/3233/government_procurement_cards,15-May-19,Resources (Inc SIU),BROMSGROVE STN SST,Assistant Chief Executive (Excl SIU),4.5,Printing Stationery&Gen Office,1920May_PC00193
Sandwell Metropolitan Borough Council,http://www.sandwell.gov.uk/info/200202/performance_and_spending/3233/government_procurement_cards,15-May-19,Childrens Services,BAKER ROSS,Childrens Services,200.3,Materials & Consumables,1920May_PC00194
Sandwell Metropolitan Borough Council,http://www.sandwell.gov.uk/info/200202/performance_and_spending/3233/government_procurement_cards,15-May-19,Adult Social Care Health and Wellbeing - Total,LENTE DESIGNS,Total Adult Social Care,73.96,Printing Stationery&Gen Office,1920May_PC00195
Sandwell Metropolitan Borough Council,http://www.sandwell.gov.uk/info/200202/performance_and_spending/3233/government_procurement_cards,15-May-19,Childrens Services,AMZN MKTP UK MN67S6XD4,Childrens Services,10.21,Printing Stationery&Gen Office,1920May_PC00196
Sandwell Metropolitan Borough Council,http://www.sandwell.gov.uk/info/200202/performance_and_spending/3233/government_procurement_cards,15-May-19,Adult Social Care Health and Wellbeing - Total,AMZNMktplace,Total Adult Social Care,27.48,ICT,1920May_PC00197
Sandwell Metropolitan Borough Council,http://www.sandwell.gov.uk/info/200202/performance_and_spending/3233/government_procurement_cards,15-May-19,Regeneration & Growth,Amazon.co.uk MN45W2V14,Regeneration And The Economy,26.59,Printing Stationery&Gen Office,1920May_PC00198
Sandwell Metropolitan Borough Council,http://www.sandwell.gov.uk/info/200202/performance_and_spending/3233/government_procurement_cards,15-May-19,Adult Social Care Health and Wellbeing - Total,AMZN Mktp UK MN37B7XJ4,Total Adult Social Care,2.07,Printing Stationery&Gen Office,1920May_PC00199
Sandwell Metropolitan Borough Council,http://www.sandwell.gov.uk/info/200202/performance_and_spending/3233/government_procurement_cards,15-May-19,Housing & Communities,AMZNMktplace,Neighbourhoods,36.63,Materials & Consumables,1920May_PC00200
Sandwell Metropolitan Borough Council,http://www.sandwell.gov.uk/info/200202/performance_and_spending/3233/government_procurement_cards,15-May-19,Housing & Communities,Amazon Prime MN0932X04,Neighbourhoods,6.66,Printing Stationery&Gen Office,1920May_PC00201
Sandwell Metropolitan Borough Council,http://www.sandwell.gov.uk/info/200202/performance_and_spending/3233/government_procurement_cards,15-May-19,Housing & Communities,AMZN Mktp UK MN0AC3X14,Neighbourhoods,3.52,Materials & Consumables,1920May_PC00202
